Workbook

Sheet Main
B10: 2018-12-10
B12: Sheet No. | C12: Template Name | D12: Summary
B13: 1 | C13: Future Intra | D13: For Intraday trading in F&O segment
B14: 2 | C14: Cash Intra | D14: For Intraday trading in cash market segment
B15: 3 | C15: Mid-cap Intra | D15: For Intraday trading in Mid-cap stocks
B16: 4 | C16: Bulk Deals | D16: Reveals Bulk Deals carried on NSE & BSE
B17: 5 | C17: Call Tracker

Sheet Future Intra
M5: Back to Main Page
A6: FOR INTRA DAY TRADING | L6: =Main!B10 -> 2018-12-10
A9: Sr.no | B9: Sector | C9: Scrip | D9: CLOSE RATE | E9: Pivot Point | F9: Supports | I9: Resistances
B10: Sector | D10: Point | E10: Point | F10: S1 | G10: S2 | H10: S3 | I10: R1 | J10: R2 | K10: R3 | L10: HIGH | M10: LOW | N10: OI | O10: % Change in OI
A11: 1 | B11: Index | C11: BANKNIFTY | D11: 26660.00 | E11: 26577.02 | F11: 26418.13 | G11: 26176.27 | H11: 26017.38 | I11: 26818.88 | J11: 26977.77 | K11: 27219.63 | L11: 26735.9 | M11: 26335.15 | N11: 1726860 | O11: 11.65%
A12: 2 | B12: Index | C12: NIFTY | D12: 10735.15 | E12: 10706.73 | F12: 10665.52 | G12: 10595.88 | H12: 10554.67 | I12: 10776.37 | J12: 10817.58 | K12: 10887.22 | L12: 10747.95 | M12: 10637.1 | N12: 22780350 | O12: 3.25%
A13: 3 | B13: Index | C13: NIFTYIT | D13: 14717.00 | E13: 14657.67 | F13: 14559.33 | G13: 14401.67 | H13: 14303.33 | I13: 14815.33 | J13: 14913.67 | K13: 15071.33 | L13: 14756 | M13: 14500 | N13: 18300 | O13: -10.07%
A14: 4 | B14: Index | C14: NIFTYMID50 | D14: 4628.20 | E14: 4656.80 | F14: 4599.60 | G14: 4571.00 | H14: 4513.80 | I14: 4685.40 | J14: 4742.60 | K14: 4771.20 | L14: 4714 | M14: 4628.2 | N14: 591690 | O14: 0.00%
A15: 5 | B15: Cement | C15: ACC | D15: 1449.05 | E15: 1444.03 | F15: 1435.87 | G15: 1422.68 | H15: 1414.52 | I15: 1457.22 | J15: 1465.38 | K15: 1478.57 | L15: 1452.2 | M15: 1430.85 | N15: 1387200 | O15: 0.96%
A16: 6 | B16: Others | C16: ADANIENT | D16: 153.40 | E16: 152.68 | F16: 150.77 | G16: 148.13 | H16: 146.22 | I16: 155.32 | J16: 157.23 | K16: 159.87 | L16: 154.6 | M16: 150.05 | N16: 47168000 | O16: 3.73%
A17: 7 | B17: Others | C17: ADANIPORTS | D17: 375.20 | E17: 372.00 | F17: 367.75 | G17: 360.30 | H17: 356.05 | I17: 379.45 | J17: 383.70 | K17: 391.15 | L17: 376.25 | M17: 364.55 | N17: 18500000 | O17: 0.05%
A18: 8 | B18: Power | C18: ADANIPOWER | D18: 52.80 | E18: 52.63 | F18: 51.87 | G18: 50.93 | H18: 50.17 | I18: 53.57 | J18: 54.33 | K18: 55.27 | L18: 53.4 | M18: 51.7 | N18: 170140000 | O18: 1.38%
A19: 9 | B19: Pharma | C19: AJANTPHARM | D19: 1053.80 | E19: 1073.37 | F19: 1028.93 | G19: 1004.07 | H19: 959.63 | I19: 1098.23 | J19: 1142.67 | K19: 1167.53 | L19: 1117.8 | M19: 1048.5 | N19: 604000 | O19: 3.96%
A20: 10 | B20: Banking | C20: ALBK | D20: 43.30 | E20: 43.63 | F20: 41.92 | G20: 40.53 | H20: 38.82 | I20: 45.02 | J20: 46.73 | K20: 48.12 | L20: 45.35 | M20: 42.25 | N20: 17212000 | O20: 1.70%
A21: 11 | B21: Automobile | C21: AMARAJABAT | D21: 705.90 | E21: 704.77 | F21: 697.13 | G21: 688.37 | H21: 680.73 | I21: 713.53 | J21: 721.17 | K21: 729.93 | L21: 712.4 | M21: 696 | N21: 1436400 | O21: -5.74%
A22: 12 | B22: Cement | C22: AMBUJACEM | D22: 212.95 | E22: 211.72 | F22: 209.43 | G22: 205.92 | H22: 203.63 | I22: 215.23 | J22: 217.52 | K22: 221.03 | L22: 214 | M22: 208.2 | N22: 15780000 | O22: 1.04%
A23: 13 | B23: Others | C23: APOLLOHOSP | D23: 1212.35 | E23: 1200.25 | F23: 1185.15 | G23: 1157.95 | H23: 1142.85 | I23: 1227.45 | J23: 1242.55 | K23: 1269.75 | L23: 1215.35 | M23: 1173.05 | N23: 1059000 | O23: -0.09%
A24: 14 | B24: Automobile | C24: APOLLOTYRE | D24: 227.00 | E24: 226.05 | F24: 223.70 | G24: 220.40 | H24: 218.05 | I24: 229.35 | J24: 231.70 | K24: 235.00 | L24: 228.4 | M24: 222.75 | N24: 9012000 | O24: -3.38%
A25: 15 | B25: Textile | C25: ARVIND | D25: 100.60 | E25: 100.68 | F25: 98.62 | G25: 96.63 | H25: 94.57 | I25: 102.67 | J25: 104.73 | K25: 106.72 | L25: 102.75 | M25: 98.7 | N25: 5292000 | O25: -1.08%
A26: 16 | B26: Automobile | C26: ASHOKLEY | D26: 103.25 | E26: 102.73 | F26: 101.67 | G26: 100.08 | H26: 99.02 | I26: 104.32 | J26: 105.38 | K26: 106.97 | L26: 103.8 | M26: 101.15 | N26: 63128000 | O26: -1.93%
A27: 17 | B27: FMCG | C27: ASIANPAINT | D27: 1325.00 | E27: 1319.60 | F27: 1310.20 | G27: 1295.40 | H27: 1286.00 | I27: 1334.40 | J27: 1343.80 | K27: 1358.60 | L27: 1329 | M27: 1304.8 | N27: 4418400 | O27: 2.48%
A28: 18 | B28: Pharma | C28: AUROPHARMA | D28: 754.70 | E28: 754.07 | F28: 736.03 | G28: 717.37 | H28: 699.33 | I28: 772.73 | J28: 790.77 | K28: 809.43 | L28: 772.1 | M28: 735.4 | N28: 18225000 | O28: -0.44%
A29: 19 | B29: Banking | C29: AXISBANK | D29: 605.85 | E29: 604.02 | F29: 596.63 | G29: 587.42 | H29: 580.03 | I29: 613.23 | J29: 620.62 | K29: 629.83 | L29: 611.4 | M29: 594.8 | N29: 37546800 | O29: 3.37%
A30: 20 | B30: Automobile | C30: BAJAJ-AUTO | D30: 2790.35 | E30: 2770.70 | F30: 2744.65 | G30: 2698.95 | H30: 2672.90 | I30: 2816.40 | J30: 2842.45 | K30: 2888.15 | L30: 2796.75 | M30: 2725 | N30: 2173250 | O30: 0.92%
A31: 21 | B31: Others | C31: BAJAJFINSV | D31: 5874.20 | E31: 5820.08 | F31: 5746.17 | G31: 5618.13 | H31: 5544.22 | I31: 5948.12 | J31: 6022.03 | K31: 6150.07 | L31: 5894 | M31: 5692.05 | N31: 651375 | O31: -0.71%
A32: 22 | B32: Finance | C32: BAJFINANCE | D32: 2498.00 | E32: 2476.17 | F32: 2444.03 | G32: 2390.07 | H32: 2357.93 | I32: 2530.13 | J32: 2562.27 | K32: 2616.23 | L32: 2508.3 | M32: 2422.2 | N32: 6190750 | O32: 1.81%
A33: 23 | B33: Others | C33: BALKRISIND | D33: 894.60 | E33: 895.92 | F33: 882.03 | G33: 869.47 | H33: 855.58 | I33: 908.48 | J33: 922.37 | K33: 934.93 | L33: 909.8 | M33: 883.35 | N33: 2746400 | O33: 0.91%
A34: 24 | B34: Banking | C34: BANKBARODA | D34: 106.65 | E34: 105.62 | F34: 104.13 | G34: 101.62 | H34: 100.13 | I34: 108.13 | J34: 109.62 | K34: 112.13 | L34: 107.1 | M34: 103.1 | N34: 65692000 | O34: -2.70%
A35: 25 | B35: Banking | C35: BANKINDIA | D35: 79.75 | E35: 79.93 | F35: 78.07 | G35: 76.38 | H35: 74.52 | I35: 81.62 | J35: 83.48 | K35: 85.17 | L35: 81.8 | M35: 78.25 | N35: 26532000 | O35: 2.29%
A36: 26 | B36: FMCG | C36: BATAINDIA | D36: 1057.80 | E36: 1058.10 | F36: 1044.85 | G36: 1031.90 | H36: 1018.65 | I36: 1071.05 | J36: 1084.30 | K36: 1097.25 | L36: 1071.35 | M36: 1045.15 | N36: 1809500 | O36: 2.56%
A37: 27 | B37: Capital_Goods | C37: BEL | D37: 80.05 | E37: 80.53 | F37: 79.22 | G37: 78.38 | H37: 77.07 | I37: 81.37 | J37: 82.68 | K37: 83.52 | L37: 81.85 | M37: 79.7 | N37: 48936150 | O37: 2.69%
A38: 28 | B38: Infrastructure | C38: BEML | D38: 712.35 | E38: 706.90 | F38: 695.50 | G38: 678.65 | H38: 667.25 | I38: 723.75 | J38: 735.15 | K38: 752.00 | L38: 718.3 | M38: 690.05 | N38: 1115200 | O38: -3.55%
A39: 29 | B39: Others | C39: BERGEPAINT | D39: 312.30 | E39: 311.67 | F39: 309.33 | G39: 306.37 | H39: 304.03 | I39: 314.63 | J39: 316.97 | K39: 319.93 | L39: 314 | M39: 308.7 | N39: 1991000 | O39: -2.48%
A40: 30 | B40: Finance | C40: BHARATFIN | D40: 992.95 | E40: 987.15 | F40: 975.85 | G40: 958.75 | H40: 947.45 | I40: 1004.25 | J40: 1015.55 | K40: 1032.65 | L40: 998.45 | M40: 970.05 | N40: 5424500 | O40: -0.90%
A41: 31 | B41: Automobile | C41: BHARATFORG | D41: 508.35 | E41: 515.28 | F41: 495.57 | G41: 482.78 | H41: 463.07 | I41: 528.07 | J41: 547.78 | K41: 560.57 | L41: 535 | M41: 502.5 | N41: 9990000 | O41: 0.48%
A42: 32 | B42: Telecom | C42: BHARTIARTL | D42: 304.35 | E42: 304.23 | F42: 299.77 | G42: 295.18 | H42: 290.72 | I42: 308.82 | J42: 313.28 | K42: 317.87 | L42: 308.7 | M42: 299.65 | N42: 38783800 | O42: -1.50%
A43: 33 | B43: Capital_Goods | C43: BHEL | D43: 66.30 | E43: 65.98 | F43: 64.87 | G43: 63.43 | H43: 62.32 | I43: 67.42 | J43: 68.53 | K43: 69.97 | L43: 67.1 | M43: 64.55 | N43: 54892500 | O43: -3.37%
A44: 34 | B44: Pharma | C44: BIOCON | D44: 612.65 | E44: 614.05 | F44: 603.10 | G44: 593.55 | H44: 582.60 | I44: 623.60 | J44: 634.55 | K44: 644.10 | L44: 625 | M44: 604.5 | N44: 5766300 | O44: -2.17%
A45: 35 | B45: Automobile | C45: BOSCHLTD | D45: 18559.65 | E45: 18526.50 | F45: 18433.15 | G45: 18306.65 | H45: 18213.30 | I45: 18653.00 | J45: 18746.35 | K45: 18872.85 | L45: 18619.85 | M45: 18400 | N45: 179130 | O45: -1.65%
A46: 36 | B46: Oil_Gas | C46: BPCL | D46: 326.15 | E46: 325.58 | F46: 321.17 | G46: 316.18 | H46: 311.77 | I46: 330.57 | J46: 334.98 | K46: 339.97 | L46: 330 | M46: 320.6 | N46: 12675600 | O46: 2.53%
A47: 37 | B47: FMCG | C47: BRITANNIA | D47: 3021.05 | E47: 3003.87 | F47: 2979.73 | G47: 2938.42 | H47: 2914.28 | I47: 3045.18 | J47: 3069.32 | K47: 3110.63 | L47: 3028 | M47: 2962.55 | N47: 2856200 | O47: -0.56%
A48: 38 | B48: Pharma | C48: CADILAHC | D48: 351.10 | E48: 352.65 | F48: 348.30 | G48: 345.50 | H48: 341.15 | I48: 355.45 | J48: 359.80 | K48: 362.60 | L48: 357 | M48: 349.85 | N48: 8236800 | O48: 2.65%
A49: 39 | B49: Banking | C49: CANBK | D49: 248.20 | E49: 248.87 | F49: 241.28 | G49: 234.37 | H49: 226.78 | I49: 255.78 | J49: 263.37 | K49: 270.28 | L49: 256.45 | M49: 241.95 | N49: 11280000 | O49: -0.58%
A50: 40 | B50: Others | C50: CANFINHOME | D50: 240.70 | E50: 239.25 | F50: 233.70 | G50: 226.70 | H50: 221.15 | I50: 246.25 | J50: 251.80 | K50: 258.80 | L50: 244.8 | M50: 232.25 | N50: 4009350 | O50: -3.27%
A51: 41 | B51: Finance | C51: CAPF | D51: 502.65 | E51: 499.97 | F51: 491.78 | G51: 480.92 | H51: 472.73 | I51: 510.83 | J51: 519.02 | K51: 529.88 | L51: 508.15 | M51: 489.1 | N51: 6504200 | O51: -0.72%
A52: 42 | B52: Oil_Gas | C52: CASTROLIND | D52: 145.45 | E52: 146.27 | F52: 144.13 | G52: 142.82 | H52: 140.68 | I52: 147.58 | J52: 149.72 | K52: 151.03 | L52: 148.4 | M52: 144.95 | N52: 6425000 | O52: 0.39%
A53: 43 | B53: Automobile | C53: CEATLTD | D53: 1253.10 | E53: 1255.90 | F53: 1234.80 | G53: 1216.50 | H53: 1195.40 | I53: 1274.20 | J53: 1295.30 | K53: 1313.60 | L53: 1277 | M53: 1237.6 | N53: 821250 | O53: -0.02%
A54: 44 | B54: Textile | C54: CENTURYTEX | D54: 874.70 | E54: 867.90 | F54: 855.80 | G54: 836.90 | H54: 824.80 | I54: 886.80 | J54: 898.90 | K54: 917.80 | L54: 880 | M54: 849 | N54: 4516350 | O54: -1.53%
A55: 45 | B55: Power | C55: CESC | D55: 699.70 | E55: 698.08 | F55: 690.22 | G55: 680.73 | H55: 672.87 | I55: 707.57 | J55: 715.43 | K55: 724.92 | L55: 705.95 | M55: 688.6 | N55: 1136300 | O55: -1.01%
A56: 46 | B56: Power | C56: CGPOWER | D56: 37.70 | E56: 37.62 | F56: 36.88 | G56: 36.07 | H56: 35.33 | I56: 38.43 | J56: 39.17 | K56: 39.98 | L56: 38.35 | M56: 36.8 | N56: 46092000 | O56: 0.47%
A57: 47 | B57: Others | C57: CHENNPETRO | D57: 271.70 | E57: 272.03 | F57: 267.32 | G57: 262.93 | H57: 258.22 | I57: 276.42 | J57: 281.13 | K57: 285.52 | L57: 276.75 | M57: 267.65 | N57: 845400 | O57: -1.16%
A58: 48 | B58: Others | C58: CHOLAFIN | D58: 1231.75 | E58: 1221.25 | F58: 1201.50 | G58: 1171.25 | H58: 1151.50 | I58: 1251.50 | J58: 1271.25 | K58: 1301.50 | L58: 1241 | M58: 1191 | N58: 576500 | O58: 0.87%
A59: 49 | B59: Pharma | C59: CIPLA | D59: 515.05 | E59: 519.35 | F59: 508.35 | G59: 501.65 | H59: 490.65 | I59: 526.05 | J59: 537.05 | K59: 543.75 | L59: 530.35 | M59: 512.65 | N59: 8601000 | O59: 1.38%
A60: 50 | B60: Others | C60: COALINDIA | D60: 237.50 | E60: 237.95 | F60: 235.10 | G60: 232.70 | H60: 229.85 | I60: 240.35 | J60: 243.20 | K60: 245.60 | L60: 240.8 | M60: 235.55 | N60: 54612800 | O60: 1.37%
A61: 51 | B61: FMCG | C61: COLPAL | D61: 1231.65 | E61: 1226.92 | F61: 1210.03 | G61: 1188.42 | H61: 1171.53 | I61: 1248.53 | J61: 1265.42 | K61: 1287.03 | L61: 1243.8 | M61: 1205.3 | N61: 1163400 | O61: 1.40%
A62: 52 | B62: Others | C62: CONCOR | D62: 664.20 | E62: 663.00 | F62: 659.90 | G62: 655.60 | H62: 652.50 | I62: 667.30 | J62: 670.40 | K62: 674.70 | L62: 666.1 | M62: 658.7 | N62: 3028750 | O62: -0.21%
A63: 53 | B63: Capital_Goods | C63: CUMMINSIND | D63: 786.05 | E63: 785.88 | F63: 777.77 | G63: 769.48 | H63: 761.37 | I63: 794.17 | J63: 802.28 | K63: 810.57 | L63: 794 | M63: 777.6 | N63: 1551900 | O63: 0.64%
A64: 54 | B64: FMCG | C64: DABUR | D64: 413.10 | E64: 410.65 | F64: 405.60 | G64: 398.10 | H64: 393.05 | I64: 418.15 | J64: 423.20 | K64: 430.70 | L64: 415.7 | M64: 403.15 | N64: 10607500 | O64: -2.03%
A65: 55 | B65: Banking | C65: DCBBANK | D65: 154.65 | E65: 153.85 | F65: 151.40 | G65: 148.15 | H65: 145.70 | I65: 157.10 | J65: 159.55 | K65: 162.80 | L65: 156.3 | M65: 150.6 | N65: 4473000 | O65: -7.02%
A66: 56 | B66: Finance | C66: DHFL | D66: 200.90 | E66: 202.07 | F66: 195.98 | G66: 191.07 | H66: 184.98 | I66: 206.98 | J66: 213.07 | K66: 217.98 | L66: 208.15 | M66: 197.15 | N66: 22638000 | O66: 1.04%
A67: 57 | B67: Media | C67: DISHTV | D67: 33.65 | E67: 33.75 | F67: 33.00 | G67: 32.35 | H67: 31.60 | I67: 34.40 | J67: 35.15 | K67: 35.80 | L67: 34.5 | M67: 33.1 | N67: 64280000 | O67: -0.69%
A68: 58 | B68: Pharma | C68: DIVISLAB | D68: 1496.60 | E68: 1486.33 | F68: 1468.97 | G68: 1441.33 | H68: 1423.97 | I68: 1513.97 | J68: 1531.33 | K68: 1558.97 | L68: 1503.7 | M68: 1458.7 | N68: 3842400 | O68: -2.77%
A69: 59 | B69: Realty | C69: DLF | D69: 173.20 | E69: 170.75 | F69: 167.65 | G69: 162.10 | H69: 159.00 | I69: 176.30 | J69: 179.40 | K69: 184.95 | L69: 173.85 | M69: 165.2 | N69: 26087600 | O69: -0.68%
A70: 60 | B70: Pharma | C70: DRREDDY | D70: 2697.75 | E70: 2687.02 | F70: 2656.93 | G70: 2616.12 | H70: 2586.03 | I70: 2727.83 | J70: 2757.92 | K70: 2798.73 | L70: 2717.1 | M70: 2646.2 | N70: 3393750 | O70: 1.02%
A71: 61 | B71: Automobile | C71: EICHERMOT | D71: 22394.25 | E71: 22341.73 | F71: 22103.52 | G71: 21812.78 | H71: 21574.57 | I71: 22632.47 | J71: 22870.68 | K71: 23161.42 | L71: 22579.95 | M71: 22051 | N71: 259275 | O71: 1.39%
A72: 62 | B72: Infrastructure | C72: ENGINERSIN | D72: 112.00 | E72: 112.22 | F72: 110.73 | G72: 109.47 | H72: 107.98 | I72: 113.48 | J72: 114.97 | K72: 116.23 | L72: 113.7 | M72: 110.95 | N72: 6146400 | O72: 1.12%
A73: 63 | B73: Finance | C73: EQUITAS | D73: 108.95 | E73: 110.30 | F73: 106.50 | G73: 104.05 | H73: 100.25 | I73: 112.75 | J73: 116.55 | K73: 119.00 | L73: 114.1 | M73: 107.85 | N73: 9800000 | O73: 0.08%
A74: 64 | B74: Automobile | C74: ESCORTS | D74: 629.50 | E74: 629.12 | F74: 618.23 | G74: 606.97 | H74: 596.08 | I74: 640.38 | J74: 651.27 | K74: 662.53 | L74: 640 | M74: 617.85 | N74: 4952200 | O74: 2.48%
A75: 65 | B75: Automobile | C75: EXIDEIND | D75: 250.60 | E75: 250.10 | F75: 247.65 | G75: 244.70 | H75: 242.25 | I75: 253.05 | J75: 255.50 | K75: 258.45 | L75: 252.55 | M75: 247.15 | N75: 5906000 | O75: -0.77%
A76: 66 | B76: Banking | C76: FEDERALBNK | D76: 83.65 | E76: 83.62 | F76: 81.33 | G76: 79.02 | H76: 76.73 | I76: 85.93 | J76: 88.22 | K76: 90.53 | L76: 85.9 | M76: 81.3 | N76: 47359500 | O76: -1.45%
A77: 67 | B77: Oil_Gas | C77: GAIL | D77: 336.35 | E77: 338.75 | F77: 329.85 | G77: 323.35 | H77: 314.45 | I77: 345.25 | J77: 354.15 | K77: 360.65 | L77: 347.65 | M77: 332.25 | N77: 18426303 | O77: 1.99%
A78: 68 | B78: Pharma | C78: GLENMARK | D78: 645.00 | E78: 642.20 | F78: 632.80 | G78: 620.60 | H78: 611.20 | I78: 654.40 | J78: 663.80 | K78: 676.00 | L78: 651.6 | M78: 630 | N78: 4312000 | O78: -4.37%
A79: 69 | B79: Infrastructure | C79: GMRINFRA | D79: 15.25 | E79: 15.30 | F79: 15.10 | G79: 14.95 | H79: 14.75 | I79: 15.45 | J79: 15.65 | K79: 15.80 | L79: 15.5 | M79: 15.15 | N79: 175410000 | O79: 0.36%
A80: 70 | B80: Others | C80: GODFRYPHLP | D80: 891.40 | E80: 898.82 | F80: 876.88 | G80: 862.37 | H80: 840.43 | I80: 913.33 | J80: 935.27 | K80: 949.78 | L80: 920.75 | M80: 884.3 | N80: 512400 | O80: -0.14%
A81: 71 | B81: FMCG | C81: GODREJCP | D81: 754.70 | E81: 752.75 | F81: 745.80 | G81: 736.90 | H81: 729.95 | I81: 761.65 | J81: 768.60 | K81: 777.50 | L81: 759.7 | M81: 743.85 | N81: 5142000 | O81: -1.66%
A82: 72 | B82: FMCG | C82: GODREJIND | D82: 543.00 | E82: 545.32 | F82: 535.68 | G82: 528.37 | H82: 518.73 | I82: 552.63 | J82: 562.27 | K82: 569.58 | L82: 554.95 | M82: 538 | N82: 1416000 | O82: -2.58%
A83: 73 | B83: Cement | C83: GRASIM | D83: 806.25 | E83: 804.50 | F83: 797.55 | G83: 788.85 | H83: 781.90 | I83: 813.20 | J83: 820.15 | K83: 828.85 | L83: 811.45 | M83: 795.8 | N83: 8689500 | O83: -0.05%
A84: 74 | B84: Others | C84: GSFC | D84: 106.90 | E84: 105.57 | F84: 103.83 | G84: 100.77 | H84: 99.03 | I84: 108.63 | J84: 110.37 | K84: 113.43 | L84: 107.3 | M84: 102.5 | N84: 15720400 | O84: -1.05%
A85: 75 | B85: Others | C85: HAVELLS | D85: 680.35 | E85: 680.53 | F85: 675.72 | G85: 671.08 | H85: 666.27 | I85: 685.17 | J85: 689.98 | K85: 694.62 | L85: 685.35 | M85: 675.9 | N85: 4875000 | O85: -0.35%
A86: 76 | B86: Technology | C86: HCLTECH | D86: 965.70 | E86: 968.62 | F86: 932.23 | G86: 898.77 | H86: 862.38 | I86: 1002.08 | J86: 1038.47 | K86: 1071.93 | L86: 1005 | M86: 935.15 | N86: 9870000 | O86: 14.48%
A87: 77 | B87: Finance | C87: HDFC | D87: 1961.50 | E87: 1955.70 | F87: 1942.60 | G87: 1923.70 | H87: 1910.60 | I87: 1974.60 | J87: 1987.70 | K87: 2006.60 | L87: 1968.8 | M87: 1936.8 | N87: 25610500 | O87: 1.91%
A88: 78 | B88: Banking | C88: HDFCBANK | D88: 2113.00 | E88: 2107.13 | F88: 2088.92 | G88: 2064.83 | H88: 2046.62 | I88: 2131.22 | J88: 2149.43 | K88: 2173.52 | L88: 2125.35 | M88: 2083.05 | N88: 12853750 | O88: 7.42%
A89: 79 | B89: Automobile | C89: HEROMOTOCO | D89: 3076.85 | E89: 3059.85 | F89: 3037.00 | G89: 2997.15 | H89: 2974.30 | I89: 3099.70 | J89: 3122.55 | K89: 3162.40 | L89: 3082.7 | M89: 3020 | N89: 1262400 | O89: 0.65%
A90: 80 | B90: Technology | C90: HEXAWARE | D90: 315.70 | E90: 315.95 | F90: 311.25 | G90: 306.80 | H90: 302.10 | I90: 320.40 | J90: 325.10 | K90: 329.55 | L90: 320.65 | M90: 311.5 | N90: 3943500 | O90: 0.50%
A91: 81 | B91: Metals | C91: HINDALCO | D91: 219.80 | E91: 219.45 | F91: 217.10 | G91: 214.40 | H91: 212.05 | I91: 222.15 | J91: 224.50 | K91: 227.20 | L91: 221.8 | M91: 216.75 | N91: 31948000 | O91: 1.93%
A92: 82 | B92: Oil_Gas | C92: HINDPETRO | D92: 225.90 | E92: 226.88 | F92: 223.12 | G92: 220.33 | H92: 216.57 | I92: 229.67 | J92: 233.43 | K92: 236.22 | L92: 230.65 | M92: 224.1 | N92: 19583550 | O92: 0.64%
A93: 83 | B93: FMCG | C93: HINDUNILVR | D93: 1833.35 | E93: 1824.42 | F93: 1808.93 | G93: 1784.52 | H93: 1769.03 | I93: 1848.83 | J93: 1864.32 | K93: 1888.73 | L93: 1839.9 | M93: 1800 | N93: 9844800 | O93: 2.29%
A94: 84 | B94: Metals | C94: HINDZINC | D94: 271.80 | E94: 270.48 | F94: 268.12 | G94: 264.43 | H94: 262.07 | I94: 274.17 | J94: 276.53 | K94: 280.22 | L94: 272.85 | M94: 266.8 | N94: 5731200 | O94: 0.45%
A95: 85 | B95: Finance | C95: IBULHSGFIN | D95: 720.40 | E95: 727.27 | F95: 705.43 | G95: 690.47 | H95: 668.63 | I95: 742.23 | J95: 764.07 | K95: 779.03 | L95: 749.1 | M95: 712.3 | N95: 19109500 | O95: 0.36%
A96: 86 | B96: Banking | C96: ICICIBANK | D96: 352.80 | E96: 350.83 | F96: 348.07 | G96: 343.33 | H96: 340.57 | I96: 355.57 | J96: 358.33 | K96: 363.07 | L96: 353.6 | M96: 346.1 | N96: 86658000 | O96: 0.74%
A97: 87 | B97: Others | C97: ICICIPRULI | D97: 314.75 | E97: 313.72 | F97: 310.43 | G97: 306.12 | H97: 302.83 | I97: 318.03 | J97: 321.32 | K97: 325.63 | L97: 317 | M97: 309.4 | N97: 3456700 | O97: -6.08%
A98: 88 | B98: Banking | C98: IDBI | D98: 60.30 | E98: 60.27 | F98: 60.03 | G98: 59.77 | H98: 59.53 | I98: 60.53 | J98: 60.77 | K98: 61.03 | L98: 60.5 | M98: 60 | N98: 38170000 | O98: 3.13%
A99: 89 | B99: Telecom | C99: IDEA | D99: 33.80 | E99: 33.82 | F99: 33.23 | G99: 32.67 | H99: 32.08 | I99: 34.38 | J99: 34.97 | K99: 35.53 | L99: 34.4 | M99: 33.25 | N99: 143576000 | O99: -0.29%
A100: 90 | B100: Finance | C100: IDFC | D100: 37.95 | E100: 37.92 | F100: 37.43 | G100: 36.92 | H100: 36.43 | I100: 38.43 | J100: 38.92 | K100: 39.43 | L100: 38.4 | M100: 37.4 | N100: 106814400 | O100: -0.21%
A101: 91 | B101: Banking | C101: IDFCBANK | D101: 36.60 | E101: 36.48 | F101: 35.82 | G101: 35.03 | H101: 34.37 | I101: 37.27 | J101: 37.93 | K101: 38.72 | L101: 37.15 | M101: 35.7 | N101: 138159000 | O101: 0.35%
A102: 92 | B102: Finance | C102: IFCI | D102: 12.75 | E102: 12.65 | F102: 12.45 | G102: 12.15 | H102: 11.95 | I102: 12.95 | J102: 13.15 | K102: 13.45 | L102: 12.85 | M102: 12.35 | N102: 48675000 | O102: 0.21%
A103: 93 | B103: Oil_Gas | C103: IGL | D103: 249.80 | E103: 250.70 | F103: 246.05 | G103: 242.30 | H103: 237.65 | I103: 254.45 | J103: 259.10 | K103: 262.85 | L103: 255.35 | M103: 246.95 | N103: 5214000 | O103: 7.24%
A104: 94 | B104: Cement | C104: INDIACEM | D104: 86.55 | E104: 86.50 | F104: 84.45 | G104: 82.35 | H104: 80.30 | I104: 88.60 | J104: 90.65 | K104: 92.75 | L104: 88.55 | M104: 84.4 | N104: 18582000 | O104: 3.17%
A105: 95 | B105: Banking | C105: INDIANB | D105: 218.60 | E105: 216.73 | F105: 212.37 | G105: 206.13 | H105: 201.77 | I105: 222.97 | J105: 227.33 | K105: 233.57 | L105: 221.1 | M105: 210.5 | N105: 4726000 | O105: -4.37%
A106: 96 | B106: Others | C106: INDIGO | D106: 1025.50 | E106: 1018.83 | F106: 1002.67 | G106: 979.83 | H106: 963.67 | I106: 1041.67 | J106: 1057.83 | K106: 1080.67 | L106: 1035 | M106: 996 | N106: 2856000 | O106: -4.09%
A107: 97 | B107: Banking | C107: INDUSINDBK | D107: 1573.70 | E107: 1566.15 | F107: 1542.55 | G107: 1511.40 | H107: 1487.80 | I107: 1597.30 | J107: 1620.90 | K107: 1652.05 | L107: 1589.75 | M107: 1535 | N107: 5307300 | O107: 3.40%
A108: 98 | B108: Technology | C108: INFIBEAM | D108: 44.55 | E108: 44.80 | F108: 43.20 | G108: 41.85 | H108: 40.25 | I108: 46.15 | J108: 47.75 | K108: 49.10 | L108: 46.4 | M108: 43.45 | N108: 13456000 | O108: 1.97%
A109: 99 | B109: Telecom | C109: INFRATEL | D109: 254.00 | E109: 254.67 | F109: 251.78 | G109: 249.57 | H109: 246.68 | I109: 256.88 | J109: 259.77 | K109: 261.98 | L109: 257.55 | M109: 252.45 | N109: 8562300 | O109: 2.52%
A110: 100 | B110: Technology | C110: INFY | D110: 684.50 | E110: 679.83 | F110: 672.12 | G110: 659.73 | H110: 652.02 | I110: 692.22 | J110: 699.93 | K110: 712.32 | L110: 687.55 | M110: 667.45 | N110: 42868800 | O110: 1.84%
A111: 101 | B111: Oil_Gas | C111: IOC | D111: 129.35 | E111: 130.23 | F111: 127.52 | G111: 125.68 | H111: 122.97 | I111: 132.07 | J111: 134.78 | K111: 136.62 | L111: 132.95 | M111: 128.4 | N111: 103462000 | O111: 1.61%
A112: 102 | B112: Infrastructure | C112: IRB | D112: 144.00 | E112: 142.60 | F112: 139.90 | G112: 135.80 | H112: 133.10 | I112: 146.70 | J112: 149.40 | K112: 153.50 | L112: 145.3 | M112: 138.5 | N112: 8233200 | O112: -4.28%
A113: 103 | B113: FMCG | C113: ITC | D113: 275.40 | E113: 275.63 | F113: 274.07 | G113: 272.73 | H113: 271.17 | I113: 276.97 | J113: 278.53 | K113: 279.87 | L113: 277.2 | M113: 274.3 | N113: 77678400 | O113: 1.47%
A114: 104 | B114: Others | C114: JETAIRWAYS | D114: 271.85 | E114: 273.42 | F114: 262.33 | G114: 252.82 | H114: 241.73 | I114: 282.93 | J114: 294.02 | K114: 303.53 | L114: 284.5 | M114: 263.9 | N114: 4854800 | O114: -0.59%
A115: 105 | B115: Metals | C115: JINDALSTEL | D115: 147.45 | E115: 147.65 | F115: 143.80 | G115: 140.15 | H115: 136.30 | I115: 151.30 | J115: 155.15 | K115: 158.80 | L115: 151.5 | M115: 144 | N115: 27155250 | O115: -0.85%
A116: 106 | B116: Others | C116: JISLJALEQS | D116: 61.80 | E116: 61.47 | F116: 60.33 | G116: 58.87 | H116: 57.73 | I116: 62.93 | J116: 64.07 | K116: 65.53 | L116: 62.6 | M116: 60 | N116: 32949000 | O116: 0.44%
A117: 107 | B117: Realty | C117: JPASSOCIAT | D117: 6.70 | E117: 6.67 | F117: 6.48 | G117: 6.27 | H117: 6.08 | I117: 6.88 | J117: 7.07 | K117: 7.28 | L117: 6.85 | M117: 6.45 | N117: 110462000 | O117: -1.84%
A118: 108 | B118: Metals | C118: JSWSTEEL | D118: 303.65 | E118: 303.75 | F118: 298.75 | G118: 293.85 | H118: 288.85 | I118: 308.65 | J118: 313.65 | K118: 318.55 | L118: 308.75 | M118: 298.85 | N118: 49008000 | O118: 0.20%
A119: 109 | B119: Others | C119: JUBLFOOD | D119: 1249.65 | E119: 1267.48 | F119: 1209.12 | G119: 1168.58 | H119: 1110.22 | I119: 1308.02 | J119: 1366.38 | K119: 1406.92 | L119: 1325.85 | M119: 1226.95 | N119: 2197500 | O119: 2.52%
A120: 110 | B120: Others | C120: JUSTDIAL | D120: 471.55 | E120: 471.77 | F120: 463.88 | G120: 456.22 | H120: 448.33 | I120: 479.43 | J120: 487.32 | K120: 494.98 | L120: 479.65 | M120: 464.1 | N120: 2189600 | O120: -3.40%
A121: 111 | B121: Others | C121: KAJARIACER | D121: 432.50 | E121: 435.00 | F121: 424.20 | G121: 415.90 | H121: 405.10 | I121: 443.30 | J121: 454.10 | K121: 462.40 | L121: 445.8 | M121: 426.7 | N121: 2100200 | O121: 1.11%
A122: 112 | B122: Banking | C122: KOTAKBANK | D122: 1285.60 | E122: 1271.70 | F122: 1195.20 | G122: 1104.80 | H122: 1028.30 | I122: 1362.10 | J122: 1438.60 | K122: 1529.00 | L122: 1348.2 | M122: 1181.3 | N122: 12315200 | O122: 10.12%
A123: 113 | B123: Technology | C123: KPIT | D123: 208.25 | E123: 208.82 | F123: 205.03 | G123: 201.82 | H123: 198.03 | I123: 212.03 | J123: 215.82 | K123: 219.03 | L123: 212.6 | M123: 205.6 | N123: 5523750 | O123: -2.93%
A124: 114 | B124: Others | C124: KSCL | D124: 512.95 | E124: 511.37 | F124: 503.43 | G124: 493.92 | H124: 485.98 | I124: 520.88 | J124: 528.82 | K124: 538.33 | L124: 519.3 | M124: 501.85 | N124: 1096500 | O124: -0.68%
A125: 115 | B125: Banking | C125: KTKBANK | D125: 103.20 | E125: 103.30 | F125: 102.20 | G125: 101.20 | H125: 100.10 | I125: 104.30 | J125: 105.40 | K125: 106.40 | L125: 104.4 | M125: 102.3 | N125: 14104600 | O125: -4.68%
A126: 116 | B126: Finance | C126: L&TFH | D126: 138.70 | E126: 138.10 | F126: 135.40 | G126: 132.10 | H126: 129.40 | I126: 141.40 | J126: 144.10 | K126: 147.40 | L126: 140.8 | M126: 134.8 | N126: 21307500 | O126: 1.92%
A127: 117 | B127: Finance | C127: LICHSGFIN | D127: 441.15 | E127: 438.32 | F127: 433.78 | G127: 426.42 | H127: 421.88 | I127: 445.68 | J127: 450.22 | K127: 457.58 | L127: 442.85 | M127: 430.95 | N127: 8869300 | O127: -1.68%
A128: 118 | B128: Capital_Goods | C128: LT | D128: 1405.35 | E128: 1397.35 | F128: 1385.70 | G128: 1366.05 | H128: 1354.40 | I128: 1417.00 | J128: 1428.65 | K128: 1448.30 | L128: 1409 | M128: 1377.7 | N128: 9591750 | O128: 4.16%
A129: 119 | B129: Pharma | C129: LUPIN | D129: 843.45 | E129: 845.35 | F129: 832.75 | G129: 822.05 | H129: 809.45 | I129: 856.05 | J129: 868.65 | K129: 879.35 | L129: 857.95 | M129: 834.65 | N129: 8213800 | O129: -0.62%
A130: 120 | B130: Automobile | C130: M&M | D130: 723.75 | E130: 720.88 | F130: 714.77 | G130: 705.78 | H130: 699.67 | I130: 729.87 | J130: 735.98 | K130: 744.97 | L130: 727 | M130: 711.9 | N130: 14708000 | O130: -0.43%
A131: 121 | B131: Finance | C131: M&MFIN | D131: 419.65 | E131: 413.90 | F131: 406.20 | G131: 392.75 | H131: 385.05 | I131: 427.35 | J131: 435.05 | K131: 448.50 | L131: 421.6 | M131: 400.45 | N131: 9458750 | O131: 1.10%
A132: 122 | B132: Others | C132: MANAPPURAM | D132: 83.85 | E132: 83.03 | F132: 80.62 | G132: 77.38 | H132: 74.97 | I132: 86.27 | J132: 88.68 | K132: 91.92 | L132: 85.45 | M132: 79.8 | N132: 12576000 | O132: 2.95%
A133: 123 | B133: FMCG | C133: MARICO | D133: 357.00 | E133: 356.70 | F133: 354.05 | G133: 351.10 | H133: 348.45 | I133: 359.65 | J133: 362.30 | K133: 365.25 | L133: 359.35 | M133: 353.75 | N133: 9157200 | O133: 2.95%
A134: 124 | B134: Automobile | C134: MARUTI | D134: 7348.45 | E134: 7309.37 | F134: 7239.03 | G134: 7129.62 | H134: 7059.28 | I134: 7418.78 | J134: 7489.12 | K134: 7598.53 | L134: 7379.7 | M134: 7199.95 | N134: 2156400 | O134: -0.81%
A135: 125 | B135: FMCG | C135: MCDOWELL-N | D135: 638.75 | E135: 641.40 | F135: 630.95 | G135: 623.15 | H135: 612.70 | I135: 649.20 | J135: 659.65 | K135: 667.45 | L135: 651.85 | M135: 633.6 | N135: 8798750 | O135: -0.33%
A136: 126 | B136: Others | C136: MCX | D136: 713.45 | E136: 717.07 | F136: 707.18 | G136: 700.92 | H136: 691.03 | I136: 723.33 | J136: 733.22 | K136: 739.48 | L136: 726.95 | M136: 710.8 | N136: 2452100 | O136: 0.57%
A137: 127 | B137: Finance | C137: MFSL | D137: 430.30 | E137: 429.30 | F137: 422.60 | G137: 414.90 | H137: 408.20 | I137: 437.00 | J137: 443.70 | K137: 451.40 | L137: 436 | M137: 421.6 | N137: 2068800 | O137: -0.40%
A138: 128 | B138: Others | C138: MGL | D138: 863.85 | E138: 866.97 | F138: 854.93 | G138: 846.02 | H138: 833.98 | I138: 875.88 | J138: 887.92 | K138: 896.83 | L138: 879 | M138: 858.05 | N138: 937800 | O138: 1.76%
A139: 129 | B139: Technology | C139: MINDTREE | D139: 870.15 | E139: 865.47 | F139: 852.53 | G139: 834.92 | H139: 821.98 | I139: 883.08 | J139: 896.02 | K139: 913.63 | L139: 878.4 | M139: 847.85 | N139: 2192400 | O139: -0.73%
A140: 130 | B140: Automobile | C140: MOTHERSUMI | D140: 155.05 | E140: 156.25 | F140: 152.50 | G140: 149.95 | H140: 146.20 | I140: 158.80 | J140: 162.55 | K140: 165.10 | L140: 160 | M140: 153.7 | N140: 25350600 | O140: -0.51%
A141: 131 | B141: Automobile | C141: MRF | D141: 65867.30 | E141: 65661.73 | F141: 65224.67 | G141: 64582.03 | H141: 64144.97 | I141: 66304.37 | J141: 66741.43 | K141: 67384.07 | L141: 66098.8 | M141: 65019.1 | N141: 27800 | O141: 0.29%
A142: 132 | B142: Others | C142: MRPL | D142: 71.55 | E142: 71.65 | F142: 71.05 | G142: 70.55 | H142: 69.95 | I142: 72.15 | J142: 72.75 | K142: 73.25 | L142: 72.25 | M142: 71.15 | N142: 3787000 | O142: 8.48%
A143: 133 | B143: Finance | C143: MUTHOOTFIN | D143: 465.30 | E143: 455.07 | F143: 436.23 | G143: 407.17 | H143: 388.33 | I143: 484.13 | J143: 502.97 | K143: 532.03 | L143: 473.9 | M143: 426 | N143: 3745500 | O143: 54.42%
A144: 134 | B144: Others | C144: NATIONALUM | D144: 63.55 | E144: 63.37 | F144: 62.68 | G144: 61.82 | H144: 61.13 | I144: 64.23 | J144: 64.92 | K144: 65.78 | L144: 64.05 | M144: 62.5 | N144: 25360000 | O144: 0.00%
A145: 135 | B145: Others | C145: NBCC | D145: 51.75 | E145: 51.68 | F145: 50.77 | G145: 49.78 | H145: 48.87 | I145: 52.67 | J145: 53.58 | K145: 54.57 | L145: 52.6 | M145: 50.7 | N145: 38424000 | O145: 2.56%
A146: 136 | B146: Infrastructure | C146: NCC | D146: 80.25 | E146: 79.78 | F146: 78.17 | G146: 76.08 | H146: 74.47 | I146: 81.87 | J146: 83.48 | K146: 85.57 | L146: 81.4 | M146: 77.7 | N146: 48016000 | O146: -3.88%
A147: 137 | B147: Others | C147: NESTLEIND | D147: 10407.45 | E147: 10425.32 | F147: 10332.13 | G147: 10256.82 | H147: 10163.63 | I147: 10500.63 | J147: 10593.82 | K147: 10669.13 | L147: 10518.5 | M147: 10350 | N147: 279300 | O147: 1.69%
A148: 138 | B148: Power | C148: NHPC | D148: 26.25 | E148: 26.33 | F148: 26.07 | G148: 25.88 | H148: 25.62 | I148: 26.52 | J148: 26.78 | K148: 26.97 | L148: 26.6 | M148: 26.15 | N148: 18117000 | O148: -0.15%
A149: 139 | B149: Technology | C149: NIITTECH | D149: 1093.95 | E149: 1086.05 | F149: 1065.40 | G149: 1036.85 | H149: 1016.20 | I149: 1114.60 | J149: 1135.25 | K149: 1163.80 | L149: 1106.7 | M149: 1057.5 | N149: 1861500 | O149: -3.24%
A150: 140 | B150: Metals | C150: NMDC | D150: 92.45 | E150: 92.12 | F150: 90.73 | G150: 89.02 | H150: 87.63 | I150: 93.83 | J150: 95.22 | K150: 96.93 | L150: 93.5 | M150: 90.4 | N150: 19962000 | O150: -1.13%
A151: 141 | B151: Power | C151: NTPC | D151: 138.25 | E151: 138.50 | F151: 136.65 | G151: 135.05 | H151: 133.20 | I151: 140.10 | J151: 141.95 | K151: 143.55 | L151: 140.35 | M151: 136.9 | N151: 87396000 | O151: 3.55%
A152: 142 | B152: Technology | C152: OFSS | D152: 3590.00 | E152: 3587.55 | F152: 3564.10 | G152: 3538.20 | H152: 3514.75 | I152: 3613.45 | J152: 3636.90 | K152: 3662.80 | L152: 3611 | M152: 3561.65 | N152: 174750 | O152: -3.56%
A153: 143 | B153: Oil_Gas | C153: OIL | D153: 178.35 | E153: 179.35 | F153: 176.70 | G153: 175.05 | H153: 172.40 | I153: 181.00 | J153: 183.65 | K153: 185.30 | L153: 182 | M153: 177.7 | N153: 13606197 | O153: 8.51%
A154: 144 | B154: Oil_Gas | C154: ONGC | D154: 139.00 | E154: 138.95 | F154: 137.35 | G154: 135.70 | H154: 134.10 | I154: 140.60 | J154: 142.20 | K154: 143.85 | L154: 140.55 | M154: 137.3 | N154: 91590000 | O154: 0.61%
A155: 145 | B155: Banking | C155: ORIENTBANK | D155: 82.60 | E155: 82.98 | F155: 80.77 | G155: 78.93 | H155: 76.72 | I155: 84.82 | J155: 87.03 | K155: 88.87 | L155: 85.2 | M155: 81.15 | N155: 11018000 | O155: -5.32%
A156: 146 | B156: Textile | C156: PAGEIND | D156: 24388.70 | E156: 24438.83 | F156: 23969.87 | G156: 23551.03 | H156: 23082.07 | I156: 24857.67 | J156: 25326.63 | K156: 25745.47 | L156: 24907.8 | M156: 24020 | N156: 137925 | O156: 3.63%
A157: 147 | B157: Others | C157: PCJEWELLER | D157: 66.10 | E157: 65.08 | F157: 63.27 | G157: 60.43 | H157: 58.62 | I157: 67.92 | J157: 69.73 | K157: 72.57 | L157: 66.9 | M157: 62.25 | N157: 7590000 | O157: -3.77%
A158: 148 | B158: Pharma | C158: PEL | D158: 2095.90 | E158: 2097.67 | F158: 2058.73 | G158: 2021.57 | H158: 1982.63 | I158: 2134.83 | J158: 2173.77 | K158: 2210.93 | L158: 2136.6 | M158: 2060.5 | N158: 2800748 | O158: -0.05%
A159: 149 | B159: Oil_Gas | C159: PETRONET | D159: 210.95 | E159: 210.57 | F159: 206.78 | G159: 202.62 | H159: 198.83 | I159: 214.73 | J159: 218.52 | K159: 222.68 | L159: 214.35 | M159: 206.4 | N159: 12993000 | O159: -0.98%
A160: 150 | B160: Finance | C160: PFC | D160: 89.45 | E160: 89.40 | F160: 85.60 | G160: 81.75 | H160: 77.95 | I160: 93.25 | J160: 97.05 | K160: 100.90 | L160: 93.2 | M160: 85.55 | N160: 51206400 | O160: 5.77%
A161: 151 | B161: FMCG | C161: PIDILITIND | D161: 1145.10 | E161: 1142.55 | F161: 1130.95 | G161: 1116.80 | H161: 1105.20 | I161: 1156.70 | J161: 1168.30 | K161: 1182.45 | L161: 1154.15 | M161: 1128.4 | N161: 3126000 | O161: -1.34%
A162: 152 | B162: Banking | C162: PNB | D162: 66.30 | E162: 65.92 | F162: 64.88 | G162: 63.47 | H162: 62.43 | I162: 67.33 | J162: 68.37 | K162: 69.78 | L162: 66.95 | M162: 64.5 | N162: 108143000 | O162: -1.69%
A163: 153 | B163: Power | C163: POWERGRID | D163: 183.25 | E163: 183.57 | F163: 180.93 | G163: 178.62 | H163: 175.98 | I163: 185.88 | J163: 188.52 | K163: 190.83 | L163: 186.2 | M163: 181.25 | N163: 38184000 | O163: 3.69%
A164: 154 | B164: Power | C164: PTC | D164: 83.85 | E164: 83.82 | F164: 82.13 | G164: 80.42 | H164: 78.73 | I164: 85.53 | J164: 87.22 | K164: 88.93 | L164: 85.5 | M164: 82.1 | N164: 6712000 | O164: -8.31%
A165: 155 | B165: Others | C165: PVR | D165: 1494.90 | E165: 1494.97 | F165: 1474.93 | G165: 1454.97 | H165: 1434.93 | I165: 1514.93 | J165: 1534.97 | K165: 1554.93 | L165: 1515 | M165: 1475 | N165: 1288800 | O165: -1.29%
A166: 156 | B166: Cement | C166: RAMCOCEM | D166: 596.35 | E166: 593.43 | F166: 588.47 | G166: 580.58 | H166: 575.62 | I166: 601.32 | J166: 606.28 | K166: 614.17 | L166: 598.4 | M166: 585.55 | N166: 677600 | O166: -3.64%
A167: 157 | B167: Others | C167: RAYMOND | D167: 794.00 | E167: 787.32 | F167: 776.78 | G167: 759.57 | H167: 749.03 | I167: 804.53 | J167: 815.07 | K167: 832.28 | L167: 797.85 | M167: 770.1 | N167: 3826400 | O167: 1.59%
A168: 158 | B168: Banking | C168: RBLBANK | D168: 546.70 | E168: 545.95 | F168: 536.75 | G168: 526.80 | H168: 517.60 | I168: 555.90 | J168: 565.10 | K168: 575.05 | L168: 555.15 | M168: 536 | N168: 7311600 | O168: 0.18%
A169: 159 | B169: Telecom | C169: RCOM | D169: 15.80 | E169: 16.13 | F169: 15.22 | G169: 14.63 | H169: 13.72 | I169: 16.72 | J169: 17.63 | K169: 18.22 | L169: 17.05 | M169: 15.55 | N169: 77640000 | O169: -4.21%
A170: 160 | B170: Power | C170: RECLTD | D170: 105.00 | E170: 104.60 | F170: 102.55 | G170: 100.10 | H170: 98.05 | I170: 107.05 | J170: 109.10 | K170: 111.55 | L170: 106.65 | M170: 102.15 | N170: 48516000 | O170: 0.20%
A171: 161 | B171: Finance | C171: RELCAPITAL | D171: 209.80 | E171: 210.47 | F171: 203.03 | G171: 196.27 | H171: 188.83 | I171: 217.23 | J171: 224.67 | K171: 231.43 | L171: 217.9 | M171: 203.7 | N171: 12658500 | O171: 1.71%
A172: 162 | B172: Oil_Gas | C172: RELIANCE | D172: 1138.40 | E172: 1130.88 | F172: 1120.77 | G172: 1103.13 | H172: 1093.02 | I172: 1148.52 | J172: 1158.63 | K172: 1176.27 | L172: 1141 | M172: 1113.25 | N172: 42628500 | O172: 2.69%
A173: 163 | B173: Power | C173: RELINFRA | D173: 308.40 | E173: 304.37 | F173: 297.33 | G173: 286.27 | H173: 279.23 | I173: 315.43 | J173: 322.47 | K173: 333.53 | L173: 311.4 | M173: 293.3 | N173: 7827300 | O173: -3.68%
A174: 164 | B174: Others | C174: REPCOHOME | D174: 345.60 | E174: 343.60 | F174: 339.00 | G174: 332.40 | H174: 327.80 | I174: 350.20 | J174: 354.80 | K174: 361.40 | L174: 348.2 | M174: 337 | N174: 1431500 | O174: 1.98%
A175: 165 | B175: Power | C175: RPOWER | D175: 27.75 | E175: 27.60 | F175: 27.10 | G175: 26.45 | H175: 25.95 | I175: 28.25 | J175: 28.75 | K175: 29.40 | L175: 28.1 | M175: 26.95 | N175: 42827000 | O175: 0.45%
A176: 166 | B176: Metals | C176: SAIL | D176: 51.20 | E176: 51.78 | F176: 49.92 | G176: 48.63 | H176: 46.77 | I176: 53.07 | J176: 54.93 | K176: 56.22 | L176: 53.65 | M176: 50.5 | N176: 83580000 | O176: 3.89%
A177: 167 | B177: Banking | C177: SBIN | D177: 276.55 | E177: 275.52 | F177: 273.28 | G177: 270.02 | H177: 267.78 | I177: 278.78 | J177: 281.02 | K177: 284.28 | L177: 277.75 | M177: 272.25 | N177: 82782000 | O177: 1.90%
A178: 168 | B178: Cement | C178: SHREECEM | D178: 16380.95 | E178: 16292.32 | F178: 16164.63 | G178: 15948.32 | H178: 15820.63 | I178: 16508.63 | J178: 16636.32 | K178: 16852.63 | L178: 16420 | M178: 16076 | N178: 101600 | O178: -0.25%
A179: 169 | B179: Capital_Goods | C179: SIEMENS | D179: 953.95 | E179: 946.53 | F179: 929.02 | G179: 904.08 | H179: 886.57 | I179: 971.47 | J179: 988.98 | K179: 1013.92 | L179: 964.05 | M179: 921.6 | N179: 2272650 | O179: -0.79%
A180: 170 | B180: Banking | C180: SOUTHBANK | D180: 15.35 | E180: 15.30 | F180: 15.15 | G180: 14.95 | H180: 14.80 | I180: 15.50 | J180: 15.65 | K180: 15.85 | L180: 15.45 | M180: 15.1 | N180: 109497864 | O180: -0.03%
A181: 171 | B181: Others | C181: SREINFRA | D181: 30.85 | E181: 30.63 | F181: 30.07 | G181: 29.28 | H181: 28.72 | I181: 31.42 | J181: 31.98 | K181: 32.77 | L181: 31.2 | M181: 29.85 | N181: 11507000 | O181: -2.72%
A182: 172 | B182: Textile | C182: SRF | D182: 2126.00 | E182: 2119.52 | F182: 2095.38 | G182: 2064.77 | H182: 2040.63 | I182: 2150.13 | J182: 2174.27 | K182: 2204.88 | L182: 2143.65 | M182: 2088.9 | N182: 526000 | O182: 3.04%
A183: 173 | B183: Finance | C183: SRTRANSFIN | D183: 1099.40 | E183: 1101.42 | F183: 1083.83 | G183: 1068.27 | H183: 1050.68 | I183: 1116.98 | J183: 1134.57 | K183: 1150.13 | L183: 1119 | M183: 1085.85 | N183: 4137000 | O183: 1.70%
A184: 174 | B184: Pharma | C184: STAR | D184: 447.95 | E184: 448.20 | F184: 436.40 | G184: 424.85 | H184: 413.05 | I184: 459.75 | J184: 471.55 | K184: 483.10 | L184: 460 | M184: 436.65 | N184: 3812100 | O184: 4.32%
A185: 175 | B185: Pharma | C185: SUNPHARMA | D185: 413.05 | E185: 416.78 | F185: 406.57 | G185: 400.08 | H185: 389.87 | I185: 423.27 | J185: 433.48 | K185: 439.97 | L185: 427 | M185: 410.3 | N185: 61506500 | O185: -0.13%
A186: 176 | B186: Media | C186: SUNTV | D186: 596.50 | E186: 592.63 | F186: 583.87 | G186: 571.23 | H186: 562.47 | I186: 605.27 | J186: 614.03 | K186: 626.67 | L186: 601.4 | M186: 580 | N186: 7136000 | O186: -3.06%
A187: 177 | B187: Power | C187: SUZLON | D187: 5.20 | E187: 5.18 | F187: 5.07 | G187: 4.93 | H187: 4.82 | I187: 5.32 | J187: 5.43 | K187: 5.57 | L187: 5.3 | M187: 5.05 | N187: 297525000 | O187: 0.06%
A188: 178 | B188: Banking | C188: SYNDIBANK | D188: 31.50 | E188: 31.75 | F188: 30.90 | G188: 30.30 | H188: 29.45 | I188: 32.35 | J188: 33.20 | K188: 33.80 | L188: 32.6 | M188: 31.15 | N188: 24972000 | O188: 4.48%
A189: 179 | B189: Fertilisers | C189: TATACHEM | D189: 673.95 | E189: 670.68 | F189: 665.27 | G189: 656.58 | H189: 651.17 | I189: 679.37 | J189: 684.78 | K189: 693.47 | L189: 676.1 | M189: 662 | N189: 2784000 | O189: 0.65%
A190: 180 | B190: Telecom | C190: TATACOMM | D190: 523.65 | E190: 521.53 | F190: 515.02 | G190: 506.38 | H190: 499.87 | I190: 530.17 | J190: 536.68 | K190: 545.32 | L190: 528.05 | M190: 512.9 | N190: 2509400 | O190: -0.06%
A191: 181 | B191: Technology | C191: TATAELXSI | D191: 1011.75 | E191: 1010.90 | F191: 998.80 | G191: 985.85 | H191: 973.75 | I191: 1023.85 | J191: 1035.95 | K191: 1048.90 | L191: 1023 | M191: 997.95 | N191: 1294000 | O191: -1.31%
A192: 182 | B192: FMCG | C192: TATAGLOBAL | D192: 206.85 | E192: 206.73 | F192: 203.42 | G192: 199.98 | H192: 196.67 | I192: 210.17 | J192: 213.48 | K192: 216.92 | L192: 210.05 | M192: 203.3 | N192: 11007000 | O192: 2.15%
A193: 183 | B193: Automobile | C193: TATAMOTORS | D193: 163.05 | E193: 162.98 | F193: 161.17 | G193: 159.28 | H193: 157.47 | I193: 164.87 | J193: 166.68 | K193: 168.57 | L193: 164.8 | M193: 161.1 | N193: 61624500 | O193: 0.17%
A194: 184 | B194: Automobile | C194: TATAMTRDVR | D194: 89.40 | E194: 89.13 | F194: 88.17 | G194: 86.93 | H194: 85.97 | I194: 90.37 | J194: 91.33 | K194: 92.57 | L194: 90.1 | M194: 87.9 | N194: 26434600 | O194: -1.76%
A195: 185 | B195: Power | C195: TATAPOWER | D195: 79.70 | E195: 79.83 | F195: 78.57 | G195: 77.43 | H195: 76.17 | I195: 80.97 | J195: 82.23 | K195: 83.37 | L195: 81.1 | M195: 78.7 | N195: 44550000 | O195: -1.69%
A196: 186 | B196: Metals | C196: TATASTEEL | D196: 510.35 | E196: 510.07 | F196: 503.88 | G196: 497.42 | H196: 491.23 | I196: 516.53 | J196: 522.72 | K196: 529.18 | L196: 516.25 | M196: 503.6 | N196: 33577467 | O196: 0.28%
A197: 187 | B197: Technology | C197: TCS | D197: 2005.40 | E197: 1999.10 | F197: 1984.30 | G197: 1963.20 | H197: 1948.40 | I197: 2020.20 | J197: 2035.00 | K197: 2056.10 | L197: 2013.9 | M197: 1978 | N197: 11402750 | O197: 2.25%
A198: 188 | B198: Technology | C198: TECHM | D198: 697.25 | E198: 696.95 | F198: 687.70 | G198: 678.15 | H198: 668.90 | I198: 706.50 | J198: 715.75 | K198: 725.30 | L198: 706.2 | M198: 687.4 | N198: 12699600 | O198: 0.93%
A199: 189 | B199: FMCG | C199: TITAN | D199: 919.00 | E199: 913.23 | F199: 902.97 | G199: 886.93 | H199: 876.67 | I199: 929.27 | J199: 939.53 | K199: 955.57 | L199: 923.5 | M199: 897.2 | N199: 13642500 | O199: 4.39%
A200: 190 | B200: Pharma | C200: TORNTPHARM | D200: 1694.05 | E200: 1697.87 | F200: 1678.38 | G200: 1662.72 | H200: 1643.23 | I200: 1713.53 | J200: 1733.02 | K200: 1748.68 | L200: 1717.35 | M200: 1682.2 | N200: 349500 | O200: -4.38%
A201: 191 | B201: Power | C201: TORNTPOWER | D201: 257.95 | E201: 259.62 | F201: 254.38 | G201: 250.82 | H201: 245.58 | I201: 263.18 | J201: 268.42 | K201: 271.98 | L201: 264.85 | M201: 256.05 | N201: 2244000 | O201: -5.32%
A202: 192 | B202: Media | C202: TV18BRDCST | D202: 34.30 | E202: 34.12 | F202: 33.73 | G202: 33.17 | H202: 32.78 | I202: 34.68 | J202: 35.07 | K202: 35.63 | L202: 34.5 | M202: 33.55 | N202: 47506000 | O202: 0.93%
A203: 193 | B203: Automobile | C203: TVSMOTOR | D203: 544.15 | E203: 541.48 | F203: 537.22 | G203: 530.28 | H203: 526.02 | I203: 548.42 | J203: 552.68 | K203: 559.62 | L203: 545.75 | M203: 534.55 | N203: 5547000 | O203: 0.67%
A204: 194 | B204: FMCG | C204: UBL | D204: 1231.45 | E204: 1228.08 | F204: 1217.37 | G204: 1203.28 | H204: 1192.57 | I204: 1242.17 | J204: 1252.88 | K204: 1266.97 | L204: 1238.8 | M204: 1214 | N204: 2034200 | O204: -0.68%
A205: 195 | B205: Finance | C205: UJJIVAN | D205: 216.65 | E205: 217.05 | F205: 212.55 | G205: 208.45 | H205: 203.95 | I205: 221.15 | J205: 225.65 | K205: 229.75 | L205: 221.55 | M205: 212.95 | N205: 3193600 | O205: -2.20%
A206: 196 | B206: Cement | C206: ULTRACEMCO | D206: 3953.00 | E206: 3940.28 | F206: 3906.52 | G206: 3860.03 | H206: 3826.27 | I206: 3986.77 | J206: 4020.53 | K206: 4067.02 | L206: 3974.05 | M206: 3893.8 | N206: 2054000 | O206: -1.05%
... 24 more rows

Sheet Cash Intra
M5: Back to Main Page
A6: FOR INTRA DAY TRADING | K6: =Main!B10 -> 2018-12-10
A8: Sr.no | B8: Scrip | C8: CLOSE RATE | D8: Pivot Point | E8: Supports | H8: Resistances
C9: Point | E9: S1 | F9: S2 | G9: S3 | H9: R1 | I9: R2 | J9: R3 | K9: HIGH | L9: LOW | M9: Total Trade Quanity in Lakhs
A10: 1 | B10: Nifty 50 | C10: 10693.7 | D10: 10665.87 | E10: 10627.18 | F10: 10560.67 | G10: 10521.98 | H10: 10732.38 | I10: 10771.07 | J10: 10837.58 | K10: 10704.55 | L10: 10599.35
A11: 2 | B11: Nifty Bank | C11: 26594.3 | D11: 26502.03 | E11: 26344.37 | F11: 26094.43 | G11: 25936.77 | H11: 26751.97 | I11: 26909.63 | J11: 27159.57 | K11: 26659.7 | L11: 26252.1
A12: 3 | B12: Nifty CPSE | C12: 1932.2 | D12: 1942.52 | E12: 1918.53 | F12: 1904.87 | G12: 1880.88 | H12: 1956.18 | I12: 1980.17 | J12: 1993.83 | K12: 1966.5 | L12: 1928.85
A13: 4 | B13: Nifty Infra | C13: 3036.95 | D13: 3029.30 | E13: 3017.55 | F13: 2998.15 | G13: 2986.40 | H13: 3048.70 | I13: 3060.45 | J13: 3079.85 | K13: 3041.05 | L13: 3009.9
A14: 5 | B14: Nifty IT | C14: 14662.9 | D14: 14608.30 | E14: 14516.55 | F14: 14370.20 | G14: 14278.45 | H14: 14754.65 | I14: 14846.40 | J14: 14992.75 | K14: 14700.05 | L14: 14461.95
A15: 6 | B15: Nifty PSE | C15: 3161.4 | D15: 3175.77 | E15: 3140.33 | F15: 3119.27 | G15: 3083.83 | H15: 3196.83 | I15: 3232.27 | J15: 3253.33 | K15: 3211.2 | L15: 3154.7
A16: 7 | B16: Nifty Midcap 50 | C16: 4630.85 | D16: 4621.80 | E16: 4588.35 | F16: 4545.85 | G16: 4512.40 | H16: 4664.30 | I16: 4697.75 | J16: 4740.25 | K16: 4655.25 | L16: 4579.3
A17: 8 | B17: ABB | C17: 1395.9 | D17: 1393.35 | E17: 1377.70 | F17: 1359.50 | G17: 1343.85 | H17: 1411.55 | I17: 1427.20 | J17: 1445.40 | K17: 1409 | L17: 1375.15 | M17: 0.55427
A18: 9 | B18: ACC | C18: 1443.05 | D18: 1438.90 | E18: 1430.15 | F18: 1417.25 | G18: 1408.50 | H18: 1451.80 | I18: 1460.55 | J18: 1473.45 | K18: 1447.65 | L18: 1426 | M18: 3.06417
A19: 10 | B19: AIAENG | C19: 1676.65 | D19: 1679.35 | E19: 1655.00 | F19: 1633.35 | G19: 1609.00 | H19: 1701.00 | I19: 1725.35 | J19: 1747.00 | K19: 1703.7 | L19: 1657.7 | M19: 0.07372
A20: 11 | B20: AUBANK | C20: 611.35 | D20: 616.15 | E20: 604.30 | F20: 597.25 | G20: 585.40 | H20: 623.20 | I20: 635.05 | J20: 642.10 | K20: 628 | L20: 609.1 | M20: 3.55827
A21: 12 | B21: ADANIENT | C21: 152.9 | D21: 152.42 | E21: 150.48 | F21: 148.07 | G21: 146.13 | H21: 154.83 | I21: 156.77 | J21: 159.18 | K21: 154.35 | L21: 150 | M21: 74.11261
A22: 13 | B22: ADANIPORTS | C22: 373.45 | D22: 370.60 | E22: 366.60 | F22: 359.75 | G22: 355.75 | H22: 377.45 | I22: 381.45 | J22: 388.30 | K22: 374.6 | L22: 363.75 | M22: 32.86454
A23: 14 | B23: ADANIPOWER | C23: 52.55 | D23: 52.33 | E23: 51.67 | F23: 50.78 | G23: 50.12 | H23: 53.22 | I23: 53.88 | J23: 54.77 | K23: 53 | L23: 51.45 | M23: 96.94543
A24: 15 | B24: ABFRL | C24: 181.6 | D24: 181.85 | E24: 180.00 | F24: 178.40 | G24: 176.55 | H24: 183.45 | I24: 185.30 | J24: 186.90 | K24: 183.7 | L24: 180.25 | M24: 2.80964
A25: 16 | B25: AJANTPHARM | C25: 1049.7 | D25: 1070.23 | E25: 1024.47 | F25: 999.23 | G25: 953.47 | H25: 1095.47 | I25: 1141.23 | J25: 1166.47 | K25: 1116 | L25: 1045 | M25: 3.91625
A26: 17 | B26: ALKEM | C26: 1894 | D26: 1897.62 | E26: 1886.38 | F26: 1878.77 | G26: 1867.53 | H26: 1905.23 | I26: 1916.47 | J26: 1924.08 | K26: 1908.85 | L26: 1890 | M26: 0.12078
A27: 18 | B27: AMARAJABAT | C27: 703.25 | D27: 702.92 | E27: 695.33 | F27: 687.42 | G27: 679.83 | H27: 710.83 | I27: 718.42 | J27: 726.33 | K27: 710.5 | L27: 695 | M27: 2.54883
A28: 19 | B28: AMBUJACEM | C28: 212.45 | D28: 211.18 | E28: 208.87 | F28: 205.28 | G28: 202.97 | H28: 214.77 | I28: 217.08 | J28: 220.67 | K28: 213.5 | L28: 207.6 | M28: 10.40049
A29: 20 | B29: APOLLOHOSP | C29: 1209 | D29: 1197.13 | E29: 1179.17 | F29: 1149.33 | G29: 1131.37 | H29: 1226.97 | I29: 1244.93 | J29: 1274.77 | K29: 1215.1 | L29: 1167.3 | M29: 6.65538
A30: 21 | B30: APOLLOTYRE | C30: 226.4 | D30: 225.70 | E30: 223.25 | F30: 220.10 | G30: 217.65 | H30: 228.85 | I30: 231.30 | J30: 234.45 | K30: 228.15 | L30: 222.55 | M30: 23.88836
A31: 22 | B31: ARVIND | C31: 100.3 | D31: 100.55 | E31: 98.55 | F31: 96.80 | G31: 94.80 | H31: 102.30 | I31: 104.30 | J31: 106.05 | K31: 102.55 | L31: 98.8 | M31: 75.58009
A32: 23 | B32: ASHOKLEY | C32: 102.9 | D32: 102.62 | E32: 101.53 | F32: 100.17 | G32: 99.08 | H32: 103.98 | I32: 105.07 | J32: 106.43 | K32: 103.7 | L32: 101.25 | M32: 160.73694
A33: 24 | B33: ASIANPAINT | C33: 1318.65 | D33: 1313.68 | E33: 1303.37 | F33: 1288.08 | G33: 1277.77 | H33: 1328.97 | I33: 1339.28 | J33: 1354.57 | K33: 1324 | L33: 1298.4 | M33: 10.37026
A34: 25 | B34: AUROPHARMA | C34: 751.35 | D34: 751.05 | E34: 733.30 | F34: 715.25 | G34: 697.50 | H34: 769.10 | I34: 786.85 | J34: 804.90 | K34: 768.8 | L34: 733 | M34: 57.00335
A35: 26 | B35: DMART | C35: 1513.15 | D35: 1510.37 | E35: 1499.88 | F35: 1486.62 | G35: 1476.13 | H35: 1523.63 | I35: 1534.12 | J35: 1547.38 | K35: 1520.85 | L35: 1497.1 | M35: 3.99271
A36: 27 | B36: AXISBANK | C36: 603.95 | D36: 601.93 | E36: 594.37 | F36: 584.78 | G36: 577.22 | H36: 611.52 | I36: 619.08 | J36: 628.67 | K36: 609.5 | L36: 592.35 | M36: 122.62327
A37: 28 | B37: BAJAJ-AUTO | C37: 2786.2 | D37: 2765.17 | E37: 2737.33 | F37: 2688.47 | G37: 2660.63 | H37: 2814.03 | I37: 2841.87 | J37: 2890.73 | K37: 2793 | L37: 2716.3 | M37: 4.17465
A38: 29 | B38: BAJFINANCE | C38: 2486.35 | D38: 2466.25 | E38: 2434.75 | F38: 2383.15 | G38: 2351.65 | H38: 2517.85 | I38: 2549.35 | J38: 2600.95 | K38: 2497.75 | L38: 2414.65 | M38: 14.7872
A39: 30 | B39: BAJAJFINSV | C39: 5849.9 | D39: 5797.98 | E39: 5720.42 | F39: 5590.93 | G39: 5513.37 | H39: 5927.47 | I39: 6005.03 | J39: 6134.52 | K39: 5875.55 | L39: 5668.5 | M39: 2.20039
A40: 31 | B40: BALKRISIND | C40: 890 | D40: 892.32 | E40: 877.78 | F40: 865.57 | G40: 851.03 | H40: 904.53 | I40: 919.07 | J40: 931.28 | K40: 906.85 | L40: 880.1 | M40: 7.51168
A41: 32 | B41: BANKBARODA | C41: 106.4 | D41: 105.45 | E41: 103.90 | F41: 101.40 | G41: 99.85 | H41: 107.95 | I41: 109.50 | J41: 112.00 | K41: 107 | L41: 102.95 | M41: 165.65178
A42: 33 | B42: BANKINDIA | C42: 79.55 | D42: 79.90 | E42: 77.95 | F42: 76.35 | G42: 74.40 | H42: 81.50 | I42: 83.45 | J42: 85.05 | K42: 81.85 | L42: 78.3 | M42: 90.34326
A43: 34 | B43: BATAINDIA | C43: 1059.9 | D43: 1057.98 | E43: 1041.97 | F43: 1024.03 | G43: 1008.02 | H43: 1075.92 | I43: 1091.93 | J43: 1109.87 | K43: 1074 | L43: 1040.05 | M43: 12.79061
A44: 35 | B44: BERGEPAINT | C44: 310.9 | D44: 310.77 | E44: 307.78 | F44: 304.67 | G44: 301.68 | H44: 313.88 | I44: 316.87 | J44: 319.98 | K44: 313.75 | L44: 307.65 | M44: 4.05226
A45: 36 | B45: BEL | C45: 80.1 | D45: 80.88 | E45: 79.22 | F45: 78.33 | G45: 76.67 | H45: 81.77 | I45: 83.43 | J45: 84.32 | K45: 82.55 | L45: 80 | M45: 72.72768
A46: 37 | B46: BHARATFIN | C46: 991.3 | D46: 986.10 | E46: 974.70 | F46: 958.10 | G46: 946.70 | H46: 1002.70 | I46: 1014.10 | J46: 1030.70 | K46: 997.5 | L46: 969.5 | M46: 5.14035
A47: 38 | B47: BHARATFORG | C47: 505.5 | D47: 513.50 | E47: 493.00 | F47: 480.50 | G47: 460.00 | H47: 526.00 | I47: 546.50 | J47: 559.00 | K47: 534 | L47: 501 | M47: 42.41301
A48: 39 | B48: BHEL | C48: 65.95 | D48: 65.68 | E48: 64.62 | F48: 63.28 | G48: 62.22 | H48: 67.02 | I48: 68.08 | J48: 69.42 | K48: 66.75 | L48: 64.35 | M48: 107.87228
A49: 40 | B49: BPCL | C49: 325.4 | D49: 325.93 | E49: 320.92 | F49: 316.43 | G49: 311.42 | H49: 330.42 | I49: 335.43 | J49: 339.92 | K49: 330.95 | L49: 321.45 | M49: 51.47209
A50: 41 | B50: BHARTIARTL | C50: 303.95 | D50: 303.57 | E50: 299.33 | F50: 294.72 | G50: 290.48 | H50: 308.18 | I50: 312.42 | J50: 317.03 | K50: 307.8 | L50: 298.95 | M50: 47.75658
A51: 42 | B51: INFRATEL | C51: 252.85 | D51: 253.78 | E51: 250.62 | F51: 248.38 | G51: 245.22 | H51: 256.02 | I51: 259.18 | J51: 261.42 | K51: 256.95 | L51: 251.55 | M51: 7.21812
A52: 43 | B52: BIOCON | C52: 611.35 | D52: 612.92 | E52: 601.63 | F52: 591.92 | G52: 580.63 | H52: 622.63 | I52: 633.92 | J52: 643.63 | K52: 624.2 | L52: 603.2 | M52: 19.85058
A53: 44 | B53: BOSCHLTD | C53: 18533.05 | D53: 18505.72 | E53: 18427.33 | F53: 18321.62 | G53: 18243.23 | H53: 18611.43 | I53: 18689.82 | J53: 18795.53 | K53: 18584.1 | L53: 18400 | M53: 0.11688
A54: 45 | B54: BRITANNIA | C54: 3005.35 | D54: 2989.73 | E54: 2965.62 | F54: 2925.88 | G54: 2901.77 | H54: 3029.47 | I54: 3053.58 | J54: 3093.32 | K54: 3013.85 | L54: 2950 | M54: 1.555
A55: 46 | B55: CRISIL | C55: 1554 | D55: 1546.35 | E55: 1532.70 | F55: 1511.40 | G55: 1497.75 | H55: 1567.65 | I55: 1581.30 | J55: 1602.60 | K55: 1560 | L55: 1525.05 | M55: 0.04269
A56: 47 | B56: CADILAHC | C56: 349.4 | D56: 351.32 | E56: 346.78 | F56: 344.17 | G56: 339.63 | H56: 353.93 | I56: 358.47 | J56: 361.08 | K56: 355.85 | L56: 348.7 | M56: 8.69679
A57: 48 | B57: CANBK | C57: 247.2 | D57: 247.13 | E57: 241.57 | F57: 235.93 | G57: 230.37 | H57: 252.77 | I57: 258.33 | J57: 263.97 | K57: 252.7 | L57: 241.5 | M57: 56.79958
A58: 49 | B58: CASTROLIND | C58: 144.75 | D58: 145.95 | E58: 143.15 | F58: 141.55 | G58: 138.75 | H58: 147.55 | I58: 150.35 | J58: 151.95 | K58: 148.75 | L58: 144.35 | M58: 7.97133
A59: 50 | B59: CENTRALBK | C59: 28.3 | D59: 28.35 | E59: 28.10 | F59: 27.90 | G59: 27.65 | H59: 28.55 | I59: 28.80 | J59: 29.00 | K59: 28.6 | L59: 28.15 | M59: 1.49431
A60: 51 | B60: CENTURYTEX | C60: 871.5 | D60: 864.85 | E60: 853.90 | F60: 836.30 | G60: 825.35 | H60: 882.45 | I60: 893.40 | J60: 911.00 | K60: 875.8 | L60: 847.25 | M60: 5.83954
A61: 52 | B61: CHOLAFIN | C61: 1225.3 | D61: 1223.48 | E61: 1191.97 | F61: 1158.63 | G61: 1127.12 | H61: 1256.82 | I61: 1288.33 | J61: 1321.67 | K61: 1255 | L61: 1190.15 | M61: 4.19837
A62: 53 | B62: CIPLA | C62: 513.6 | D62: 518.75 | E62: 506.85 | F62: 500.10 | G62: 488.20 | H62: 525.50 | I62: 537.40 | J62: 544.15 | K62: 530.65 | L62: 512 | M62: 35.03808
A63: 54 | B63: COALINDIA | C63: 236.75 | D63: 238.57 | E63: 234.68 | F63: 232.62 | G63: 228.73 | H63: 240.63 | I63: 244.52 | J63: 246.58 | K63: 242.45 | L63: 236.5 | M63: 60.98755
A64: 55 | B64: COLPAL | C64: 1234.9 | D64: 1229.25 | E64: 1209.10 | F64: 1183.30 | G64: 1163.15 | H64: 1255.05 | I64: 1275.20 | J64: 1301.00 | K64: 1249.4 | L64: 1203.45 | M64: 6.61498
A65: 56 | B65: CONCOR | C65: 660.85 | D65: 660.95 | E65: 655.50 | F65: 650.15 | G65: 644.70 | H65: 666.30 | I65: 671.75 | J65: 677.10 | K65: 666.4 | L65: 655.6 | M65: 2.18832
A66: 57 | B66: COROMANDEL | C66: 410.4 | D66: 410.23 | E66: 406.52 | F66: 402.63 | G66: 398.92 | H66: 414.12 | I66: 417.83 | J66: 421.72 | K66: 413.95 | L66: 406.35 | M66: 1.30022
A67: 58 | B67: CROMPTON | C67: 219.1 | D67: 220.08 | E67: 217.02 | F67: 214.93 | G67: 211.87 | H67: 222.17 | I67: 225.23 | J67: 227.32 | K67: 223.15 | L67: 218 | M67: 6.26027
A68: 59 | B68: CUMMINSIND | C68: 781.4 | D68: 782.17 | E68: 774.33 | F68: 767.27 | G68: 759.43 | H68: 789.23 | I68: 797.07 | J68: 804.13 | K68: 790 | L68: 775.1 | M68: 2.29626
A69: 60 | B69: DLF | C69: 172.55 | D69: 170.22 | E69: 167.43 | F69: 162.32 | G69: 159.53 | H69: 175.33 | I69: 178.12 | J69: 183.23 | K69: 173 | L69: 165.1 | M69: 64.02016
A70: 61 | B70: DABUR | C70: 411.45 | D70: 409.08 | E70: 403.97 | F70: 396.48 | G70: 391.37 | H70: 416.57 | I70: 421.68 | J70: 429.17 | K70: 414.2 | L70: 401.6 | M70: 22.19884
A71: 62 | B71: DHFL | C71: 202.6 | D71: 204.23 | E71: 198.47 | F71: 194.33 | G71: 188.57 | H71: 208.37 | I71: 214.13 | J71: 218.27 | K71: 210 | L71: 200.1 | M71: 73.28622
A72: 63 | B72: DISHTV | C72: 33.65 | D72: 33.87 | E72: 33.23 | F72: 32.82 | G72: 32.18 | H72: 34.28 | I72: 34.92 | J72: 35.33 | K72: 34.5 | L72: 33.45 | M72: 42.94034
A73: 64 | B73: DIVISLAB | C73: 1491.8 | D73: 1481.63 | E73: 1465.37 | F73: 1438.93 | G73: 1422.67 | H73: 1508.07 | I73: 1524.33 | J73: 1550.77 | K73: 1497.9 | L73: 1455.2 | M73: 8.39928
A74: 65 | B74: LALPATHLAB | C74: 964.85 | D74: 966.90 | E74: 950.90 | F74: 936.95 | G74: 920.95 | H74: 980.85 | I74: 996.85 | J74: 1010.80 | K74: 982.9 | L74: 952.95 | M74: 0.73184
A75: 66 | B75: DRREDDY | C75: 2692.55 | D75: 2683.28 | E75: 2652.27 | F75: 2611.98 | G75: 2580.97 | H75: 2723.57 | I75: 2754.58 | J75: 2794.87 | K75: 2714.3 | L75: 2643 | M75: 11.79675
A76: 67 | B76: EDELWEISS | C76: 189.4 | D76: 188.10 | E76: 184.30 | F76: 179.20 | G76: 175.40 | H76: 193.20 | I76: 197.00 | J76: 202.10 | K76: 191.9 | L76: 183 | M76: 13.55929
A77: 68 | B77: EICHERMOT | C77: 22369.25 | D77: 22272.93 | E77: 22059.72 | F77: 21750.18 | G77: 21536.97 | H77: 22582.47 | I77: 22795.68 | J77: 23105.22 | K77: 22486.15 | L77: 21963.4 | M77: 0.96234
A78: 69 | B78: EMAMILTD | C78: 404.9 | D78: 411.12 | E78: 397.78 | F78: 390.67 | G78: 377.33 | H78: 418.23 | I78: 431.57 | J78: 438.68 | K78: 424.45 | L78: 404 | M78: 8.91073
A79: 70 | B79: ENDURANCE | C79: 1153.7 | D79: 1145.25 | E79: 1131.60 | F79: 1109.50 | G79: 1095.85 | H79: 1167.35 | I79: 1181.00 | J79: 1203.10 | K79: 1158.9 | L79: 1123.15 | M79: 0.29266
A80: 71 | B80: ENGINERSIN | C80: 111.55 | D80: 111.88 | E80: 110.42 | F80: 109.28 | G80: 107.82 | H80: 113.02 | I80: 114.48 | J80: 115.62 | K80: 113.35 | L80: 110.75 | M80: 10.42497
A81: 72 | B81: EXIDEIND | C81: 249.6 | D81: 249.38 | E81: 246.92 | F81: 244.23 | G81: 241.77 | H81: 252.07 | I81: 254.53 | J81: 257.22 | K81: 251.85 | L81: 246.7 | M81: 6.78352
A82: 73 | B82: FEDERALBNK | C82: 83.5 | D82: 83.40 | E82: 81.40 | F82: 79.30 | G82: 77.30 | H82: 85.50 | I82: 87.50 | J82: 89.60 | K82: 85.4 | L82: 81.3 | M82: 152.4322
A83: 74 | B83: GAIL | C83: 334.7 | D83: 337.50 | E83: 328.00 | F83: 321.30 | G83: 311.80 | H83: 344.20 | I83: 353.70 | J83: 360.40 | K83: 347 | L83: 330.8 | M83: 72.24133
A84: 75 | B84: GMRINFRA | C84: 15.2 | D84: 15.25 | E84: 15.10 | F84: 15.00 | G84: 14.85 | H84: 15.35 | I84: 15.50 | J84: 15.60 | K84: 15.4 | L84: 15.15 | M84: 79.77983
A85: 76 | B85: GSKCONS | C85: 7515.7 | D85: 7506.78 | E85: 7448.92 | F85: 7382.13 | G85: 7324.27 | H85: 7573.57 | I85: 7631.43 | J85: 7698.22 | K85: 7564.65 | L85: 7440 | M85: 0.71996
A86: 77 | B86: GLAXO | C86: 1354.1 | D86: 1364.03 | E86: 1330.07 | F86: 1306.03 | G86: 1272.07 | H86: 1388.07 | I86: 1422.03 | J86: 1446.07 | K86: 1398 | L86: 1340 | M86: 0.08168
A87: 78 | B87: GLENMARK | C87: 644.55 | D87: 641.38 | E87: 631.82 | F87: 619.08 | G87: 609.52 | H87: 654.12 | I87: 663.68 | J87: 676.42 | K87: 650.95 | L87: 628.65 | M87: 17.66739
A88: 79 | B88: GODREJCP | C88: 752.1 | D88: 750.80 | E88: 743.00 | F88: 733.90 | G88: 726.10 | H88: 759.90 | I88: 767.70 | J88: 776.80 | K88: 758.6 | L88: 741.7 | M88: 5.29815
A89: 80 | B89: GODREJIND | C89: 543.2 | D89: 545.10 | E89: 536.40 | F89: 529.60 | G89: 520.90 | H89: 551.90 | I89: 560.60 | J89: 567.40 | K89: 553.8 | L89: 538.3 | M89: 3.57043
A90: 81 | B90: GRUH | C90: 295.05 | D90: 295.27 | E90: 290.88 | F90: 286.72 | G90: 282.33 | H90: 299.43 | I90: 303.82 | J90: 307.98 | K90: 299.65 | L90: 291.1 | M90: 1.38768
A91: 82 | B91: GPPL | C91: 96.1 | D91: 94.97 | E91: 93.58 | F91: 91.07 | G91: 89.68 | H91: 97.48 | I91: 98.87 | J91: 101.38 | K91: 96.35 | L91: 92.45 | M91: 1.32196
A92: 83 | B92: GSPL | C92: 181.95 | D92: 182.32 | E92: 180.33 | F92: 178.72 | G92: 176.73 | H92: 183.93 | I92: 185.92 | J92: 187.53 | K92: 184.3 | L92: 180.7 | M92: 2.13451
A93: 84 | B93: HCLTECH | C93: 961.95 | D93: 965.47 | E93: 930.93 | F93: 899.92 | G93: 865.38 | H93: 996.48 | I93: 1031.02 | J93: 1062.03 | K93: 1000 | L93: 934.45 | M93: 105.46835
A94: 85 | B94: HDFCBANK | C94: 2107.6 | D94: 2101.97 | E94: 2085.93 | F94: 2064.27 | G94: 2048.23 | H94: 2123.63 | I94: 2139.67 | J94: 2161.33 | K94: 2118 | L94: 2080.3 | M94: 24.7598
A95: 86 | B95: HAVELLS | C95: 676.7 | D95: 677.73 | E95: 672.62 | F95: 668.53 | G95: 663.42 | H95: 681.82 | I95: 686.93 | J95: 691.02 | K95: 682.85 | L95: 673.65 | M95: 7.22318
A96: 87 | B96: HEROMOTOCO | C96: 3066.8 | D96: 3056.30 | E96: 3035.60 | F96: 3004.40 | G96: 2983.70 | H96: 3087.50 | I96: 3108.20 | J96: 3139.40 | K96: 3077 | L96: 3025.1 | M96: 3.65305
A97: 88 | B97: HEXAWARE | C97: 316.05 | D97: 316.10 | E97: 311.10 | F97: 306.15 | G97: 301.15 | H97: 321.05 | I97: 326.05 | J97: 331.00 | K97: 321.1 | L97: 311.15 | M97: 14.27998
A98: 89 | B98: HINDALCO | C98: 218.8 | D98: 218.92 | E98: 216.43 | F98: 214.07 | G98: 211.58 | H98: 221.28 | I98: 223.77 | J98: 226.13 | K98: 221.4 | L98: 216.55 | M98: 66.94888
A99: 90 | B99: HINDPETRO | C99: 224.8 | D99: 226.20 | E99: 222.10 | F99: 219.40 | G99: 215.30 | H99: 228.90 | I99: 233.00 | J99: 235.70 | K99: 230.3 | L99: 223.5 | M99: 37.96565
A100: 91 | B100: HINDUNILVR | C100: 1824.3 | D100: 1816.38 | E100: 1800.02 | F100: 1775.73 | G100: 1759.37 | H100: 1840.67 | I100: 1857.03 | J100: 1881.32 | K100: 1832.75 | L100: 1792.1 | M100: 17.7424
A101: 92 | B101: HINDZINC | C101: 272.8 | D101: 271.28 | E101: 268.67 | F101: 264.53 | G101: 261.92 | H101: 275.42 | I101: 278.03 | J101: 282.17 | K101: 273.9 | L101: 267.15 | M101: 3.70594
A102: 93 | B102: HUDCO | C102: 41.2 | D102: 41.37 | E102: 40.83 | F102: 40.47 | G102: 39.93 | H102: 41.73 | I102: 42.27 | J102: 42.63 | K102: 41.9 | L102: 41 | M102: 3.51825
A103: 94 | B103: HDFC | C103: 1951.35 | D103: 1947.25 | E103: 1933.20 | F103: 1915.05 | G103: 1901.00 | H103: 1965.40 | I103: 1979.45 | J103: 1997.60 | K103: 1961.3 | L103: 1929.1 | M103: 24.42617
A104: 95 | B104: ITC | C104: 274.05 | D104: 274.52 | E104: 272.83 | F104: 271.62 | G104: 269.93 | H104: 275.73 | I104: 277.42 | J104: 278.63 | K104: 276.2 | L104: 273.3 | M104: 81.03784
A105: 96 | B105: ICICIBANK | C105: 352.2 | D105: 350.17 | E105: 347.33 | F105: 342.47 | G105: 339.63 | H105: 355.03 | I105: 357.87 | J105: 362.73 | K105: 353 | L105: 345.3 | M105: 149.79672
A106: 97 | B106: ICICIPRULI | C106: 314.6 | D106: 313.22 | E106: 309.73 | F106: 304.87 | G106: 301.38 | H106: 318.08 | I106: 321.57 | J106: 326.43 | K106: 316.7 | L106: 308.35 | M106: 11.49831
A107: 98 | B107: IDBI | C107: 60.25 | D107: 60.22 | E107: 60.03 | F107: 59.82 | G107: 59.63 | H107: 60.43 | I107: 60.62 | J107: 60.83 | K107: 60.4 | L107: 60 | M107: 34.41375
A108: 99 | B108: IDFCBANK | C108: 36.5 | D108: 36.38 | E108: 35.82 | F108: 35.13 | G108: 34.57 | H108: 37.07 | I108: 37.63 | J108: 38.32 | K108: 36.95 | L108: 35.7 | M108: 65.88857
A109: 100 | B109: IDFC | C109: 37.8 | D109: 37.82 | E109: 37.38 | F109: 36.97 | G109: 36.53 | H109: 38.23 | I109: 38.67 | J109: 39.08 | K109: 38.25 | L109: 37.4 | M109: 29.6276
A110: 101 | B110: IRB | C110: 144 | D110: 142.47 | E110: 140.18 | F110: 136.37 | G110: 134.08 | H110: 146.28 | I110: 148.57 | J110: 152.38 | K110: 144.75 | L110: 138.65 | M110: 26.68057
A111: 102 | B111: IDEA | C111: 33.8 | D111: 33.78 | E111: 33.27 | F111: 32.73 | G111: 32.22 | H111: 34.32 | I111: 34.83 | J111: 35.37 | K111: 34.3 | L111: 33.25 | M111: 223.72379
A112: 103 | B112: IBULHSGFIN | C112: 716.85 | D112: 724.45 | E112: 699.90 | F112: 682.95 | G112: 658.40 | H112: 741.40 | I112: 765.95 | J112: 782.90 | K112: 749 | L112: 707.5 | M112: 91.97727
A113: 104 | B113: INDIANB | C113: 218 | D113: 216.37 | E113: 212.43 | F113: 206.87 | G113: 202.93 | H113: 221.93 | I113: 225.87 | J113: 231.43 | K113: 220.3 | L113: 210.8 | M113: 18.305
A114: 105 | B114: INDHOTEL | C114: 144.05 | D114: 144.95 | E114: 142.05 | F114: 140.05 | G114: 137.15 | H114: 146.95 | I114: 149.85 | J114: 151.85 | K114: 147.85 | L114: 142.95 | M114: 2.41282
A115: 106 | B115: IOC | C115: 129.75 | D115: 130.68 | E115: 127.77 | F115: 125.78 | G115: 122.87 | H115: 132.67 | I115: 135.58 | J115: 137.57 | K115: 133.6 | L115: 128.7 | M115: 137.48101
A116: 107 | B116: IGL | C116: 248.3 | D116: 249.93 | E116: 244.37 | F116: 240.43 | G116: 234.87 | H116: 253.87 | I116: 259.43 | J116: 263.37 | K116: 255.5 | L116: 246 | M116: 25.65181
A117: 108 | B117: INDUSINDBK | C117: 1566.8 | D117: 1559.28 | E117: 1538.57 | F117: 1510.33 | G117: 1489.62 | H117: 1587.52 | I117: 1608.23 | J117: 1636.47 | K117: 1580 | L117: 1531.05 | M117: 15.02809
A118: 109 | B118: NAUKRI | C118: 1514.95 | D118: 1527.92 | E118: 1487.28 | F118: 1459.62 | G118: 1418.98 | H118: 1555.58 | I118: 1596.22 | J118: 1623.88 | K118: 1568.55 | L118: 1500.25 | M118: 1.55435
A119: 110 | B119: INFY | C119: 682.8 | D119: 678.05 | E119: 670.35 | F119: 657.90 | G119: 650.20 | H119: 690.50 | I119: 698.20 | J119: 710.65 | K119: 685.75 | L119: 665.6 | M119: 55.53948
A120: 111 | B120: INDIGO | C120: 1021.05 | D120: 1015.78 | E120: 998.07 | F120: 975.08 | G120: 957.37 | H120: 1038.77 | I120: 1056.48 | J120: 1079.47 | K120: 1033.5 | L120: 992.8 | M120: 11.12094
A121: 112 | B121: IPCALAB | C121: 781.7 | D121: 780.50 | E121: 774.30 | F121: 766.90 | G121: 760.70 | H121: 787.90 | I121: 794.10 | J121: 801.50 | K121: 786.7 | L121: 773.1 | M121: 0.8011
A122: 113 | B122: JSWENERGY | C122: 69 | D122: 69.02 | E122: 67.53 | F122: 66.07 | G122: 64.58 | H122: 70.48 | I122: 71.97 | J122: 73.43 | K122: 70.5 | L122: 67.55 | M122: 5.83016
A123: 114 | B123: JSWSTEEL | C123: 302.4 | D123: 302.95 | E123: 297.70 | F123: 293.00 | G123: 287.75 | H123: 307.65 | I123: 312.90 | J123: 317.60 | K123: 308.2 | L123: 298.25 | M123: 46.6702
A124: 115 | B124: JINDALSTEL | C124: 146.9 | D124: 147.50 | E124: 143.55 | F124: 140.20 | G124: 136.25 | H124: 150.85 | I124: 154.80 | J124: 158.15 | K124: 151.45 | L124: 144.15 | M124: 107.52176
A125: 116 | B125: JUBLFOOD | C125: 1243.4 | D125: 1258.32 | E125: 1207.08 | F125: 1170.77 | G125: 1119.53 | H125: 1294.63 | I125: 1345.87 | J125: 1382.18 | K125: 1309.55 | L125: 1222 | M125: 23.48274
A126: 117 | B126: JUBILANT | C126: 791.75 | D126: 798.62 | E126: 779.23 | F126: 766.72 | G126: 747.33 | H126: 811.13 | I126: 830.52 | J126: 843.03 | K126: 818 | L126: 786.1 | M126: 2.28052
A127: 118 | B127: KARURVYSYA | C127: 77.75 | D127: 78.03 | E127: 77.22 | F127: 76.68 | G127: 75.87 | H127: 78.57 | I127: 79.38 | J127: 79.92 | K127: 78.85 | L127: 77.5 | M127: 8.71152
A128: 119 | B128: KOTAKBANK | C128: 1279.65 | D128: 1267.25 | E128: 1188.55 | F128: 1097.45 | G128: 1018.75 | H128: 1358.35 | I128: 1437.05 | J128: 1528.15 | K128: 1345.95 | L128: 1176.15 | M128: 338.07619
A129: 120 | B129: L&TFH | C129: 138.8 | D129: 138.47 | E129: 136.03 | F129: 133.27 | G129: 130.83 | H129: 141.23 | I129: 143.67 | J129: 146.43 | K129: 140.9 | L129: 135.7 | M129: 118.60519
A130: 121 | B130: LICHSGFIN | C130: 439.15 | D130: 436.62 | E130: 432.48 | F130: 425.82 | G130: 421.68 | H130: 443.28 | I130: 447.42 | J130: 454.08 | K130: 440.75 | L130: 429.95 | M130: 7.95344
A131: 122 | B131: LT | C131: 1399.9 | D131: 1392.00 | E131: 1380.00 | F131: 1360.10 | G131: 1348.10 | H131: 1411.90 | I131: 1423.90 | J131: 1443.80 | K131: 1404 | L131: 1372.1 | M131: 11.85686
A132: 123 | B132: LUPIN | C132: 841.3 | D132: 844.17 | E132: 829.33 | F132: 817.37 | G132: 802.53 | H132: 856.13 | I132: 870.97 | J132: 882.93 | K132: 859 | L132: 832.2 | M132: 23.35261
A133: 124 | B133: MRF | C133: 65574.85 | D133: 65379.63 | E133: 65059.27 | F133: 64543.68 | G133: 64223.32 | H133: 65895.22 | I133: 66215.58 | J133: 66731.17 | K133: 65700 | L133: 64864.05 | M133: 0.0355
A134: 125 | B134: MGL | C134: 861 | D134: 867.73 | E134: 851.57 | F134: 842.13 | G134: 825.97 | H134: 877.17 | I134: 893.33 | J134: 902.77 | K134: 883.9 | L134: 858.3 | M134: 3.8229
A135: 126 | B135: M&MFIN | C135: 418.25 | D135: 412.60 | E135: 404.40 | F135: 390.55 | G135: 382.35 | H135: 426.45 | I135: 434.65 | J135: 448.50 | K135: 420.8 | L135: 398.75 | M135: 16.90469
A136: 127 | B136: M&M | C136: 721.1 | D136: 719.17 | E136: 711.53 | F136: 701.97 | G136: 694.33 | H136: 728.73 | I136: 736.37 | J136: 745.93 | K136: 726.8 | L136: 709.6 | M136: 27.16587
A137: 128 | B137: MANAPPURAM | C137: 83.4 | D137: 82.98 | E137: 80.92 | F137: 78.43 | G137: 76.37 | H137: 85.47 | I137: 87.53 | J137: 90.02 | K137: 85.05 | L137: 80.5 | M137: 73.01569
A138: 129 | B138: MRPL | C138: 71.15 | D138: 71.30 | E138: 70.65 | F138: 70.15 | G138: 69.50 | H138: 71.80 | I138: 72.45 | J138: 72.95 | K138: 71.95 | L138: 70.8 | M138: 5.01012
A139: 130 | B139: MARICO | C139: 354.85 | D139: 354.70 | E139: 351.45 | F139: 348.05 | G139: 344.80 | H139: 358.10 | I139: 361.35 | J139: 364.75 | K139: 357.95 | L139: 351.3 | M139: 9.79854
A140: 131 | B140: MARUTI | C140: 7313.95 | D140: 7288.30 | E140: 7226.65 | F140: 7139.35 | G140: 7077.70 | H140: 7375.60 | I140: 7437.25 | J140: 7524.55 | K140: 7349.95 | L140: 7201 | M140: 6.88881
A141: 132 | B141: MFSL | C141: 428 | D141: 428.13 | E141: 419.97 | F141: 411.93 | G141: 403.77 | H141: 436.17 | I141: 444.33 | J141: 452.37 | K141: 436.3 | L141: 420.1 | M141: 4.56698
A142: 133 | B142: MINDTREE | C142: 867.65 | D142: 862.57 | E142: 850.13 | F142: 832.62 | G142: 820.18 | H142: 880.08 | I142: 892.52 | J142: 910.03 | K142: 875 | L142: 845.05 | M142: 10.96535
A143: 134 | B143: MOTHERSUMI | C143: 154.8 | D143: 156.13 | E143: 152.32 | F143: 149.83 | G143: 146.02 | H143: 158.62 | I143: 162.43 | J143: 164.92 | K143: 159.95 | L143: 153.65 | M143: 56.68936
A144: 135 | B144: MPHASIS | C144: 983.35 | D144: 988.17 | E144: 967.98 | F144: 952.62 | G144: 932.43 | H144: 1003.53 | I144: 1023.72 | J144: 1039.08 | K144: 1008.35 | L144: 972.8 | M144: 2.86323
A145: 136 | B145: MUTHOOTFIN | C145: 471.3 | D145: 462.02 | E145: 440.33 | F145: 409.37 | G145: 387.68 | H145: 492.98 | I145: 514.67 | J145: 545.63 | K145: 483.7 | L145: 431.05 | M145: 132.28672
A146: 137 | B146: NATCOPHARM | C146: 714.85 | D146: 713.43 | E146: 709.57 | F146: 704.28 | G146: 700.42 | H146: 718.72 | I146: 722.58 | J146: 727.87 | K146: 717.3 | L146: 708.15 | M146: 1.0642
A147: 138 | B147: NBCC | C147: 51.8 | D147: 52.30 | E147: 51.05 | F147: 50.30 | G147: 49.05 | H147: 53.05 | I147: 54.30 | J147: 55.05 | K147: 53.55 | L147: 51.55 | M147: 71.35742
A148: 139 | B148: NHPC | C148: 26.1 | D148: 26.30 | E148: 25.80 | F148: 25.50 | G148: 25.00 | H148: 26.60 | I148: 27.10 | J148: 27.40 | K148: 26.8 | L148: 26 | M148: 44.5233
A149: 140 | B149: NMDC | C149: 92.2 | D149: 92.00 | E149: 90.50 | F149: 88.80 | G149: 87.30 | H149: 93.70 | I149: 95.20 | J149: 96.90 | K149: 93.5 | L149: 90.3 | M149: 22.30196
A150: 141 | B150: NTPC | C150: 137.85 | D150: 138.50 | E150: 135.90 | F150: 133.95 | G150: 131.35 | H150: 140.45 | I150: 143.05 | J150: 145.00 | K150: 141.1 | L150: 136.55 | M150: 110.33784
A151: 142 | B151: NATIONALUM | C151: 63.3 | D151: 63.17 | E151: 62.43 | F151: 61.57 | G151: 60.83 | H151: 64.03 | I151: 64.77 | J151: 65.63 | K151: 63.9 | L151: 62.3 | M151: 46.97092
A152: 143 | B152: OBEROIRLTY | C152: 477.45 | D152: 478.52 | E152: 470.03 | F152: 462.62 | G152: 454.13 | H152: 485.93 | I152: 494.42 | J152: 501.83 | K152: 487 | L152: 471.1 | M152: 7.92832
A153: 144 | B153: ONGC | C153: 139.4 | D153: 139.63 | E153: 137.82 | F153: 136.23 | G153: 134.42 | H153: 141.22 | I153: 143.03 | J153: 144.62 | K153: 141.45 | L153: 138.05 | M153: 105.71838
A154: 145 | B154: OIL | C154: 177.85 | D154: 179.22 | E154: 176.13 | F154: 174.42 | G154: 171.33 | H154: 180.93 | I154: 184.02 | J154: 185.73 | K154: 182.3 | L154: 177.5 | M154: 15.06509
A155: 146 | B155: OFSS | C155: 3579.3 | D155: 3576.45 | E155: 3552.90 | F155: 3526.50 | G155: 3502.95 | H155: 3602.85 | I155: 3626.40 | J155: 3652.80 | K155: 3600 | L155: 3550.05 | M155: 0.28815
A156: 147 | B156: PCJEWELLER | C156: 66.4 | D156: 65.98 | E156: 64.52 | F156: 62.63 | G156: 61.17 | H156: 67.87 | I156: 69.33 | J156: 71.22 | K156: 67.45 | L156: 64.1 | M156: 130.75943
A157: 148 | B157: PIIND | C157: 809.2 | D157: 812.25 | E157: 797.50 | F157: 785.80 | G157: 771.05 | H157: 823.95 | I157: 838.70 | J157: 850.40 | K157: 827 | L157: 800.55 | M157: 1.15018
A158: 149 | B158: PNBHOUSING | C158: 932.55 | D158: 931.93 | E158: 917.62 | F158: 902.68 | G158: 888.37 | H158: 946.87 | I158: 961.18 | J158: 976.12 | K158: 946.25 | L158: 917 | M158: 2.89517
A159: 150 | B159: PAGEIND | C159: 24257.15 | D159: 24337.07 | E159: 23824.13 | F159: 23391.12 | G159: 22878.18 | H159: 24770.08 | I159: 25283.02 | J159: 25716.03 | K159: 24850 | L159: 23904.05 | M159: 0.48759
A160: 151 | B160: PETRONET | C160: 210.6 | D160: 210.20 | E160: 206.50 | F160: 202.40 | G160: 198.70 | H160: 214.30 | I160: 218.00 | J160: 222.10 | K160: 213.9 | L160: 206.1 | M160: 14.2571
A161: 152 | B161: PIDILITIND | C161: 1140.1 | D161: 1138.47 | E161: 1125.23 | F161: 1110.37 | G161: 1097.13 | H161: 1153.33 | I161: 1166.57 | J161: 1181.43 | K161: 1151.7 | L161: 1123.6 | M161: 3.35712
A162: 153 | B162: PEL | C162: 2085.6 | D162: 2091.12 | E162: 2049.48 | F162: 2013.37 | G162: 1971.73 | H162: 2127.23 | I162: 2168.87 | J162: 2204.98 | K162: 2132.75 | L162: 2055 | M162: 3.22317
A163: 154 | B163: PFC | C163: 89.85 | D163: 89.65 | E163: 86.00 | F163: 82.15 | G163: 78.50 | H163: 93.50 | I163: 97.15 | J163: 101.00 | K163: 93.3 | L163: 85.8 | M163: 453.42209
A164: 155 | B164: POWERGRID | C164: 182.65 | D164: 183.43 | E164: 179.87 | F164: 177.08 | G164: 173.52 | H164: 186.22 | I164: 189.78 | J164: 192.57 | K164: 187 | L164: 180.65 | M164: 47.12643
A165: 156 | B165: PRESTIGE | C165: 200.85 | D165: 201.17 | E165: 198.38 | F165: 195.92 | G165: 193.13 | H165: 203.63 | I165: 206.42 | J165: 208.88 | K165: 203.95 | L165: 198.7 | M165: 0.47103
A166: 157 | B166: PGHH | C166: 9563.2 | D166: 9547.72 | E166: 9495.43 | F166: 9427.67 | G166: 9375.38 | H166: 9615.48 | I166: 9667.77 | J166: 9735.53 | K166: 9600 | L166: 9479.95 | M166: 0.02134
A167: 158 | B167: PNB | C167: 66 | D167: 65.82 | E167: 64.63 | F167: 63.27 | G167: 62.08 | H167: 67.18 | I167: 68.37 | J167: 69.73 | K167: 67 | L167: 64.45 | M167: 212.10644
A168: 159 | B168: RBLBANK | C168: 548.25 | D168: 548.53 | E168: 539.07 | F168: 529.88 | G168: 520.42 | H168: 557.72 | I168: 567.18 | J168: 576.37 | K168: 558 | L168: 539.35 | M168: 9.77478
A169: 160 | B169: RAJESHEXPO | C169: 570.65 | D169: 581.87 | E169: 558.78 | F169: 546.92 | G169: 523.83 | H169: 593.73 | I169: 616.82 | J169: 628.68 | K169: 604.95 | L169: 570 | M169: 2.56147
A170: 161 | B170: RELCAPITAL | C170: 208.85 | D170: 209.78 | E170: 202.67 | F170: 196.48 | G170: 189.37 | H170: 215.97 | I170: 223.08 | J170: 229.27 | K170: 216.9 | L170: 203.6 | M170: 103.01437
A171: 162 | B171: RCOM | C171: 15.75 | D171: 16.12 | E171: 15.23 | F171: 14.72 | G171: 13.83 | H171: 16.63 | I171: 17.52 | J171: 18.03 | K171: 17 | L171: 15.6 | M171: 1333.98785
A172: 163 | B172: RELIANCE | C172: 1133.8 | D172: 1126.37 | E172: 1115.78 | F172: 1097.77 | G172: 1087.18 | H172: 1144.38 | I172: 1154.97 | J172: 1172.98 | K172: 1136.95 | L172: 1108.35 | M172: 72.14078
A173: 164 | B173: RELINFRA | C173: 307.95 | D173: 303.65 | E173: 297.30 | F173: 286.65 | G173: 280.30 | H173: 314.30 | I173: 320.65 | J173: 331.30 | K173: 310 | L173: 293 | M173: 55.03724
A174: 165 | B174: RPOWER | C174: 27.75 | D174: 27.57 | E174: 27.08 | F174: 26.42 | G174: 25.93 | H174: 28.23 | I174: 28.72 | J174: 29.38 | K174: 28.05 | L174: 26.9 | M174: 97.50758
A175: 166 | B175: RECLTD | C175: 104.65 | D175: 104.52 | E175: 102.73 | F175: 100.82 | G175: 99.03 | H175: 106.43 | I175: 108.22 | J175: 110.13 | K175: 106.3 | L175: 102.6 | M175: 135.17081
A176: 167 | B176: SRF | C176: 2115.9 | D176: 2110.73 | E176: 2087.47 | F176: 2059.03 | G176: 2035.77 | H176: 2139.17 | I176: 2162.43 | J176: 2190.87 | K176: 2134 | L176: 2082.3 | M176: 2.64086
A177: 168 | B177: SHREECEM | C177: 16337.9 | D177: 16266.62 | E177: 16133.23 | F177: 15928.57 | G177: 15795.18 | H177: 16471.28 | I177: 16604.67 | J177: 16809.33 | K177: 16400 | L177: 16061.95 | M177: 0.04929
A178: 169 | B178: SRTRANSFIN | C178: 1093.9 | D178: 1097.18 | E178: 1077.82 | F178: 1061.73 | G178: 1042.37 | H178: 1113.27 | I178: 1132.63 | J178: 1148.72 | K178: 1116.55 | L178: 1081.1 | M178: 6.65488
A179: 170 | B179: SIEMENS | C179: 948.4 | D179: 942.12 | E179: 924.53 | F179: 900.67 | G179: 883.08 | H179: 965.98 | I179: 983.57 | J179: 1007.43 | K179: 959.7 | L179: 918.25 | M179: 11.8898
A180: 171 | B180: SBIN | C180: 275.4 | D180: 274.95 | E180: 272.55 | F180: 269.70 | G180: 267.30 | H180: 277.80 | I180: 280.20 | J180: 283.05 | K180: 277.35 | L180: 272.1 | M180: 101.65275
A181: 172 | B181: SAIL | C181: 51 | D181: 51.68 | E181: 49.82 | F181: 48.63 | G181: 46.77 | H181: 52.87 | I181: 54.73 | J181: 55.92 | K181: 53.55 | L181: 50.5 | M181: 198.99203
A182: 173 | B182: SPARC | C182: 200.85 | D182: 204.93 | E182: 195.47 | F182: 190.08 | G182: 180.62 | H182: 210.32 | I182: 219.78 | J182: 225.17 | K182: 214.4 | L182: 199.55 | M182: 6.54797
A183: 174 | B183: SUNPHARMA | C183: 411.25 | D183: 415.13 | E183: 404.27 | F183: 397.28 | G183: 386.42 | H183: 422.12 | I183: 432.98 | J183: 439.97 | K183: 426 | L183: 408.15 | M183: 239.0586
A184: 175 | B184: SUNTV | C184: 594.45 | D184: 590.67 | E184: 582.48 | F184: 570.52 | G184: 562.33 | H184: 602.63 | I184: 610.82 | J184: 622.78 | K184: 598.85 | L184: 578.7 | M184: 20.28229
A185: 176 | B185: SUZLON | C185: 5.15 | D185: 5.15 | E185: 5.00 | F185: 4.85 | G185: 4.70 | H185: 5.30 | I185: 5.45 | J185: 5.60 | K185: 5.3 | L185: 5 | M185: 223.52795
A186: 177 | B186: SYNDIBANK | C186: 31.5 | D186: 31.73 | E186: 30.97 | F186: 30.43 | G186: 29.67 | H186: 32.27 | I186: 33.03 | J186: 33.57 | K186: 32.5 | L186: 31.2 | M186: 24.4842
A187: 178 | B187: SYNGENE | C187: 540 | D187: 539.70 | E187: 535.40 | F187: 530.80 | G187: 526.50 | H187: 544.30 | I187: 548.60 | J187: 553.20 | K187: 544 | L187: 535.1 | M187: 0.14615
A188: 179 | B188: TV18BRDCST | C188: 34.05 | D188: 34.02 | E188: 33.58 | F188: 33.12 | G188: 32.68 | H188: 34.48 | I188: 34.92 | J188: 35.38 | K188: 34.45 | L188: 33.55 | M188: 21.50332
A189: 180 | B189: TVSMOTOR | C189: 541.5 | D189: 540.02 | E189: 535.28 | F189: 529.07 | G189: 524.33 | H189: 546.23 | I189: 550.97 | J189: 557.18 | K189: 544.75 | L189: 533.8 | M189: 6.55734
A190: 181 | B190: TATACHEM | C190: 673.95 | D190: 670.85 | E190: 665.10 | F190: 656.25 | G190: 650.50 | H190: 679.70 | I190: 685.45 | J190: 694.30 | K190: 676.6 | L190: 662 | M190: 2.97103
A191: 182 | B191: TATACOMM | C191: 521.9 | D191: 519.98 | E191: 513.67 | F191: 505.43 | G191: 499.12 | H191: 528.22 | I191: 534.53 | J191: 542.77 | K191: 526.3 | L191: 511.75 | M191: 4.77224
A192: 183 | B192: TCS | C192: 1995.2 | D192: 1990.70 | E192: 1977.50 | F192: 1959.80 | G192: 1946.60 | H192: 2008.40 | I192: 2021.60 | J192: 2039.30 | K192: 2003.9 | L192: 1973 | M192: 16.8042
A193: 184 | B193: TATAGLOBAL | C193: 206.55 | D193: 206.45 | E193: 203.40 | F193: 200.25 | G193: 197.20 | H193: 209.60 | I193: 212.65 | J193: 215.80 | K193: 209.5 | L193: 203.3 | M193: 14.22582
A194: 185 | B194: TATAMTRDVR | C194: 89.1 | D194: 88.75 | E194: 87.85 | F194: 86.60 | G194: 85.70 | H194: 90.00 | I194: 90.90 | J194: 92.15 | K194: 89.65 | L194: 87.5 | M194: 22.17387
A195: 186 | B195: TATAMOTORS | C195: 162.4 | D195: 162.47 | E195: 160.73 | F195: 159.07 | G195: 157.33 | H195: 164.13 | I195: 165.87 | J195: 167.53 | K195: 164.2 | L195: 160.8 | M195: 135.45006
A196: 187 | B196: TATAPOWER | C196: 79.45 | D196: 79.65 | E196: 78.15 | F196: 76.85 | G196: 75.35 | H196: 80.95 | I196: 82.45 | J196: 83.75 | K196: 81.15 | L196: 78.35 | M196: 56.77506
A197: 188 | B197: TATASTEEL | C197: 509.3 | D197: 509.13 | E197: 503.37 | F197: 497.43 | G197: 491.67 | H197: 515.07 | I197: 520.83 | J197: 526.77 | K197: 514.9 | L197: 503.2 | M197: 82.52927
A198: 189 | B198: TECHM | C198: 694.25 | D198: 694.45 | E198: 684.95 | F198: 675.65 | G198: 666.15 | H198: 703.75 | I198: 713.25 | J198: 722.55 | K198: 703.95 | L198: 685.15 | M198: 24.23892
A199: 190 | B199: RAMCOCEM | C199: 594.55 | D199: 592.22 | E199: 588.43 | F199: 582.32 | G199: 578.53 | H199: 598.33 | I199: 602.12 | J199: 608.23 | K199: 596 | L199: 586.1 | M199: 0.91454
A200: 191 | B200: TITAN | C200: 916.6 | D200: 910.45 | E200: 899.45 | F200: 882.30 | G200: 871.30 | H200: 927.60 | I200: 938.60 | J200: 955.75 | K200: 921.45 | L200: 893.3 | M200: 27.50589
A201: 192 | B201: TORNTPHARM | C201: 1686.15 | D201: 1690.87 | E201: 1668.73 | F201: 1651.32 | G201: 1629.18 | H201: 1708.28 | I201: 1730.42 | J201: 1747.83 | K201: 1713 | L201: 1673.45 | M201: 0.95191
A202: 193 | B202: TORNTPOWER | C202: 256.75 | D202: 258.90 | E202: 252.30 | F202: 247.85 | G202: 241.25 | H202: 263.35 | I202: 269.95 | J202: 274.40 | K202: 265.5 | L202: 254.45 | M202: 14.81852
A203: 194 | B203: UPL | C203: 757.7 | D203: 753.65 | E203: 743.50 | F203: 729.30 | G203: 719.15 | H203: 767.85 | I203: 778.00 | J203: 792.20 | K203: 763.8 | L203: 739.45 | M203: 14.57822
A204: 195 | B204: ULTRACEMCO | C204: 3932.5 | D204: 3923.52 | E204: 3889.03 | F204: 3845.57 | G204: 3811.08 | H204: 3966.98 | I204: 4001.47 | J204: 4044.93 | K204: 3958 | L204: 3880.05 | M204: 1.88598
A205: 196 | B205: UNIONBANK | C205: 73 | D205: 72.82 | E205: 71.13 | F205: 69.27 | G205: 67.58 | H205: 74.68 | I205: 76.37 | J205: 78.23 | K205: 74.5 | L205: 70.95 | M205: 91.66675
... 29 more rows

Sheet MidCap Intra
L5: Back To Main Page
A6: FOR INTRA DAY TRADING | K6: =Main!B10 -> 2018-12-10
A9: Sr.no | B9: Scrip | C9: CLOSE RATE | D9: Pivot Point | E9: Supports | H9: Resistances
C10: Point | E10: S1 | F10: S2 | G10: S3 | H10: R1 | I10: R2 | J10: R3 | K10: HIGH | L10: LOW | M10: Total Trade Quanity in Lakhs
A11: 1 | B11: 3MINDIA | C11: 21816.6 | D11: 21735.52 | E11: 21471.03 | F11: 21125.47 | G11: 20860.98 | H11: 22081.08 | I11: 22345.57 | J11: 22691.13 | K11: 22000 | L11: 21389.95 | M11: 0.00511
A12: 2 | B12: 8KMILES | C12: 173.85 | D12: 173.85 | E12: 173.85 | F12: 173.85 | G12: 173.85 | H12: 173.85 | I12: 173.85 | J12: 173.85 | K12: 173.85 | L12: 173.85 | M12: 0.07156
A13: 3 | B13: AARTIIND | C13: 1448.35 | D13: 1446.82 | E13: 1433.53 | F13: 1418.72 | G13: 1405.43 | H13: 1461.63 | I13: 1474.92 | J13: 1489.73 | K13: 1460.1 | L13: 1432 | M13: 0.42122
A14: 4 | B14: ABAN | C14: 71.25 | D14: 71.72 | E14: 69.63 | F14: 68.02 | G14: 65.93 | H14: 73.33 | I14: 75.42 | J14: 77.03 | K14: 73.8 | L14: 70.1 | M14: 3.69384
A15: 5 | B15: ABB | C15: 1395.9 | D15: 1393.35 | E15: 1377.70 | F15: 1359.50 | G15: 1343.85 | H15: 1411.55 | I15: 1427.20 | J15: 1445.40 | K15: 1409 | L15: 1375.15 | M15: 0.55427
A16: 6 | B16: ABCAPITAL | C16: 97.2 | D16: 97.62 | E16: 96.33 | F16: 95.47 | G16: 94.18 | H16: 98.48 | I16: 99.77 | J16: 100.63 | K16: 98.9 | L16: 96.75 | M16: 10.85705
A17: 7 | B17: ABFRL | C17: 181.6 | D17: 181.85 | E17: 180.00 | F17: 178.40 | G17: 176.55 | H17: 183.45 | I17: 185.30 | J17: 186.90 | K17: 183.7 | L17: 180.25 | M17: 2.80964
A18: 8 | B18: ACC | C18: 1443.05 | D18: 1438.90 | E18: 1430.15 | F18: 1417.25 | G18: 1408.50 | H18: 1451.80 | I18: 1460.55 | J18: 1473.45 | K18: 1447.65 | L18: 1426 | M18: 3.06417
A19: 9 | B19: ADANIPORTS | C19: 373.45 | D19: 370.60 | E19: 366.60 | F19: 359.75 | G19: 355.75 | H19: 377.45 | I19: 381.45 | J19: 388.30 | K19: 374.6 | L19: 363.75 | M19: 32.86454
A20: 10 | B20: ADANIPOWER | C20: 52.55 | D20: 52.33 | E20: 51.67 | F20: 50.78 | G20: 50.12 | H20: 53.22 | I20: 53.88 | J20: 54.77 | K20: 53 | L20: 51.45 | M20: 96.94543
A21: 11 | B21: ADANITRANS | C21: 217.8 | D21: 218.00 | E21: 215.85 | F21: 213.90 | G21: 211.75 | H21: 219.95 | I21: 222.10 | J21: 224.05 | K21: 220.15 | L21: 216.05 | M21: 1.56303
A22: 12 | B22: ADVENZYMES | C22: 172.8 | D22: 174.23 | E22: 170.57 | F22: 168.33 | G22: 164.67 | H22: 176.47 | I22: 180.13 | J22: 182.37 | K22: 177.9 | L22: 172 | M22: 0.39006
A23: 13 | B23: AEGISCHEM | C23: 210.7 | D23: 211.42 | E23: 208.83 | F23: 206.97 | G23: 204.38 | H23: 213.28 | I23: 215.87 | J23: 217.73 | K23: 214 | L23: 209.55 | M23: 0.57172
A24: 14 | B24: AIAENG | C24: 1676.65 | D24: 1679.35 | E24: 1655.00 | F24: 1633.35 | G24: 1609.00 | H24: 1701.00 | I24: 1725.35 | J24: 1747.00 | K24: 1703.7 | L24: 1657.7 | M24: 0.07372
A25: 15 | B25: AJANTPHARM | C25: 1049.7 | D25: 1070.23 | E25: 1024.47 | F25: 999.23 | G25: 953.47 | H25: 1095.47 | I25: 1141.23 | J25: 1166.47 | K25: 1116 | L25: 1045 | M25: 3.91625
A26: 16 | B26: AKZOINDIA | C26: 1551.5 | D26: 1557.63 | E26: 1535.27 | F26: 1519.03 | G26: 1496.67 | H26: 1573.87 | I26: 1596.23 | J26: 1612.47 | K26: 1580 | L26: 1541.4 | M26: 1.55949
A27: 17 | B27: ALBK | C27: 43.1 | D27: 43.62 | E27: 41.83 | F27: 40.57 | G27: 38.78 | H27: 44.88 | I27: 46.67 | J27: 47.93 | K27: 45.4 | L27: 42.35 | M27: 66.92958
A28: 18 | B28: ALKEM | C28: 1894 | D28: 1897.62 | E28: 1886.38 | F28: 1878.77 | G28: 1867.53 | H28: 1905.23 | I28: 1916.47 | J28: 1924.08 | K28: 1908.85 | L28: 1890 | M28: 0.12078
A29: 19 | B29: ALLCARGO | C29: 104.65 | D29: 104.73 | E29: 103.72 | F29: 102.78 | G29: 101.77 | H29: 105.67 | I29: 106.68 | J29: 107.62 | K29: 105.75 | L29: 103.8 | M29: 0.77713
A30: 20 | B30: AMARAJABAT | C30: 703.25 | D30: 702.92 | E30: 695.33 | F30: 687.42 | G30: 679.83 | H30: 710.83 | I30: 718.42 | J30: 726.33 | K30: 710.5 | L30: 695 | M30: 2.54883
A31: 21 | B31: AMBUJACEM | C31: 212.45 | D31: 211.18 | E31: 208.87 | F31: 205.28 | G31: 202.97 | H31: 214.77 | I31: 217.08 | J31: 220.67 | K31: 213.5 | L31: 207.6 | M31: 10.40049
A32: 22 | B32: ANDHRABANK | C32: 27 | D32: 27.12 | E32: 26.68 | F32: 26.37 | G32: 25.93 | H32: 27.43 | I32: 27.87 | J32: 28.18 | K32: 27.55 | L32: 26.8 | M32: 4.73183
A33: 23 | B33: APLAPOLLO | C33: 1319.7 | D33: 1321.55 | E33: 1303.10 | F33: 1286.50 | G33: 1268.05 | H33: 1338.15 | I33: 1356.60 | J33: 1373.20 | K33: 1340 | L33: 1304.95 | M33: 1.12116
A34: 24 | B34: APLLTD | C34: 616 | D34: 617.68 | E34: 612.37 | F34: 608.73 | G34: 603.42 | H34: 621.32 | I34: 626.63 | J34: 630.27 | K34: 623 | L34: 614.05 | M34: 0.14105
A35: 25 | B35: APOLLOHOSP | C35: 1209 | D35: 1197.13 | E35: 1179.17 | F35: 1149.33 | G35: 1131.37 | H35: 1226.97 | I35: 1244.93 | J35: 1274.77 | K35: 1215.1 | L35: 1167.3 | M35: 6.65538
A36: 26 | B36: APOLLOTYRE | C36: 226.4 | D36: 225.70 | E36: 223.25 | F36: 220.10 | G36: 217.65 | H36: 228.85 | I36: 231.30 | J36: 234.45 | K36: 228.15 | L36: 222.55 | M36: 23.88836
A37: 27 | B37: ARVIND | C37: 100.3 | D37: 100.55 | E37: 98.55 | F37: 96.80 | G37: 94.80 | H37: 102.30 | I37: 104.30 | J37: 106.05 | K37: 102.55 | L37: 98.8 | M37: 75.58009
A38: 28 | B38: ASAHIINDIA | C38: 247.9 | D38: 249.52 | E38: 244.38 | F38: 240.87 | G38: 235.73 | H38: 253.03 | I38: 258.17 | J38: 261.68 | K38: 254.65 | L38: 246 | M38: 0.1446
A39: 29 | B39: ASHOKA | C39: 119.55 | D39: 120.60 | E39: 117.20 | F39: 114.85 | G39: 111.45 | H39: 122.95 | I39: 126.35 | J39: 128.70 | K39: 124 | L39: 118.25 | M39: 0.59904
A40: 30 | B40: ASHOKLEY | C40: 102.9 | D40: 102.62 | E40: 101.53 | F40: 100.17 | G40: 99.08 | H40: 103.98 | I40: 105.07 | J40: 106.43 | K40: 103.7 | L40: 101.25 | M40: 160.73694
A41: 31 | B41: ASIANPAINT | C41: 1318.65 | D41: 1313.68 | E41: 1303.37 | F41: 1288.08 | G41: 1277.77 | H41: 1328.97 | I41: 1339.28 | J41: 1354.57 | K41: 1324 | L41: 1298.4 | M41: 10.37026
A42: 32 | B42: ASTRAL | C42: 1056.35 | D42: 1052.22 | E42: 1047.43 | F42: 1038.52 | G42: 1033.73 | H42: 1061.13 | I42: 1065.92 | J42: 1074.83 | K42: 1057 | L42: 1043.3 | M42: 0.22621
A43: 33 | B43: ATUL | C43: 3378.75 | D43: 3374.12 | E43: 3344.68 | F43: 3310.62 | G43: 3281.18 | H43: 3408.18 | I43: 3437.62 | J43: 3471.68 | K43: 3403.55 | L43: 3340.05 | M43: 0.12102
A44: 34 | B44: AUBANK | C44: 611.35 | D44: 616.15 | E44: 604.30 | F44: 597.25 | G44: 585.40 | H44: 623.20 | I44: 635.05 | J44: 642.10 | K44: 628 | L44: 609.1 | M44: 3.55827
A45: 35 | B45: AUROPHARMA | C45: 751.35 | D45: 751.05 | E45: 733.30 | F45: 715.25 | G45: 697.50 | H45: 769.10 | I45: 786.85 | J45: 804.90 | K45: 768.8 | L45: 733 | M45: 57.00335
A46: 36 | B46: AVANTIFEED | C46: 356.35 | D46: 358.12 | E46: 351.23 | F46: 346.12 | G46: 339.23 | H46: 363.23 | I46: 370.12 | J46: 375.23 | K46: 365 | L46: 353 | M46: 2.7196
A47: 37 | B47: AXISBANK | C47: 603.95 | D47: 601.93 | E47: 594.37 | F47: 584.78 | G47: 577.22 | H47: 611.52 | I47: 619.08 | J47: 628.67 | K47: 609.5 | L47: 592.35 | M47: 122.62327
A48: 38 | B48: BAJAJ-AUTO | C48: 2786.2 | D48: 2765.17 | E48: 2737.33 | F48: 2688.47 | G48: 2660.63 | H48: 2814.03 | I48: 2841.87 | J48: 2890.73 | K48: 2793 | L48: 2716.3 | M48: 4.17465
A49: 39 | B49: BAJAJCORP | C49: 348.7 | D49: 347.48 | E49: 344.72 | F49: 340.73 | G49: 337.97 | H49: 351.47 | I49: 354.23 | J49: 358.22 | K49: 350.25 | L49: 343.5 | M49: 0.33218
A50: 40 | B50: BAJAJELEC | C50: 472.35 | D50: 474.87 | E50: 467.73 | F50: 463.12 | G50: 455.98 | H50: 479.48 | I50: 486.62 | J50: 491.23 | K50: 482 | L50: 470.25 | M50: 1.77874
A51: 41 | B51: BAJAJFINSV | C51: 5849.9 | D51: 5797.98 | E51: 5720.42 | F51: 5590.93 | G51: 5513.37 | H51: 5927.47 | I51: 6005.03 | J51: 6134.52 | K51: 5875.55 | L51: 5668.5 | M51: 2.20039
A52: 42 | B52: BAJAJHIND | C52: 9.35 | D52: 9.38 | E52: 9.22 | F52: 9.08 | G52: 8.92 | H52: 9.52 | I52: 9.68 | J52: 9.82 | K52: 9.55 | L52: 9.25 | M52: 14.21207
A53: 43 | B53: BAJAJHLDNG | C53: 2985 | D53: 2970.23 | E53: 2940.82 | F53: 2896.63 | G53: 2867.22 | H53: 3014.42 | I53: 3043.83 | J53: 3088.02 | K53: 2999.65 | L53: 2926.05 | M53: 0.02721
A54: 44 | B54: BAJFINANCE | C54: 2486.35 | D54: 2466.25 | E54: 2434.75 | F54: 2383.15 | G54: 2351.65 | H54: 2517.85 | I54: 2549.35 | J54: 2600.95 | K54: 2497.75 | L54: 2414.65 | M54: 14.7872
A55: 45 | B55: BALKRISIND | C55: 890 | D55: 892.32 | E55: 877.78 | F55: 865.57 | G55: 851.03 | H55: 904.53 | I55: 919.07 | J55: 931.28 | K55: 906.85 | L55: 880.1 | M55: 7.51168
A56: 46 | B56: BALLARPUR | C56: 5.4 | D56: 5.37 | E56: 5.28 | F56: 5.17 | G56: 5.08 | H56: 5.48 | I56: 5.57 | J56: 5.68 | K56: 5.45 | L56: 5.25 | M56: 3.6585
A57: 47 | B57: BALMLAWRIE | C57: 181.25 | D57: 181.40 | E57: 179.90 | F57: 178.55 | G57: 177.05 | H57: 182.75 | I57: 184.25 | J57: 185.60 | K57: 182.9 | L57: 180.05 | M57: 0.28624
A58: 48 | B58: BALRAMCHIN | C58: 100.1 | D58: 100.62 | E58: 98.68 | F58: 97.27 | G58: 95.33 | H58: 102.03 | I58: 103.97 | J58: 105.38 | K58: 102.55 | L58: 99.2 | M58: 19.27733
A59: 49 | B59: BANKBARODA | C59: 106.4 | D59: 105.45 | E59: 103.90 | F59: 101.40 | G59: 99.85 | H59: 107.95 | I59: 109.50 | J59: 112.00 | K59: 107 | L59: 102.95 | M59: 165.65178
A60: 50 | B60: BANKINDIA | C60: 79.55 | D60: 79.90 | E60: 77.95 | F60: 76.35 | G60: 74.40 | H60: 81.50 | I60: 83.45 | J60: 85.05 | K60: 81.85 | L60: 78.3 | M60: 90.34326
A61: 51 | B61: BASF | C61: 1531.55 | D61: 1538.58 | E61: 1512.97 | F61: 1494.38 | G61: 1468.77 | H61: 1557.17 | I61: 1582.78 | J61: 1601.37 | K61: 1564.2 | L61: 1520 | M61: 0.05183
A62: 52 | B62: BATAINDIA | C62: 1059.9 | D62: 1057.98 | E62: 1041.97 | F62: 1024.03 | G62: 1008.02 | H62: 1075.92 | I62: 1091.93 | J62: 1109.87 | K62: 1074 | L62: 1040.05 | M62: 12.79061
A63: 53 | B63: BBTC | C63: 1308.9 | D63: 1315.25 | E63: 1294.65 | F63: 1280.40 | G63: 1259.80 | H63: 1329.50 | I63: 1350.10 | J63: 1364.35 | K63: 1335.85 | L63: 1301 | M63: 0.46005
A64: 54 | B64: BEL | C64: 80.1 | D64: 80.88 | E64: 79.22 | F64: 78.33 | G64: 76.67 | H64: 81.77 | I64: 83.43 | J64: 84.32 | K64: 82.55 | L64: 80 | M64: 72.72768
A65: 55 | B65: BEML | C65: 709.05 | D65: 704.78 | E65: 692.57 | F65: 676.08 | G65: 663.87 | H65: 721.27 | I65: 733.48 | J65: 749.97 | K65: 717 | L65: 688.3 | M65: 12.5188
A66: 56 | B66: BERGEPAINT | C66: 310.9 | D66: 310.77 | E66: 307.78 | F66: 304.67 | G66: 301.68 | H66: 313.88 | I66: 316.87 | J66: 319.98 | K66: 313.75 | L66: 307.65 | M66: 4.05226
A67: 57 | B67: BFUTILITIE | C67: 201.45 | D67: 202.75 | E67: 197.75 | F67: 194.05 | G67: 189.05 | H67: 206.45 | I67: 211.45 | J67: 215.15 | K67: 207.75 | L67: 199.05 | M67: 1.49292
A68: 58 | B68: BGRENERGY | C68: 57 | D68: 57.52 | E68: 56.03 | F68: 55.07 | G68: 53.58 | H68: 58.48 | I68: 59.97 | J68: 60.93 | K68: 59 | L68: 56.55 | M68: 0.65163
A69: 59 | B69: BHARATFIN | C69: 991.3 | D69: 986.10 | E69: 974.70 | F69: 958.10 | G69: 946.70 | H69: 1002.70 | I69: 1014.10 | J69: 1030.70 | K69: 997.5 | L69: 969.5 | M69: 5.14035
A70: 60 | B70: BHARATFORG | C70: 505.5 | D70: 513.50 | E70: 493.00 | F70: 480.50 | G70: 460.00 | H70: 526.00 | I70: 546.50 | J70: 559.00 | K70: 534 | L70: 501 | M70: 42.41301
A71: 61 | B71: BHARTIARTL | C71: 303.95 | D71: 303.57 | E71: 299.33 | F71: 294.72 | G71: 290.48 | H71: 308.18 | I71: 312.42 | J71: 317.03 | K71: 307.8 | L71: 298.95 | M71: 47.75658
A72: 62 | B72: BHEL | C72: 65.95 | D72: 65.68 | E72: 64.62 | F72: 63.28 | G72: 62.22 | H72: 67.02 | I72: 68.08 | J72: 69.42 | K72: 66.75 | L72: 64.35 | M72: 107.87228
A73: 63 | B73: BHUSANSTL | C73: 27.15 | D73: 27.02 | E73: 26.63 | F73: 26.12 | G73: 25.73 | H73: 27.53 | I73: 27.92 | J73: 28.43 | K73: 27.4 | L73: 26.5 | M73: 5.42185
A74: 64 | B74: BIOCON | C74: 611.35 | D74: 612.92 | E74: 601.63 | F74: 591.92 | G74: 580.63 | H74: 622.63 | I74: 633.92 | J74: 643.63 | K74: 624.2 | L74: 603.2 | M74: 19.85058
A75: 65 | B75: BIRLACORPN | C75: 594 | D75: 596.32 | E75: 588.23 | F75: 582.47 | G75: 574.38 | H75: 602.08 | I75: 610.17 | J75: 615.93 | K75: 604.4 | L75: 590.55 | M75: 0.15164
A76: 66 | B76: BLISSGVS | C76: 139.4 | D76: 136.00 | E76: 130.50 | F76: 121.60 | G76: 116.10 | H76: 144.90 | I76: 150.40 | J76: 159.30 | K76: 141.5 | L76: 127.1 | M76: 8.89204
A77: 67 | B77: BLUEDART | C77: 3090.4 | D77: 3104.95 | E77: 3064.40 | F77: 3038.40 | G77: 2997.85 | H77: 3130.95 | I77: 3171.50 | J77: 3197.50 | K77: 3145.5 | L77: 3078.95 | M77: 0.4641
A78: 68 | B78: BLUESTARCO | C78: 644.65 | D78: 647.93 | E78: 637.67 | F78: 630.68 | G78: 620.42 | H78: 654.92 | I78: 665.18 | J78: 672.17 | K78: 658.2 | L78: 640.95 | M78: 0.45198
A79: 69 | B79: BOMDYEING | C79: 89.85 | D79: 90.52 | E79: 88.13 | F79: 86.42 | G79: 84.03 | H79: 92.23 | I79: 94.62 | J79: 96.33 | K79: 92.9 | L79: 88.8 | M79: 4.70517
A80: 70 | B80: BOSCHLTD | C80: 18533.05 | D80: 18505.72 | E80: 18427.33 | F80: 18321.62 | G80: 18243.23 | H80: 18611.43 | I80: 18689.82 | J80: 18795.53 | K80: 18584.1 | L80: 18400 | M80: 0.11688
A81: 71 | B81: BPCL | C81: 325.4 | D81: 325.93 | E81: 320.92 | F81: 316.43 | G81: 311.42 | H81: 330.42 | I81: 335.43 | J81: 339.92 | K81: 330.95 | L81: 321.45 | M81: 51.47209
A82: 72 | B82: BRFL | C82: 9.9 | D82: 9.77 | E82: 9.63 | F82: 9.37 | G82: 9.23 | H82: 10.03 | I82: 10.17 | J82: 10.43 | K82: 9.9 | L82: 9.5 | M82: 1.83893
A83: 73 | B83: BRIGADE | C83: 192.5 | D83: 193.50 | E83: 190.95 | F83: 189.40 | G83: 186.85 | H83: 195.05 | I83: 197.60 | J83: 199.15 | K83: 196.05 | L83: 191.95 | M83: 0.06402
A84: 74 | B84: BRITANNIA | C84: 3005.35 | D84: 2989.73 | E84: 2965.62 | F84: 2925.88 | G84: 2901.77 | H84: 3029.47 | I84: 3053.58 | J84: 3093.32 | K84: 3013.85 | L84: 2950 | M84: 1.555
A85: 75 | B85: BSE | C85: 606.1 | D85: 605.70 | E85: 601.40 | F85: 596.70 | G85: 592.40 | H85: 610.40 | I85: 614.70 | J85: 619.40 | K85: 610 | L85: 601 | M85: 0.4745
A86: 77 | B86: CADILAHC | C86: 349.4 | D86: 351.32 | E86: 346.78 | F86: 344.17 | G86: 339.63 | H86: 353.93 | I86: 358.47 | J86: 361.08 | K86: 355.85 | L86: 348.7 | M86: 8.69679
A87: 78 | B87: CANBK | C87: 247.2 | D87: 247.13 | E87: 241.57 | F87: 235.93 | G87: 230.37 | H87: 252.77 | I87: 258.33 | J87: 263.97 | K87: 252.7 | L87: 241.5 | M87: 56.79958
A88: 79 | B88: CANFINHOME | C88: 239.7 | D88: 239.13 | E88: 233.22 | F88: 226.73 | G88: 220.82 | H88: 245.62 | I88: 251.53 | J88: 258.02 | K88: 245.05 | L88: 232.65 | M88: 7.24994
A89: 80 | B89: CAPF | C89: 501.55 | D89: 499.28 | E89: 491.27 | F89: 480.98 | G89: 472.97 | H89: 509.57 | I89: 517.58 | J89: 527.87 | K89: 507.3 | L89: 489 | M89: 4.81913
A90: 81 | B90: CAPLIPOINT | C90: 398.05 | D90: 397.52 | E90: 395.63 | F90: 393.22 | G90: 391.33 | H90: 399.93 | I90: 401.82 | J90: 404.23 | K90: 399.4 | L90: 395.1 | M90: 0.18324
A91: 82 | B91: CARBORUNIV | C91: 347.3 | D91: 347.87 | E91: 343.93 | F91: 340.57 | G91: 336.63 | H91: 351.23 | I91: 355.17 | J91: 358.53 | K91: 351.8 | L91: 344.5 | M91: 0.59059
A92: 83 | B92: CARERATING | C92: 995.8 | D92: 994.60 | E92: 991.65 | F92: 987.50 | G92: 984.55 | H92: 998.75 | I92: 1001.70 | J92: 1005.85 | K92: 997.55 | L92: 990.45 | M92: 0.20802
A93: 84 | B93: CASTROLIND | C93: 144.75 | D93: 145.95 | E93: 143.15 | F93: 141.55 | G93: 138.75 | H93: 147.55 | I93: 150.35 | J93: 151.95 | K93: 148.75 | L93: 144.35 | M93: 7.97133
A94: 85 | B94: CCL | C94: 268.6 | D94: 268.78 | E94: 265.12 | F94: 261.63 | G94: 257.97 | H94: 272.27 | I94: 275.93 | J94: 279.42 | K94: 272.45 | L94: 265.3 | M94: 0.11567
A95: 86 | B95: CDSL | C95: 222.35 | D95: 223.95 | E95: 218.90 | F95: 215.45 | G95: 210.40 | H95: 227.40 | I95: 232.45 | J95: 235.90 | K95: 229 | L95: 220.5 | M95: 2.27214
A96: 87 | B96: CEATLTD | C96: 1249.2 | D96: 1253.97 | E96: 1232.93 | F96: 1216.67 | G96: 1195.63 | H96: 1270.23 | I96: 1291.27 | J96: 1307.53 | K96: 1275 | L96: 1237.7 | M96: 4.89386
A97: 88 | B97: CENTRALBK | C97: 28.3 | D97: 28.35 | E97: 28.10 | F97: 27.90 | G97: 27.65 | H97: 28.55 | I97: 28.80 | J97: 29.00 | K97: 28.6 | L97: 28.15 | M97: 1.49431
A98: 89 | B98: CENTURYPLY | C98: 183 | D98: 184.10 | E98: 178.90 | F98: 174.80 | G98: 169.60 | H98: 188.20 | I98: 193.40 | J98: 197.50 | K98: 189.3 | L98: 180 | M98: 10.73712
A99: 90 | B99: CENTURYTEX | C99: 871.5 | D99: 864.85 | E99: 853.90 | F99: 836.30 | G99: 825.35 | H99: 882.45 | I99: 893.40 | J99: 911.00 | K99: 875.8 | L99: 847.25 | M99: 5.83954
A100: 91 | B100: CERA | C100: 2336.6 | D100: 2340.58 | E100: 2326.17 | F100: 2315.73 | G100: 2301.32 | H100: 2351.02 | I100: 2365.43 | J100: 2375.87 | K100: 2355 | L100: 2330.15 | M100: 0.02477
A101: 92 | B101: CGPOWER | C101: 37.5 | D101: 37.47 | E101: 36.73 | F101: 35.97 | G101: 35.23 | H101: 38.23 | I101: 38.97 | J101: 39.73 | K101: 38.2 | L101: 36.7 | M101: 48.03114
A102: 93 | B102: CHAMBLFERT | C102: 146 | D102: 146.83 | E102: 144.22 | F102: 142.43 | G102: 139.82 | H102: 148.62 | I102: 151.23 | J102: 153.02 | K102: 149.45 | L102: 145.05 | M102: 0.9322
A103: 94 | B103: CHENNPETRO | C103: 271.95 | D103: 272.75 | E103: 267.80 | F103: 263.65 | G103: 258.70 | H103: 276.90 | I103: 281.85 | J103: 286.00 | K103: 277.7 | L103: 268.6 | M103: 2.19585
A104: 95 | B104: CHOLAFIN | C104: 1225.3 | D104: 1223.48 | E104: 1191.97 | F104: 1158.63 | G104: 1127.12 | H104: 1256.82 | I104: 1288.33 | J104: 1321.67 | K104: 1255 | L104: 1190.15 | M104: 4.19837
A105: 96 | B105: CIPLA | C105: 513.6 | D105: 518.75 | E105: 506.85 | F105: 500.10 | G105: 488.20 | H105: 525.50 | I105: 537.40 | J105: 544.15 | K105: 530.65 | L105: 512 | M105: 35.03808
A106: 97 | B106: COALINDIA | C106: 236.75 | D106: 238.57 | E106: 234.68 | F106: 232.62 | G106: 228.73 | H106: 240.63 | I106: 244.52 | J106: 246.58 | K106: 242.45 | L106: 236.5 | M106: 60.98755
A107: 98 | B107: COCHINSHIP | C107: 374.3 | D107: 375.45 | E107: 371.90 | F107: 369.50 | G107: 365.95 | H107: 377.85 | I107: 381.40 | J107: 383.80 | K107: 379 | L107: 373.05 | M107: 0.23201
A108: 99 | B108: COFFEEDAY | C108: 264 | D108: 265.07 | E108: 261.23 | F108: 258.47 | G108: 254.63 | H108: 267.83 | I108: 271.67 | J108: 274.43 | K108: 268.9 | L108: 262.3 | M108: 0.79111
A109: 100 | B109: COLPAL | C109: 1234.9 | D109: 1229.25 | E109: 1209.10 | F109: 1183.30 | G109: 1163.15 | H109: 1255.05 | I109: 1275.20 | J109: 1301.00 | K109: 1249.4 | L109: 1203.45 | M109: 6.61498
A110: 101 | B110: CONCOR | C110: 660.85 | D110: 660.95 | E110: 655.50 | F110: 650.15 | G110: 644.70 | H110: 666.30 | I110: 671.75 | J110: 677.10 | K110: 666.4 | L110: 655.6 | M110: 2.18832
A111: 102 | B111: COROMANDEL | C111: 410.4 | D111: 410.23 | E111: 406.52 | F111: 402.63 | G111: 398.92 | H111: 414.12 | I111: 417.83 | J111: 421.72 | K111: 413.95 | L111: 406.35 | M111: 1.30022
A112: 103 | B112: COX&KINGS | C112: 160.65 | D112: 161.88 | E112: 157.97 | F112: 155.28 | G112: 151.37 | H112: 164.57 | I112: 168.48 | J112: 171.17 | K112: 165.8 | L112: 159.2 | M112: 1.43562
A113: 104 | B113: CRISIL | C113: 1554 | D113: 1546.35 | E113: 1532.70 | F113: 1511.40 | G113: 1497.75 | H113: 1567.65 | I113: 1581.30 | J113: 1602.60 | K113: 1560 | L113: 1525.05 | M113: 0.04269
A114: 105 | B114: CROMPTON | C114: 219.1 | D114: 220.08 | E114: 217.02 | F114: 214.93 | G114: 211.87 | H114: 222.17 | I114: 225.23 | J114: 227.32 | K114: 223.15 | L114: 218 | M114: 6.26027
A115: 106 | B115: CUB | C115: 176.2 | D115: 175.95 | E115: 172.75 | F115: 169.30 | G115: 166.10 | H115: 179.40 | I115: 182.60 | J115: 186.05 | K115: 179.15 | L115: 172.5 | M115: 7.73741
A116: 107 | B116: CUMMINSIND | C116: 781.4 | D116: 782.17 | E116: 774.33 | F116: 767.27 | G116: 759.43 | H116: 789.23 | I116: 797.07 | J116: 804.13 | K116: 790 | L116: 775.1 | M116: 2.29626
A117: 108 | B117: CYIENT | C117: 612.6 | D117: 610.93 | E117: 604.22 | F117: 595.83 | G117: 589.12 | H117: 619.32 | I117: 626.03 | J117: 634.42 | K117: 617.65 | L117: 602.55 | M117: 2.22939
A118: 109 | B118: DABUR | C118: 411.45 | D118: 409.08 | E118: 403.97 | F118: 396.48 | G118: 391.37 | H118: 416.57 | I118: 421.68 | J118: 429.17 | K118: 414.2 | L118: 401.6 | M118: 22.19884
A119: 110 | B119: DBCORP | C119: 164.75 | D119: 165.92 | E119: 161.83 | F119: 158.92 | G119: 154.83 | H119: 168.83 | I119: 172.92 | J119: 175.83 | K119: 170 | L119: 163 | M119: 1.95462
A120: 111 | B120: DBL | C120: 451.55 | D120: 448.20 | E120: 436.40 | F120: 421.25 | G120: 409.45 | H120: 463.35 | I120: 475.15 | J120: 490.30 | K120: 460 | L120: 433.05 | M120: 3.12677
A121: 112 | B121: DBREALTY | C121: 23.3 | D121: 23.38 | E121: 22.67 | F121: 22.03 | G121: 21.32 | H121: 24.02 | I121: 24.73 | J121: 25.37 | K121: 24.1 | L121: 22.75 | M121: 1.7807
A122: 113 | B122: DCAL | C122: 234.6 | D122: 237.85 | E122: 227.75 | F122: 220.90 | G122: 210.80 | H122: 244.70 | I122: 254.80 | J122: 261.65 | K122: 247.95 | L122: 231 | M122: 0.63177
A123: 114 | B123: DCBBANK | C123: 154.3 | D123: 153.50 | E123: 151.35 | F123: 148.40 | G123: 146.25 | H123: 156.45 | I123: 158.60 | J123: 161.55 | K123: 155.65 | L123: 150.55 | M123: 17.6938
A124: 115 | B124: DCMSHRIRAM | C124: 358.95 | D124: 358.25 | E124: 352.50 | F124: 346.05 | G124: 340.30 | H124: 364.70 | I124: 370.45 | J124: 376.90 | K124: 364 | L124: 351.8 | M124: 1.0542
A125: 116 | B125: DEEPAKFERT | C125: 143.45 | D125: 145.33 | E125: 139.07 | F125: 134.68 | G125: 128.42 | H125: 149.72 | I125: 155.98 | J125: 160.37 | K125: 151.6 | L125: 140.95 | M125: 4.49667
A126: 117 | B126: DELTACORP | C126: 238.65 | D126: 238.55 | E126: 236.40 | F126: 234.15 | G126: 232.00 | H126: 240.80 | I126: 242.95 | J126: 245.20 | K126: 240.7 | L126: 236.3 | M126: 5.70029
A127: 118 | B127: DEN | C127: 69.5 | D127: 69.42 | E127: 69.23 | F127: 68.97 | G127: 68.78 | H127: 69.68 | I127: 69.87 | J127: 70.13 | K127: 69.6 | L127: 69.15 | M127: 0.67186
A128: 119 | B128: DENABANK | C128: 15.45 | D128: 15.58 | E128: 15.27 | F128: 15.08 | G128: 14.77 | H128: 15.77 | I128: 16.08 | J128: 16.27 | K128: 15.9 | L128: 15.4 | M128: 4.96844
A129: 120 | B129: DHFL | C129: 202.6 | D129: 204.23 | E129: 198.47 | F129: 194.33 | G129: 188.57 | H129: 208.37 | I129: 214.13 | J129: 218.27 | K129: 210 | L129: 200.1 | M129: 73.28622
A130: 121 | B130: DISHTV | C130: 33.65 | D130: 33.87 | E130: 33.23 | F130: 32.82 | G130: 32.18 | H130: 34.28 | I130: 34.92 | J130: 35.33 | K130: 34.5 | L130: 33.45 | M130: 42.94034
A131: 122 | B131: DIVISLAB | C131: 1491.8 | D131: 1481.63 | E131: 1465.37 | F131: 1438.93 | G131: 1422.67 | H131: 1508.07 | I131: 1524.33 | J131: 1550.77 | K131: 1497.9 | L131: 1455.2 | M131: 8.39928
A132: 123 | B132: DIXON | C132: 1957.3 | D132: 1970.78 | E132: 1936.52 | F132: 1915.73 | G132: 1881.47 | H132: 1991.57 | I132: 2025.83 | J132: 2046.62 | K132: 2005.05 | L132: 1950 | M132: 0.03893
A133: 124 | B133: DLF | C133: 172.55 | D133: 170.22 | E133: 167.43 | F133: 162.32 | G133: 159.53 | H133: 175.33 | I133: 178.12 | J133: 183.23 | K133: 173 | L133: 165.1 | M133: 64.02016
A134: 125 | B134: DMART | C134: 1513.15 | D134: 1510.37 | E134: 1499.88 | F134: 1486.62 | G134: 1476.13 | H134: 1523.63 | I134: 1534.12 | J134: 1547.38 | K134: 1520.85 | L134: 1497.1 | M134: 3.99271
A135: 126 | B135: DREDGECORP | C135: 337.3 | D135: 340.35 | E135: 332.45 | F135: 327.60 | G135: 319.70 | H135: 345.20 | I135: 353.10 | J135: 357.95 | K135: 348.25 | L135: 335.5 | M135: 0.75687
A136: 127 | B136: DRREDDY | C136: 2692.55 | D136: 2683.28 | E136: 2652.27 | F136: 2611.98 | G136: 2580.97 | H136: 2723.57 | I136: 2754.58 | J136: 2794.87 | K136: 2714.3 | L136: 2643 | M136: 11.79675
A137: 128 | B137: ECLERX | C137: 1048.75 | D137: 1053.90 | E137: 1038.85 | F137: 1028.95 | G137: 1013.90 | H137: 1063.80 | I137: 1078.85 | J137: 1088.75 | K137: 1068.95 | L137: 1044 | M137: 0.10622
A138: 129 | B138: EDELWEISS | C138: 189.4 | D138: 188.10 | E138: 184.30 | F138: 179.20 | G138: 175.40 | H138: 193.20 | I138: 197.00 | J138: 202.10 | K138: 191.9 | L138: 183 | M138: 13.55929
A139: 130 | B139: EICHERMOT | C139: 22369.25 | D139: 22272.93 | E139: 22059.72 | F139: 21750.18 | G139: 21536.97 | H139: 22582.47 | I139: 22795.68 | J139: 23105.22 | K139: 22486.15 | L139: 21963.4 | M139: 0.96234
A140: 131 | B140: EIDPARRY | C140: 201.25 | D140: 202.50 | E140: 197.90 | F140: 194.55 | G140: 189.95 | H140: 205.85 | I140: 210.45 | J140: 213.80 | K140: 207.1 | L140: 199.15 | M140: 0.58215
A141: 132 | B141: EIHOTEL | C141: 182.45 | D141: 181.67 | E141: 179.88 | F141: 177.32 | G141: 175.53 | H141: 184.23 | I141: 186.02 | J141: 188.58 | K141: 183.45 | L141: 179.1 | M141: 0.37318
A142: 133 | B142: EMAMILTD | C142: 404.9 | D142: 411.12 | E142: 397.78 | F142: 390.67 | G142: 377.33 | H142: 418.23 | I142: 431.57 | J142: 438.68 | K142: 424.45 | L142: 404 | M142: 8.91073
A143: 134 | B143: ENDURANCE | C143: 1153.7 | D143: 1145.25 | E143: 1131.60 | F143: 1109.50 | G143: 1095.85 | H143: 1167.35 | I143: 1181.00 | J143: 1203.10 | K143: 1158.9 | L143: 1123.15 | M143: 0.29266
A144: 135 | B144: ENGINERSIN | C144: 111.55 | D144: 111.88 | E144: 110.42 | F144: 109.28 | G144: 107.82 | H144: 113.02 | I144: 114.48 | J144: 115.62 | K144: 113.35 | L144: 110.75 | M144: 10.42497
A145: 136 | B145: EQUITAS | C145: 108.85 | D145: 110.13 | E145: 106.57 | F145: 104.28 | G145: 100.72 | H145: 112.42 | I145: 115.98 | J145: 118.27 | K145: 113.7 | L145: 107.85 | M145: 22.49213
A146: 137 | B146: ERIS | C146: 645.65 | D146: 643.20 | E146: 633.25 | F146: 620.85 | G146: 610.90 | H146: 655.60 | I146: 665.55 | J146: 677.95 | K146: 653.15 | L146: 630.8 | M146: 0.08454
A147: 138 | B147: EROSMEDIA | C147: 84.2 | D147: 84.58 | E147: 82.42 | F147: 80.63 | G147: 78.47 | H147: 86.37 | I147: 88.53 | J147: 90.32 | K147: 86.75 | L147: 82.8 | M147: 4.77309
A148: 139 | B148: ESCORTS | C148: 626.65 | D148: 627.73 | E148: 615.92 | F148: 605.18 | G148: 593.37 | H148: 638.47 | I148: 650.28 | J148: 661.02 | K148: 639.55 | L148: 617 | M148: 21.11303
A149: 140 | B149: EVEREADY | C149: 198.8 | D149: 198.33 | E149: 196.47 | F149: 194.13 | G149: 192.27 | H149: 200.67 | I149: 202.53 | J149: 204.87 | K149: 200.2 | L149: 196 | M149: 0.43586
A150: 141 | B150: EXIDEIND | C150: 249.6 | D150: 249.38 | E150: 246.92 | F150: 244.23 | G150: 241.77 | H150: 252.07 | I150: 254.53 | J150: 257.22 | K150: 251.85 | L150: 246.7 | M150: 6.78352
A151: 142 | B151: FCONSUMER | C151: 44.3 | D151: 44.60 | E151: 43.70 | F151: 43.10 | G151: 42.20 | H151: 45.20 | I151: 46.10 | J151: 46.70 | K151: 45.5 | L151: 44 | M151: 13.50195
A152: 143 | B152: FEDERALBNK | C152: 83.5 | D152: 83.40 | E152: 81.40 | F152: 79.30 | G152: 77.30 | H152: 85.50 | I152: 87.50 | J152: 89.60 | K152: 85.4 | L152: 81.3 | M152: 152.4322
A153: 144 | B153: FINCABLES | C153: 460.6 | D153: 462.87 | E153: 447.78 | F153: 434.97 | G153: 419.88 | H153: 475.68 | I153: 490.77 | J153: 503.58 | K153: 477.95 | L153: 450.05 | M153: 0.62119
A154: 145 | B154: FINPIPE | C154: 510.7 | D154: 514.63 | E154: 505.37 | F154: 500.03 | G154: 490.77 | H154: 519.97 | I154: 529.23 | J154: 534.57 | K154: 523.9 | L154: 509.3 | M154: 2.33172
A155: 146 | B155: FLFL | C155: 404.7 | D155: 401.57 | E155: 393.13 | F155: 381.57 | G155: 373.13 | H155: 413.13 | I155: 421.57 | J155: 433.13 | K155: 410 | L155: 390 | M155: 0.18597
A156: 147 | B156: FSL | C156: 51.75 | D156: 52.27 | E156: 50.88 | F156: 50.02 | G156: 48.63 | H156: 53.13 | I156: 54.52 | J156: 55.38 | K156: 53.65 | L156: 51.4 | M156: 43.68805
A157: 148 | B157: GAIL | C157: 334.7 | D157: 337.50 | E157: 328.00 | F157: 321.30 | G157: 311.80 | H157: 344.20 | I157: 353.70 | J157: 360.40 | K157: 347 | L157: 330.8 | M157: 72.24133
A158: 149 | B158: GATI | C158: 79.35 | D158: 80.12 | E158: 78.23 | F158: 77.12 | G158: 75.23 | H158: 81.23 | I158: 83.12 | J158: 84.23 | K158: 82 | L158: 79 | M158: 3.28503
A159: 150 | B159: GDL | C159: 136.35 | D159: 137.42 | E159: 134.43 | F159: 132.52 | G159: 129.53 | H159: 139.33 | I159: 142.32 | J159: 144.23 | K159: 140.4 | L159: 135.5 | M159: 1.57691
A160: 151 | B160: GEPIL | C160: 813.85 | D160: 817.63 | E160: 806.32 | F160: 798.78 | G160: 787.47 | H160: 825.17 | I160: 836.48 | J160: 844.02 | K160: 828.95 | L160: 810.1 | M160: 0.04945
A161: 152 | B161: GESHIP | C161: 305.05 | D161: 303.12 | E161: 299.53 | F161: 294.02 | G161: 290.43 | H161: 308.63 | I161: 312.22 | J161: 317.73 | K161: 306.7 | L161: 297.6 | M161: 0.59738
A162: 153 | B162: GET&D | C162: 223 | D162: 224.32 | E162: 218.88 | F162: 214.77 | G162: 209.33 | H162: 228.43 | I162: 233.87 | J162: 237.98 | K162: 229.75 | L162: 220.2 | M162: 0.53105
A163: 154 | B163: GHCL | C163: 218.3 | D163: 220.33 | E163: 214.17 | F163: 210.03 | G163: 203.87 | H163: 224.47 | I163: 230.63 | J163: 234.77 | K163: 226.5 | L163: 216.2 | M163: 0.47117
A164: 155 | B164: GICRE | C164: 275.2 | D164: 275.45 | E164: 274.25 | F164: 273.30 | G164: 272.10 | H164: 276.40 | I164: 277.60 | J164: 278.55 | K164: 276.65 | L164: 274.5 | M164: 0.32083
A165: 156 | B165: GILLETTE | C165: 6492.7 | D165: 6491.23 | E165: 6462.47 | F165: 6432.23 | G165: 6403.47 | H165: 6521.47 | I165: 6550.23 | J165: 6580.47 | K165: 6520 | L165: 6461 | M165: 0.02652
A166: 157 | B166: GLAXO | C166: 1354.1 | D166: 1364.03 | E166: 1330.07 | F166: 1306.03 | G166: 1272.07 | H166: 1388.07 | I166: 1422.03 | J166: 1446.07 | K166: 1398 | L166: 1340 | M166: 0.08168
A167: 158 | B167: GLENMARK | C167: 644.55 | D167: 641.38 | E167: 631.82 | F167: 619.08 | G167: 609.52 | H167: 654.12 | I167: 663.68 | J167: 676.42 | K167: 650.95 | L167: 628.65 | M167: 17.66739
A168: 159 | B168: GMDCLTD | C168: 86.15 | D168: 86.12 | E168: 85.28 | F168: 84.42 | G168: 83.58 | H168: 86.98 | I168: 87.82 | J168: 88.68 | K168: 86.95 | L168: 85.25 | M168: 0.79066
A169: 160 | B169: GMRINFRA | C169: 15.2 | D169: 15.25 | E169: 15.10 | F169: 15.00 | G169: 14.85 | H169: 15.35 | I169: 15.50 | J169: 15.60 | K169: 15.4 | L169: 15.15 | M169: 79.77983
A170: 161 | B170: GNFC | C170: 340 | D170: 340.98 | E170: 337.12 | F170: 334.23 | G170: 330.37 | H170: 343.87 | I170: 347.73 | J170: 350.62 | K170: 344.85 | L170: 338.1 | M170: 2.33469
A171: 162 | B171: GODFRYPHLP | C171: 889 | D171: 896.25 | E171: 873.25 | F171: 857.50 | G171: 834.50 | H171: 912.00 | I171: 935.00 | J171: 950.75 | K171: 919.25 | L171: 880.5 | M171: 3.96061
A172: 163 | B172: GODREJAGRO | C172: 502.6 | D172: 506.20 | E172: 495.40 | F172: 488.20 | G172: 477.40 | H172: 513.40 | I172: 524.20 | J172: 531.40 | K172: 517 | L172: 499 | M172: 0.75471
A173: 164 | B173: GODREJCP | C173: 752.1 | D173: 750.80 | E173: 743.00 | F173: 733.90 | G173: 726.10 | H173: 759.90 | I173: 767.70 | J173: 776.80 | K173: 758.6 | L173: 741.7 | M173: 5.29815
A174: 165 | B174: GODREJIND | C174: 543.2 | D174: 545.10 | E174: 536.40 | F174: 529.60 | G174: 520.90 | H174: 551.90 | I174: 560.60 | J174: 567.40 | K174: 553.8 | L174: 538.3 | M174: 3.57043
A175: 166 | B175: GODREJPROP | C175: 656.85 | D175: 661.52 | E175: 648.33 | F175: 639.82 | G175: 626.63 | H175: 670.03 | I175: 683.22 | J175: 691.73 | K175: 674.7 | L175: 653 | M175: 1.48551
A176: 167 | B176: GPPL | C176: 96.1 | D176: 94.97 | E176: 93.58 | F176: 91.07 | G176: 89.68 | H176: 97.48 | I176: 98.87 | J176: 101.38 | K176: 96.35 | L176: 92.45 | M176: 1.32196
A177: 168 | B177: GRANULES | C177: 84.35 | D177: 84.63 | E177: 82.92 | F177: 81.48 | G177: 79.77 | H177: 86.07 | I177: 87.78 | J177: 89.22 | K177: 86.35 | L177: 83.2 | M177: 7.94427
A178: 169 | B178: GRAPHITE | C178: 892.35 | D178: 887.78 | E178: 873.57 | F178: 854.78 | G178: 840.57 | H178: 906.57 | I178: 920.78 | J178: 939.57 | K178: 902 | L178: 869 | M178: 6.30568
A179: 170 | B179: GRASIM | C179: 802.3 | D179: 801.47 | E179: 793.93 | F179: 785.57 | G179: 778.03 | H179: 809.83 | I179: 817.37 | J179: 825.73 | K179: 809 | L179: 793.1 | M179: 8.92722
A180: 171 | B180: GREAVESCOT | C180: 118.65 | D180: 119.68 | E180: 115.87 | F180: 113.08 | G180: 109.27 | H180: 122.47 | I180: 126.28 | J180: 129.07 | K180: 123.5 | L180: 116.9 | M180: 7.62557
A181: 172 | B181: GREENPLY | C181: 139.25 | D181: 138.62 | E181: 135.78 | F181: 132.32 | G181: 129.48 | H181: 142.08 | I181: 144.92 | J181: 148.38 | K181: 141.45 | L181: 135.15 | M181: 1.67364
A182: 173 | B182: GRUH | C182: 295.05 | D182: 295.27 | E182: 290.88 | F182: 286.72 | G182: 282.33 | H182: 299.43 | I182: 303.82 | J182: 307.98 | K182: 299.65 | L182: 291.1 | M182: 1.38768
A183: 174 | B183: GSFC | C183: 106.45 | D183: 105.33 | E183: 103.72 | F183: 100.98 | G183: 99.37 | H183: 108.07 | I183: 109.68 | J183: 112.42 | K183: 106.95 | L183: 102.6 | M183: 23.21227
A184: 175 | B184: GSKCONS | C184: 7515.7 | D184: 7506.78 | E184: 7448.92 | F184: 7382.13 | G184: 7324.27 | H184: 7573.57 | I184: 7631.43 | J184: 7698.22 | K184: 7564.65 | L184: 7440 | M184: 0.71996
A185: 176 | B185: GSPL | C185: 181.95 | D185: 182.32 | E185: 180.33 | F185: 178.72 | G185: 176.73 | H185: 183.93 | I185: 185.92 | J185: 187.53 | K185: 184.3 | L185: 180.7 | M185: 2.13451
A186: 177 | B186: GUJALKALI | C186: 541 | D186: 542.37 | E186: 534.73 | F186: 528.47 | G186: 520.83 | H186: 548.63 | I186: 556.27 | J186: 562.53 | K186: 550 | L186: 536.1 | M186: 0.54841
A187: 178 | B187: GUJFLUORO | C187: 893 | D187: 888.22 | E187: 873.43 | F187: 853.87 | G187: 839.08 | H187: 907.78 | I187: 922.57 | J187: 942.13 | K187: 903 | L187: 868.65 | M187: 0.57302
A188: 179 | B188: GUJGASLTD | C188: 641.5 | D188: 638.85 | E188: 632.70 | F188: 623.90 | G188: 617.75 | H188: 647.65 | I188: 653.80 | J188: 662.60 | K188: 645 | L188: 630.05 | M188: 0.05761
A189: 180 | B189: GULFOILLUB | C189: 801.35 | D189: 791.50 | E189: 776.00 | F189: 750.65 | G189: 735.15 | H189: 816.85 | I189: 832.35 | J189: 857.70 | K189: 807 | L189: 766.15 | M189: 0.15865
A190: 181 | B190: GVKPIL | C190: 6.95 | D190: 6.93 | E190: 6.82 | F190: 6.68 | G190: 6.57 | H190: 7.07 | I190: 7.18 | J190: 7.32 | K190: 7.05 | L190: 6.8 | M190: 10.49335
A191: 182 | B191: HATHWAY | C191: 30.55 | D191: 30.58 | E191: 30.52 | F191: 30.48 | G191: 30.42 | H191: 30.62 | I191: 30.68 | J191: 30.72 | K191: 30.65 | L191: 30.55 | M191: 1.85286
A192: 183 | B192: HATSUN | C192: 620.3 | D192: 620.58 | E192: 616.27 | F192: 612.23 | G192: 607.92 | H192: 624.62 | I192: 628.93 | J192: 632.97 | K192: 624.9 | L192: 616.55 | M192: 0.20349
A193: 184 | B193: HAVELLS | C193: 676.7 | D193: 677.73 | E193: 672.62 | F193: 668.53 | G193: 663.42 | H193: 681.82 | I193: 686.93 | J193: 691.02 | K193: 682.85 | L193: 673.65 | M193: 7.22318
A194: 185 | B194: HCC | C194: 10.9 | D194: 10.88 | E194: 10.77 | F194: 10.63 | G194: 10.52 | H194: 11.02 | I194: 11.13 | J194: 11.27 | K194: 11 | L194: 10.75 | M194: 43.07379
A195: 186 | B195: HCL-INSYS | C195: 24.05 | D195: 24.03 | E195: 23.67 | F195: 23.28 | G195: 22.92 | H195: 24.42 | I195: 24.78 | J195: 25.17 | K195: 24.4 | L195: 23.65 | M195: 9.59697
A196: 187 | B196: HCLTECH | C196: 961.95 | D196: 965.47 | E196: 930.93 | F196: 899.92 | G196: 865.38 | H196: 996.48 | I196: 1031.02 | J196: 1062.03 | K196: 1000 | L196: 934.45 | M196: 105.46835
A197: 188 | B197: HDFC | C197: 1951.35 | D197: 1947.25 | E197: 1933.20 | F197: 1915.05 | G197: 1901.00 | H197: 1965.40 | I197: 1979.45 | J197: 1997.60 | K197: 1961.3 | L197: 1929.1 | M197: 24.42617
A198: 189 | B198: HDFCBANK | C198: 2107.6 | D198: 2101.97 | E198: 2085.93 | F198: 2064.27 | G198: 2048.23 | H198: 2123.63 | I198: 2139.67 | J198: 2161.33 | K198: 2118 | L198: 2080.3 | M198: 24.7598
A199: 190 | B199: HDIL | C199: 21.25 | D199: 21.68 | E199: 20.62 | F199: 19.98 | G199: 18.92 | H199: 22.32 | I199: 23.38 | J199: 24.02 | K199: 22.75 | L199: 21.05 | M199: 38.028
A200: 191 | B200: HEG | C200: 3975.35 | D200: 3992.42 | E200: 3934.93 | F200: 3894.52 | G200: 3837.03 | H200: 4032.83 | I200: 4090.32 | J200: 4130.73 | K200: 4049.9 | L200: 3952 | M200: 1.36958
A201: 192 | B201: HEIDELBERG | C201: 151.65 | D201: 151.92 | E201: 148.88 | F201: 146.12 | G201: 143.08 | H201: 154.68 | I201: 157.72 | J201: 160.48 | K201: 154.95 | L201: 149.15 | M201: 1.16043
A202: 193 | B202: HERITGFOOD | C202: 494.7 | D202: 490.28 | E202: 479.52 | F202: 464.33 | G202: 453.57 | H202: 505.47 | I202: 516.23 | J202: 531.42 | K202: 501.05 | L202: 475.1 | M202: 0.18339
A203: 194 | B203: HEROMOTOCO | C203: 3066.8 | D203: 3056.30 | E203: 3035.60 | F203: 3004.40 | G203: 2983.70 | H203: 3087.50 | I203: 3108.20 | J203: 3139.40 | K203: 3077 | L203: 3025.1 | M203: 3.65305
A204: 195 | B204: HEXAWARE | C204: 316.05 | D204: 316.10 | E204: 311.10 | F204: 306.15 | G204: 301.15 | H204: 321.05 | I204: 326.05 | J204: 331.00 | K204: 321.1 | L204: 311.15 | M204: 14.27998
A205: 196 | B205: HFCL | C205: 17.55 | D205: 17.68 | E205: 17.27 | F205: 16.98 | G205: 16.57 | H205: 17.97 | I205: 18.38 | J205: 18.67 | K205: 18.1 | L205: 17.4 | M205: 13.25849
A206: 197 | B206: HIMATSEIDE | C206: 208 | D206: 209.82 | E206: 203.23 | F206: 198.47 | G206: 191.88 | H206: 214.58 | I206: 221.17 | J206: 225.93 | K206: 216.4 | L206: 205.05 | M206: 0.40664
... 304 more rows

Sheet Bulk Deals
E6: Back To Main Page
A7: Subject : | B7: BULK DEAL | D7: =Main!B10 -> 2018-12-10
A9: Date | B9: Scrip code | C9: Scrip Name | D9: Client Name | E9: Buy / Sell | F9: Quantity Traded | G9: Trade Price / Wt.Avg.trade price | H9: Exchange
A10: 2018-12-07 | B10: 542057 | C10: BCPL | D10: KAMLESH BALCHAND SHAH HUF | E10: SELL | F10: 116,000 | G10: 35 | H10: BSE
A11: 2018-12-07 | B11: 542057 | C11: BCPL | D11: NEWEDGE VINIMAY PRIVATE LIMITED . | E11: BUY | F11: 116,000 | G11: 35 | H11: BSE
A12: 2018-12-07 | B12: 530393 | C12: DBSTOCKBRO | D12: MANGALJYOTI SYNDICATE PRIVATE LIMITED | E12: BUY | F12: 690,000 | G12: 8.4 | H12: BSE
A13: 2018-12-07 | B13: 530393 | C13: DBSTOCKBRO | D13: GURU KIRPA FINVEST LTD | E13: SELL | F13: 688,779 | G13: 8.4 | H13: BSE
A14: 2018-12-07 | B14: 530663 | C14: GOYALASS | D14: RITESH PRAFUL SHAH . | E14: SELL | F14: 395,100 | G14: 2.9 | H14: BSE
A15: 2018-12-07 | B15: 530663 | C15: GOYALASS | D15: YOGESH DHARNIDHARKA | E15: BUY | F15: 540,300 | G15: 2.9 | H15: BSE
A16: 2018-12-07 | B16: 536709 | C16: INDRENEW | D16: SHALAKA SANTOSH GURAV | E16: SELL | F16: 79,084 | G16: 17.96 | H16: BSE
A17: 2018-12-07 | B17: 536709 | C17: INDRENEW | D17: MUKESH MEHTA | E17: BUY | F17: 50,496 | G17: 18 | H17: BSE
A18: 2018-12-07 | B18: 506134 | C18: INTELLCAP | D18: N K WEALTH SOLUTIONS LLP | E18: BUY | F18: 359,716 | G18: 8.95 | H18: BSE
A19: 2018-12-07 | B19: 506134 | C19: INTELLCAP | D19: SIVANARAYANAN FINANCIAL SERVICES PRIVATE LIMITED | E19: SELL | F19: 359,716 | G19: 8.95 | H19: BSE
A20: 2018-12-07 | B20: 540756 | C20: KAARYAFSL | D20: SAMATA VIKRAMBHAI SHAH | E20: BUY | F20: 27,000 | G20: 34 | H20: BSE
A21: 2018-12-07 | B21: 540756 | C21: KAARYAFSL | D21: ARVIND SHANTILAL SHAH | E21: SELL | F21: 27,000 | G21: 34 | H21: BSE
A22: 2018-12-07 | B22: 531206 | C22: KWALITYCL | D22: PRIMARY IRON TRADERS PVT LTD | E22: SELL | F22: 40,000 | G22: 10.15 | H22: BSE
A23: 2018-12-07 | B23: 531206 | C23: KWALITYCL | D23: NIKUNJ SURESHCHANDRA SHAH HUF | E23: BUY | F23: 40,000 | G23: 10.15 | H23: BSE
A24: 2018-12-07 | B24: 537800 | C24: MANGIND | D24: SARVOTTAM SECURITIES PRIVATE LIMITED | E24: BUY | F24: 7,700,000 | G24: 0.63 | H24: BSE
A25: 2018-12-07 | B25: 502250 | C25: MARATHR | D25: SPARROW ASIA DIVERSIFIED OPP FUND | E25: BUY | F25: 4,567 | G25: 290 | H25: BSE
A26: 2018-12-07 | B26: 539595 | C26: NATECO | D26: HASMUKHRAI LALUBHAI MEHTA | E26: BUY | F26: 23,737 | G26: 11.31 | H26: BSE
A27: 2018-12-07 | B27: 539595 | C27: NATECO | D27: HASMUKHRAI LALUBHAI MEHTA | E27: SELL | F27: 37 | G27: 11.77 | H27: BSE
A28: 2018-12-07 | B28: 540416 | C28: OCTAWARE | D28: OVERSKUD MULTI ASSET MANAGEMENT PRIVATE LIMITED | E28: BUY | F28: 27,200 | G28: 100 | H28: BSE
A29: 2018-12-07 | B29: 540416 | C29: OCTAWARE | D29: SAJANKUMAR RAMESHWARLAL BAJAJ | E29: SELL | F29: 28,800 | G29: 100 | H29: BSE
A30: 2018-12-07 | B30: 541601 | C30: RAJNISH | D30: AKSHAR INVESTMENT | E30: BUY | F30: 66,000 | G30: 115 | H30: BSE
A31: 2018-12-07 | B31: 541601 | C31: RAJNISH | D31: SHRI MAHALAXMI AGRICULTURAL DEVELOPMENTS LIMITED | E31: SELL | F31: 66,000 | G31: 115 | H31: BSE
A32: 2018-12-07 | B32: 534734 | C32: RMCHEM | D32: SATISH ARVIND PATEL | E32: BUY | F32: 1,300,000 | G32: 1.51 | H32: BSE
A33: 2018-12-07 | B33: 534734 | C33: RMCHEM | D33: RAM ALLOY CASTINGS PRIVATE LIMITED | E33: SELL | F33: 3,050,000 | G33: 1.51 | H33: BSE
A34: 2018-12-07 | B34: 542145 | C34: RONI | D34: USHA DINESH SHAH | E34: SELL | F34: 228,000 | G34: 20.25 | H34: BSE
A35: 2018-12-07 | B35: 542145 | C35: RONI | D35: AMAR MUKESH SHAH | E35: BUY | F35: 30,000 | G35: 20.25 | H35: BSE
A36: 2018-12-07 | B36: 542145 | C36: RONI | D36: AMAR MUKESHBHAI SHAH | E36: BUY | F36: 90,000 | G36: 20.25 | H36: BSE
A37: 2018-12-07 | B37: 542145 | C37: RONI | D37: AMARKUMAR SHAH HIRAL | E37: BUY | F37: 90,000 | G37: 20.25 | H37: BSE
A38: 2018-12-07 | B38: 506906 | C38: SCBL | D38: MINABEN HASMUKHLAL SHAH | E38: SELL | F38: 75,000 | G38: 9.8 | H38: BSE
A39: 2018-12-07 | B39: 506906 | C39: SCBL | D39: MANISHA N KOTHARI | E39: BUY | F39: 89,739 | G39: 9.82 | H39: BSE
A40: 2018-12-07 | B40: 506906 | C40: SCBL | D40: MANISHA N KOTHARI | E40: SELL | F40: 51,668 | G40: 9.7 | H40: BSE
A41: 2018-12-07 | B41: 541112 | C41: SHREESHAY | D41: AFFLUENCE GEMS PRIVATELIMITED | E41: SELL | F41: 200,000 | G41: 20.25 | H41: BSE
A42: 2018-12-07 | B42: 541112 | C42: SHREESHAY | D42: SAJANKUMAR RAMESHWARLAL BAJAJ | E42: BUY | F42: 256,000 | G42: 20.25 | H42: BSE
A43: 2018-12-07 | B43: 542146 | C43: SKIFL | D43: NAMRA TRADERS AND DISTRIBUTORS LLP | E43: BUY | F43: 80,000 | G43: 11.16 | H43: BSE
A44: 2018-12-07 | B44: 542146 | C44: SKIFL | D44: SHASHANK PRAVINCHANDRA DOSHI | E44: SELL | F44: 50,000 | G44: 11.16 | H44: BSE
A45: 2018-12-07 | B45: 539835 | C45: SUPERIOR | D45: ASHISH KUMAR SINGH | E45: BUY | F45: 40,000 | G45: 19.05 | H45: BSE
A46: 2018-12-07 | B46: 539835 | C46: SUPERIOR | D46: SEEMA SHARMA | E46: BUY | F46: 19,950 | G46: 19.05 | H46: BSE
A47: 2018-12-07 | B47: 539835 | C47: SUPERIOR | D47: SUMAN GARG | E47: SELL | F47: 40,000 | G47: 19.05 | H47: BSE
A48: 2018-12-07 | B48: 539835 | C48: SUPERIOR | D48: GUNJAN GARG | E48: SELL | F48: 20,000 | G48: 19.05 | H48: BSE
A49: 2018-12-07 | B49: 532070 | C49: SUPRBPA | D49: REKHA BOKHA | E49: SELL | F49: 26,699 | G49: 20 | H49: BSE
A50: 2018-12-07 | B50: 532070 | C50: SUPRBPA | D50: REKHA BOKHA | E50: BUY | F50: 46,699 | G50: 22.47 | H50: BSE
A51: 2018-12-07 | B51: 531547 | C51: TIRIN | D51: JYOTIPRASAD TAPARIA | E51: SELL | F51: 100,000 | G51: 2.35 | H51: BSE
A52: 2018-12-07 | B52: 531547 | C52: TIRIN | D52: KRUPA TRADING LLP | E52: BUY | F52: 100,000 | G52: 2.35 | H52: BSE
A53: 2018-12-07 | B53: 511764 | C53: UPASAFN | D53: JITENDERA GUPTA* | E53: BUY | F53: 27,000 | G53: 41.49 | H53: BSE
A54: 2018-12-07 | B54: 503657 | C54: VEERENRGY | D54: ASPIRE EMERGING FUND | E54: SELL | F54: 99,000 | G54: 11.51 | H54: BSE
A55: 2018-12-07 | B55: 503657 | C55: VEERENRGY | D55: RAISONNEUR CAPITAL LTD | E55: BUY | F55: 99,000 | G55: 11.51 | H55: BSE
A56: 2018-12-07 | B56: JETAIRWAYS | C56: Jet Airways (India) Ltd. | D56: CROSSLAND TRADING CO | E56: BUY | F56: 590,587 | G56: 279.19 | H56: NSE
A57: 2018-12-07 | B57: JETAIRWAYS | C57: Jet Airways (India) Ltd. | D57: SHAASTRA SECURITIES TRADING PRIVATE LIMITED | E57: BUY | F57: 928,762 | G57: 280.53 | H57: NSE
A58: 2018-12-07 | B58: RCOM | C58: Reliance Comm. Ltd. | D58: SHAASTRA SECURITIES TRADING PRIVATE LIMITED | E58: BUY | F58: 14,353,408 | G58: 16.13 | H58: NSE
A59: 2018-12-07 | B59: TEXRAIL | C59: Texmaco Rail & Eng. Ltd. | D59: AEQUITAS INVESTMENT CONSULTANCY PRIVATE LIMITED - PMS | E59: BUY | F59: 3,404,200 | G59: 51 | H59: NSE
A60: 2018-12-07 | B60: JETAIRWAYS | C60: Jet Airways (India) Ltd. | D60: CROSSLAND TRADING CO | E60: SELL | F60: 590,587 | G60: 279.31 | H60: NSE
A61: 2018-12-07 | B61: JETAIRWAYS | C61: Jet Airways (India) Ltd. | D61: SHAASTRA SECURITIES TRADING PRIVATE LIMITED | E61: SELL | F61: 928,762 | G61: 280.67 | H61: NSE
A62: 2018-12-07 | B62: PUNJLLOYD | C62: Punj Lloyd Limited | D62: IFCI LTD. | E62: SELL | F62: 2,367,024 | G62: 4.52 | H62: NSE
A63: 2018-12-07 | B63: RCOM | C63: Reliance Comm. Ltd. | D63: SHAASTRA SECURITIES TRADING PRIVATE LIMITED | E63: SELL | F63: 14,353,408 | G63: 16.15 | H63: NSE
A64: 2018-12-07 | B64: TEXRAIL | C64: Texmaco Rail & Eng. Ltd. | D64: EQUITY INTELLIGENCE INDIA | E64: SELL | F64: 1,780,364 | G64: 51.01 | H64: NSE
A65: 2018-12-07 | B65: TEXRAIL | C65: Texmaco Rail & Eng. Ltd. | D65: EQUITY INTELLIGENCE INDIA PRIVATE LIMITED [P M S] | E65: SELL | F65: 1,145,241 | G65: 51.02 | H65: NSE

Sheet Call Tracker (Equity & F&O)
M5: Back To Main Page
A6: Retail Research Technical Calls & Fundamental Performance Report for the month of December -2018
M7: =Main!B10 -> 2018-12-10
B8: Positional Call
A9: Sr.no | B9: Date | D9: Company | E9: Rec | F9: Rec Price | G9: Stop Loss*** | H9: Call Closed At | I9: Target | J9: Remark | K9: Profit / Loss per Share | L9: Gain / Loss % | M9: Status | N9: Closed Date | O9: NSE Closed Price
A10: 1 | B10: 2018-11-14 | D10: ASHOKLEY | E10: Buy | F10: 108 | G10: 100.7 | H10: 111.25 | I10: 122-125 | J10: Part Profit of Rs.3.25/- | K10: =H10-F10 -> 3.25 | L10: =K10/F10 -> 3.01% | M10: Successful | N10: 2018-11-30 | R10: R
A11: 2 | B11: 2018-11-21 | D11: ADANIPORTS | E11: Sell | F11: 358-361 | G11: 377.7 | I11: 322-326 | J11: Open | O11: =VLOOKUP(D11,Sheet2!A11:M1637,6,0) -> 373.45 | R11: R
A12: 3 | B12: 2018-11-29 | D12: JSWSTEEL | E12: Buy{} | F12: 312 | G12: 297.7 | H12: =(322+296)/2 -> 309 | I12: 344-350 | J12: Loss of Rs.3/- | K12: =H12-F12 -> -3 | L12: =K12/F12 -> -0.96% | M12: Unsuccessful | N12: 2018-12-07 | R12: R
A13: 4 | B13: 2018-11-30 | D13: RAYMOND | E13: Sell | F13: 820 | G13: 861.6 | H13: 789 | I13: 745-735 | J13: Profit of Rs.31/- | K13: =F13-H13 -> 31 | L13: 3.78% | M13: Successful | N13: 2018-12-07 | R13: R
A14: 5 | B14: 2018-11-30 | D14: INFY | E14: Buy | F14: 665 | G14: 628 | H14: 685 | I14: 725 | J14: Profit of Rs.20/- | K14: 20 | L14: =K14/F14 -> 3.01% | M14: Successful | N14: 2018-12-07 | R14: H
A34: CLBS = Closing Basis *** | F34: Reinitiated $
A35: Dividend adjusted <> | F35: Revised stoploss #
A36: Part book {}
A37: Master Trade High Risk
A38: Sr.no | B38: Date | D38: Company | E38: Rec | F38: Rec Price | G38: Stop Loss | H38: Call Closed At | I38: Target | J38: Remark | K38: Profit / Loss per share | L38: Gain / Loss per Lot | M38: Lot | N38: Status | O38: Closed Date
A39: 1 | B39: 2018-11-30 | D39: KOTAKBANK DEC FUT | E39: Buy | F39: 1229.5 | G39: 1195 | H39: 1202.5 | I39: 1270-1290 | J39: Loss of Rs. 15.5 /- | K39: =H39-F39 -> -27 | L39: =-15.5*800 -> -12400 | M39: 800 | N39: Unsuccessful | O39: 2018-12-07 | R39: H
D40: KOTAKBANK DEC 1260 CE | E40: Sell | F40: 23.5 | H40: 12 | K40: =F40-H40 -> 11.5 | R40: H
A41: 2 | B41: 2018-12-03 | D41: ADANIPORTS DEC FUT | E41: Sell | F41: 373 | G41: 382.5 | H41: 370 | I41: 360 | J41: Profit of Rs. 3 /- | K41: 3 | L41: 7500 | M41: 2500 | N41: Successful | O41: 2018-12-07 | R41: H
D42: ADANIPORTS DEC 360 PE | E42: Sell | F42: 9 | H42: 9 | K42: 0 | R42: H
A43: 3 | B43: 2018-12-07 | D43: NIFTY DEC FUT | E43: Sell | F43: 10655-10660 | G43: 10786 | I43: 10400 | J43: Open | R43: H
D44: NIFTY DEC 10500 PE | E44: Sell | F44: 122-128 | R44: H
A50: Master Trade Medium Risk
A51: Sr.no | B51: Date | D51: Company | E51: Rec | F51: Rec Price | G51: Stop Loss | H51: Call Closed At | I51: Target | J51: Remark | K51: Profit/ Loss per lot | L51: Gain / Loss per Lot | M51: Lot | N51: Status | O51: Closed Date
A52: 1 | B52: 2018-12-03 | D52: Nifty DEC 10900 PE | E52: Buy | F52: 180 | H52: 222.5 | J52: Profit of Rs 18.5/- | K52: =H52-F52 -> 42.5 | L52: =75*20 -> 1500 | M52: 75 | N52: Successful | O52: 2018-12-05 | R52: H
D53: Nifty DEC 10700 PE | E53: Sell | F53: 115 | H53: 139 | K53: =F53-H53 -> -24 | R53: H
A54: 2 | B54: 2018-12-04 | D54: ITC DEC 285 CE | E54: Buy | F54: 5.5-6 | J54: Open | R54: H
D55: ITC DEC 290 CE | E55: Sell | F55: 4-4.5 | R55: H
B68: Smart Delivery Trade
A69: Sr.no | B69: Date | D69: Company | E69: Rec | F69: Rec Price | G69: Stop Loss*** | H69: Call Closed At | I69: Target | J69: Remark | K69: Profit / Loss per Share | L69: Gain / Loss % | M69: Status | N69: Closed Date | O69: NSE Closed Price
A70: 1 | B70: 2018-11-27 | D70: MGL | E70: Buy | F70: 818.5 | G70: 793.7 | H70: 847.5 | I70: 860-870 | J70: Profit of Rs.29/- | K70: =H70-F70 -> 29 | L70: =K70/F70 -> 3.54% | M70: Successful | N70: 2018-12-03 | R70: R
A71: 2 | B71: 2018-11-28 | D71: ESCORTS | E71: Buy | F71: 691 | G71: 669 | H71: 716.5 | I71: 725-735 | J71: Profit of Rs.25.5/- | K71: =H71-F71 -> 25.5 | L71: =K71/F71 -> 3.69% | M71: Successful | N71: 2018-12-03 | R71: R
A72: 3 | B72: 2018-11-28 | D72: RELIANCE | E72: Sell | F72: 1152.5 | G72: 1186 | H72: 1152.5 | I72: 1100-1090 | J72: Neutral | K72: =F72-H72 -> 0 | L72: 0.00% | M72: Neautral | N72: 2018-12-05 | R72: H
A73: 4 | B73: 2018-11-30 | D73: BAJAJ-AUTO | E73: Buy | F73: 2755-2765 | G73: 2680 | I73: 2870-2900 | J73: Open | O73: =VLOOKUP(D73,Sheet2!A64:M1690,6,0) -> 2786.2 | R73: H
A74: 5 | B74: 2018-12-03 | D74: PVR | E74: Sell | F74: 1454 | G74: 1505 | H74: 1505 | I74: 1370-1350 | J74: Loss of Rs.51/- | K74: =F74-H74 -> -51 | L74: =K74/F74 -> -3.51% | M74: Unsuccessful | N74: 2018-12-03 | R74: H
A75: 6 | B75: 2018-12-07 | D75: TATASTEEL | E75: Buy | F75: 514-518 | G75: 495 | I75: 550 | J75: Open | R75: H
A76: 7 | B76: 2018-12-07 | D76: RAMCOCEM | E76: Buy | F76: 595-600 | G76: 580 | I76: 635-640 | J76: Open | R76: R
A89: CLBS = Closing Basis *** | F89: Reinitiated $
A90: Dividend adjusted <> | F90: Revised stoploss #
B93: Momentum Call
A94: Sr.no | B94: Date | D94: Company | E94: Rec | F94: Rec Price | G94: Stop Loss | H94: Call Closed At | I94: Target | J94: Remark | K94: Profit / Loss per Share/Lot | L94: Gain / Loss % | M94: Gain / Loss per Lot | N94: Lot | O94: Status | P94: Closed Date
A95: 1 | B95: 2018-11-29 | D95: AMARAJABAT DEC FUT | E95: Buy | F95: 723.5 | G95: 705 | H95: 705 | I95: 750 | J95: Loss of Rs.18.5/- | K95: =H95-F95 -> -18.5 | M95: =N95*K95 -> -11100 | N95: 600 | O95: Unsuccessful | P95: 2018-12-03 | R95: N
A96: 2 | B96: 2018-11-30 | D96: TATASTEEL | E96: Buy | F96: 534 | G96: 517 | H96: 549.5 | I96: 555-560 | J96: Profit of Rs.15.5/- | K96: =H96-F96 -> 15.5 | L96: =K96/F96 -> 2.90% | O96: Successful | P96: 2018-12-03 | R96: H
A97: 3 | B97: 2018-11-30 | D97: PIDILITIND DEC FUT | E97: Sell | F97: 1171 | G97: 1195 | H97: 1156.5 | I97: 1140-1130 | J97: Profit of Rs.14.5/- | K97: =F97-H97 -> 14.5 | M97: =N97*K97 -> 7250 | N97: 500 | O97: Successful | P97: 2018-12-03 | R97: H
A98: 4 | B98: 2018-12-03 | D98: UPL | E98: Buy | F98: 749 | G98: 737 | H98: 739.5 | I98: 774 | J98: Loss of Rs.9.5/- | K98: =H98-F98 -> -9.5 | M98: -11400 | N98: 1200 | O98: Unsuccessful | P98: 2018-12-03 | R98: N
A99: 5 | B99: 2018-12-03 | D99: ICICIBANK DEC FUT | E99: Sell | F99: 357.25 | G99: 362 | H99: 356 | I99: 348-346 | J99: Profit of Rs.1.25/- | K99: =F99-H99 -> 1.25 | M99: 3437.5 | N99: 2750 | O99: Successful | P99: 2018-12-05 | R99: H
A100: 6 | B100: 2018-12-04 | D100: DRREDDY DEC FUT | E100: Sell | F100: 2721 | G100: 2760 | H100: 2692 | I100: 2650 | J100: Profit of Rs.29/- | K100: =F100-H100 -> 29 | M100: =N100*K100 -> 7250 | N100: 250 | O100: Successful | P100: 2018-12-05 | R100: R
A101: 7 | B101: 2018-12-04 | D101: TCS DEC FUT | E101: Buy | F101: 2000-2010 | G101: 1945 | I101: 2080-2100 | J101: Open | R101: H
A102: 8 | B102: 2018-12-04 | D102: TATACHEM DEC FUT | E102: Buy | F102: 688 | G102: 673 | H102: 673 | I102: 710 | J102: Loss of Rs.15/- | K102: =H102-F102 -> -15 | M102: =N102*K102 -> -11250 | N102: 750 | O102: Unsuccessful | P102: 2018-12-05 | R102: N
A103: 9 | B103: 2018-12-04 | D103: AUROPHARMA DEC FUT | E103: Buy | F103: 824.5 | G103: 813 | H103: 813 | I103: 845-850 | J103: Loss of Rs.11.5/- | K103: =H103-F103 -> -11.5 | M103: =N103*K103 -> -11500 | N103: 1000 | O103: Unsuccessful | P103: 2018-12-05 | R103: H
A104: 10 | B104: 2018-12-05 | D104: DIVISLAB DEC FUT | E104: Sell | F104: 1507.5 | G104: 1532 | H104: 1486.5 | I104: 1460 | J104: Profit of Rs.21/- | K104: =F104-H104 -> 21 | M104: =N104*K104 -> 8400 | N104: 400 | O104: Successful | P104: 2018-12-05 | R104: R
A105: 11 | B105: 2018-12-05 | D105: PIDILITIND DEC FUT | E105: Sell | F105: 1171.5 | G105: 1192 | H105: 1145 | I105: 1130 | J105: Profit of Rs.26.5/- | K105: =F105-H105 -> 26.5 | M105: =N105*K105 -> 10600 | N105: 400 | O105: Successful | P105: 2018-12-05 | R105: R
A106: 12 | B106: 2018-12-07 | D106: DRREDDY DEC FUT | E106: Sell | F106: 2707.5 | G106: 2747 | H106: 2674.5 | I106: 2630 | J106: Profit of Rs.33/- | K106: =F106-H106 -> 33 | M106: 8250 | N106: 250 | O106: Successful | P106: 2018-12-07 | R106: R
A107: 13 | B107: 2018-12-07 | D107: BATAINDIA DEC FUT | E107: Sell | F107: 1060-1064 | G107: 1083 | I107: 1020 | J107: Open | R107: R
A121: CLBS = Closing Basis ***
A122: Dividend adjusted <> | F122: Reinitiated $
F123: Revised stoploss #
B124: Quick Pick Intraday
A125: Sr.no | B125: Date | D125: Company | E125: Rec | F125: Rec Price | G125: Stop Loss*** | H125: Call Closed At | I125: Target | J125: Remark | K125: Profit / Loss per Share | L125: Status | M125: Closed Date
A139: Techno -Funda (positional)
A140: Sr.no | B140: Date | D140: Company | E140: Rec | F140: Rec Price | G140: Stop Loss*** | H140: Call Closed At | I140: Target | J140: Remark | K140: Profit / Loss per Share | L140: Gain / Loss % | M140: Status | N140: Closed Date | O140: NSE Closed Price
A143: CLBS = Closing Basis *** | F143: Reinitiated $
A144: Dividend adjusted <> | F144: Revised stoploss #
B149: Investment Idea
A150: Sr.no | B150: Date | D150: Company | E150: Rec | F150: Rec Price | G150: Point of Review | H150: Close Rate | I150: Target | J150: Remark | K150: Profit / Loss per Share | L150: Gain / Loss % | M150: Status | N150: Closed Date
A151: 1 | B151: 2013-11-01 | D151: L&T Finance Holding | E151: Accu | F151: 82.00 | G151: - | H151: 100 | I151: 100.00 | J151: Target Achieved | K151: =H151-F151 -> 18.00 | L151: =K151/F151 -> 21.95% | M151: Successful | N151: 2016-10-14
A152: 2 | B152: 2014-06-04 | D152: Finolex Inds | E152: Buy | F152: 257.00 | G152: - | H152: 300 | I152: 300.00 | J152: Target Achieved | K152: =H152-F152 -> 43.00 | L152: 16.73% | M152: Successful | N152: 2014-07-02
A153: =1+A152 -> 3 | B153: 2014-07-08 | D153: JK Cement | E153: Buy | F153: 393.00 | G153: - | H153: 468 | I153: 468.00 | J153: Target Achieved | K153: =H153-F153 -> 75.00 | L153: 19.08% | M153: Successful | N153: 2014-08-12
A154: 4 | B154: 2014-08-06 | D154: Finolex Cables | E154: Buy | F154: 205.00 | G154: - | H154: 275 | I154: 250.00 | J154: Target Achieved | K154: 70.00 | L154: 34.15% | M154: Successful | N154: 2014-11-19
A155: 5 | B155: 2014-09-04 | D155: Exide Inds | E155: Buy | F155: 162.00 | G155: - | H155: 190 | I155: 190.00 | J155: Target Achieved | K155: 28.00 | L155: 17.28% | M155: Successful | N155: 2015-01-02
A156: 6 | B156: 2014-09-04 | D156: Deepak Nitrite | E156: Buy | F156: 75.00 | G156: - | H156: 91.5 | I156: 95-100 | J156: Profit of Rs.16.50/- | K156: 16.50 | L156: 22.00% | M156: Successful | N156: 2014-11-11
A157: 7 | B157: 2014-10-01 | D157: Mercks | E157: Buy | F157: 850.00 | G157: - | H157: 982.5 | I157: 1050.00 | J157: Profit of Rs.132.50/- | K157: 132.50 | L157: 15.59% | M157: Successful | N157: 2015-02-04
A158: 8 | B158: 2014-10-01 | D158: Grindwell Norton | E158: Buy | F158: 475.00 | G158: - | H158: 515 | I158: 600.00 | J158: Profit of Rs.40/- | K158: 40.00 | L158: 8.42% | M158: Successful | N158: 2014-10-27
A159: 9 | B159: 2014-10-01 | D159: Snowman Logistics | E159: Buy | F159: 86.00 | G159: - | H159: 99 | I159: 140.00 | J159: Profit of Rs.13.00/- | K159: 13.00 | L159: 15.12% | M159: Successful | N159: 2014-10-27
A160: 10 | B160: 2014-10-14 | D160: Birla Corp | E160: Buy | F160: 496.60 | G160: - | H160: 621 | I160: 580.00 | J160: Target Achieved | K160: 124.40 | L160: 25.05% | M160: Successful | N160: 2016-08-23
A161: 11 | B161: 2014-10-14 | D161: Ultratech Cem | E161: Buy | F161: 2481.90 | G161: - | H161: 2840 | I161: 2870.00 | J161: Profit of Rs.358.10/- | K161: 358.10 | L161: 14.43% | M161: Successful | N161: 2015-01-13
A162: =1+A159 -> 10 | B162: 2014-10-16 | D162: Sintex Inds | E162: Buy | F162: 84.50 | G162: - | H162: 93 | I162: 110.00 | J162: Profit of Rs.8.50/- | K162: 8.50 | L162: 10.06% | M162: Successful | N162: 2014-10-27
A163: =1+A162 -> 11 | B163: 2014-10-16 | D163: HSIL | E163: Buy | F163: 401.00 | G163: - | H163: 428 | I163: 450.00 | J163: Profit of Rs.27.00/- | K163: 27.00 | L163: 6.73% | M163: Successful | N163: 2015-01-16
A164: 12 | B164: 2014-10-16 | D164: Eveready Inds | E164: Buy | F164: 101.00 | G164: - | H164: 112 | I164: 120.00 | J164: Profit of Rs.11.00/- | K164: 11.00 | L164: 10.89% | M164: Successful | N164: 2014-10-27
A165: 13 | B165: 2014-11-11 | D165: Pennar Inds | E165: Buy | F165: 59.00 | G165: - | H165: 76 | I165: 76.00 | J165: Target Achieved | K165: 17.00 | L165: 28.81% | M165: Successful | N165: 2017-10-24
A166: 14 | B166: 2014-11-11 | D166: Snowman Logistics | E166: Buy | F166: 99.00 | G166: - | H166: 120 | I166: 120.00 | J166: Profit of Rs.21/- | K166: 21.00 | L166: 21.21% | M166: Successful | N166: 2014-11-17
A167: 15 | B167: 2014-11-13 | D167: Dharamsi Morarji Chem | E167: Buy | F167: 22.00 | G167: - | H167: 33.55 | I167: 32.00 | J167: Profit of Rs 11.55/- | K167: 11.55 | L167: 52.50% | M167: Successful | N167: 2015-07-03
A168: 16 | B168: 2014-12-03 | D168: Tatachem | E168: Buy | F168: 440.00 | G168: - | H168: 520 | I168: 520.00 | J168: Profit of Rs 80.00/- | K168: 80.00 | L168: 18.18% | M168: Successful | N168: 2015-07-23
A169: 17 | B169: 2014-12-03 | D169: Advanta | E169: Buy | F169: 360.00 | G169: - | H169: 427 | I169: 425.00 | J169: Profit of Rs.67.00/- | K169: 67.00 | L169: 18.61% | M169: Successful | N169: 2015-02-23
A170: 18 | B170: 2015-01-08 | D170: GDL | E170: Buy | F170: 360.00 | G170: - | H170: 455 | I170: 420.00 | J170: Profit of Rs.95.00/- | K170: 95.00 | L170: 26.39% | M170: Successful | N170: 2015-01-20
A171: 19 | B171: 2015-01-08 | D171: NRB Bearing | E171: Buy | F171: 130.00 | H171: 175.5 | I171: 165.00 | J171: Profit of Rs 45.50/- | K171: 45.50 | L171: 35.00% | M171: Successful | N171: 2017-12-19
A172: 20 | B172: 2015-02-05 | D172: GSFC | E172: Accu | F172: 98.00 | H172: 120 | I172: 120.00 | J172: Target Achieved | K172: 22.00 | L172: 22.45% | M172: Successful | N172: 2017-01-18
A173: 21 | B173: 2015-02-05 | D173: Sundrmfast | E173: Accu | F173: 196.00 | H173: 262 | I173: 255.00 | J173: Target Achieved | K173: 66.00 | L173: 33.67% | M173: Successful | N173: 2016-08-17
A174: 22 | B174: 2015-03-04 | D174: GPPL | E174: Accu | F174: 230-240 | I174: 280-285 | J174: Open
A175: 23 | B175: 2015-03-04 | D175: ORIENTCEM | E175: Accu | F175: 185.00 | H175: 224 | I175: 220-225 | J175: Target Achieved | K175: 39.00 | L175: =K175/F175 -> 21.08% | M175: Successful | N175: 2016-10-04
A176: 24 | B176: 2015-03-27 | D176: PFS | E176: Accu | F176: 49-50 | I176: 67.00 | J176: Open
A177: 25 | B177: 2015-03-30 | D177: Walchandnagar Ind Ltd | E177: Accu | F177: 183.50 | H177: 219 | I177: 218.00 | J177: Profit of Rs.35.50/- | K177: 35.50 | L177: =K177/F177 -> 19.35% | M177: Successful | N177: 2015-04-09
A178: 26 | B178: 2015-04-20 | D178: Kalpataru Power Transmission Ltd | E178: Accu | F178: =(227+237)/2 -> 232.00 | H178: 298 | I178: 298.00 | J178: Target Achieved | K178: 66.00 | L178: 28.45% | M178: Successful | N178: 2017-03-29
A179: 27 | B179: 2015-05-04 | D179: Mastek Ltd | E179: Buy | F179: 385.00 | H179: =212.5+331 -> 543.5 | I179: 510.00 | J179: Profit of Rs 158.50/- | K179: 158.50 | L179: 41.17% | M179: Successful | N179: 2015-08-19
A180: 28 | B180: 2015-05-04 | D180: Suprajit Eng | E180: Buy | F180: 115.50 | H180: 146 | I180: 142.00 | J180: Profit of Rs 30.50/- | K180: 30.50 | L180: 26.41% | M180: Successful | N180: 2015-07-17
A181: 29 | B181: 2015-05-27 | D181: TCI | E181: Buy | F181: 237.50 | H181: 279.5 | I181: 278.00 | J181: Target Achieved | K181: 42.00 | L181: 17.68% | M181: Successful | N181: 2015-08-06
A182: 30 | B182: 2015-06-19 | D182: HSIL | E182: Accu | F182: 340.00 | H182: 448 | I182: 448.00 | J182: Target Achieved | K182: 108.00 | L182: 31.76% | M182: Successful | N182: 2017-10-10
A183: 31 | B183: 2015-07-06 | D183: Capital First | E183: Accu | F183: 390.00 | H183: 460 | I183: 460.00 | J183: Target Achieved | K183: 70.00 | L183: 17.95% | M183: Successful | N183: 2016-04-18
A184: 32 | B184: 2015-07-10 | D184: Dolphin OffShore | E184: Accu | F184: 122.5 | H184: 61.00 | I184: 172.00 | J184: Loss of Rs.61.50/- | K184: -61.50 | L184: -50.20% | M184: Unsuccessful | N184: 2018-08-21
A185: 33 | B185: 2015-08-03 | D185: Allcargo logistics | E185: Accu | F185: 297.50 | H185: 350 | I185: 360.00 | J185: Profit of Rs 52.50/- | K185: 52.50 | L185: =K185/F185 -> 17.65% | M185: Successful | N185: 2015-08-16
A186: 34 | B186: 2015-08-03 | D186: Camline Fine | E186: Accu | F186: 115.50 | H186: 149 | I186: 140.00 | J186: Profit of Rs 33.50/- | K186: 33.50 | L186: 29.00% | M186: Successful | N186: 2017-01-05
A187: 35 | B187: 2015-09-04 | D187: TCI | E187: Accu | F187: 226.00 | H187: 292 | I187: 292.00 | J187: Target Achieved | K187: 66.00 | L187: 29.20% | M187: Successful | N187: 2015-10-09
A188: 36 | B188: 2015-09-07 | D188: Kalpataru Power Transmission Ltd | E188: Accu | F188: 232.50 | H188: 312.5 | I188: 310.00 | J188: Target Achieved | K188: 80.00 | L188: 34.41% | M188: Successful | N188: 2017-03-29
A189: 37 | B189: 2015-09-21 | D189: LLOYD ELECTRIC & ENG LTD | E189: Accu | F189: 196.50 | H189: 238 | I189: 238.00 | J189: Target Achieved | K189: 41.50 | L189: 21.12% | M189: Successful | N189: 2015-10-14
A190: 38 | B190: 2015-09-24 | D190: L&T Finance Holding | E190: Accu | F190: 65.00 | H190: 82 | I190: 82.00 | J190: Target Achieved | K190: 17.00 | L190: 26.15% | M190: Successful | N190: 2016-07-27
A191: 39 | B191: 2015-10-14 | D191: KEC International ltd | E191: Accu | F191: 144.00 | H191: 182.5 | I191: 181.00 | J191: Target Achieved | K191: 38.50 | L191: 26.74% | M191: Successful | N191: 2017-03-23
A192: 40 | B192: 2015-10-14 | D192: Gruh Finance | E192: Accu | F192: 264.00 | H192: 311 | I192: 311.00 | J192: Target Achieved | K192: 47.00 | L192: 17.80% | M192: Successful | N192: 2016-08-22
A193: 41 | B193: 2015-11-10 | D193: Pidilitind | E193: Buy | F193: 549.50 | H193: 630 | I193: 630.00 | J193: Target Achieved | K193: 80.50 | L193: 14.65% | M193: Successful | N193: 2016-02-19
A194: 42 | B194: 2015-12-04 | D194: Zensar Technology | E194: Accu | F194: 1027.50 | H194: 1315 | I194: 1250.00 | J194: Target Achieved | K194: =H194-F194 -> 287.50 | L194: 27.98% | M194: Successful | N194: 2018-05-24
A195: 43 | B195: 2015-12-29 | D195: Vinati Organics Ltd | E195: Accu | F195: 465.00 | H195: 540 | I195: 540.00 | J195: Target Achieved | K195: 75.00 | L195: =K195/F195 -> 16.13% | M195: Successful | N195: 2016-06-09
A196: 44 | B196: 2016-01-11 | D196: GSFC | E196: Buy | F196: 81.00 | H196: 110 | I196: 110.00 | J196: Target Achieved | K196: 29.00 | L196: 35.80% | M196: Successful | N196: 2017-01-10
A197: 45 | B197: 2016-01-13 | D197: SSWL | E197: Buy | F197: 417.50 | H197: 547 | I197: 535.00 | J197: Target Achieved | K197: 129.50 | L197: 31.02% | M197: Successful | N197: 2016-07-27
A198: 46 | B198: 2016-02-08 | D198: Persistent System Ltd | E198: Accu | F198: 650.00 | H198: 800 | I198: 800.00 | J198: Target Achieved | K198: 150.00 | L198: 23.08% | M198: Successful | N198: 2018-02-23
A199: 47 | B199: 2016-03-04 | D199: UPL | E199: Accu | F199: 437.50 | H199: 504.5 | I199: 522.00 | J199: Profit of Rs.67/- | K199: 67.00 | L199: 15.31% | M199: Successful | N199: 2016-04-20
A200: 48 | B200: 2016-03-09 | D200: Ashoka Buildcon Ltd | E200: Accu | F200: 189.50 | H200: 218 | I200: 218.00 | J200: Target Achieved | K200: 28.50 | L200: 15.04% | M200: Successful | N200: 2017-10-26
A201: 49 | B201: 2016-04-11 | D201: PTC INDIA FIN SERV LTD | E201: Accu | F201: 36-37 | I201: 60.00 | J201: Open
A202: 50 | B202: 2016-04-12 | D202: CAMLINFINE $ | E202: Accu | F202: 93.00 | H202: 149 | I202: 140.00 | J202: Profit of Rs 56/- | K202: 56.00 | L202: =K202/F202 -> 60.22% | M202: Successful | N202: 2017-01-05
A203: 51 | B203: 2016-04-12 | D203: Greaves Cotton Ltd. | E203: Accu | F203: 130.00 | H203: 150 | I203: 150-155 | J203: Target Achieved | K203: 20.00 | L203: 15.38% | M203: Successful | N203: 2016-07-13
A204: 52 | B204: 2016-04-13 | D204: DHFL | E204: Accu | F204: 196.00 | H204: 299 | I204: 299.00 | J204: Target Achieved | K204: 103.00 | L204: 52.55% | M204: Successful | N204: 2016-09-07
A205: 53 | B205: 2016-04-13 | D205: Magma | E205: Accu | F205: 88.00 | H205: 103 | I205: 103.00 | J205: Target Achieved | K205: 15.00 | L205: 17.05% | M205: Successful | N205: 2016-06-09
A206: 54 | B206: 2016-05-02 | D206: KEC International ltd $ | E206: Accu | F206: 127.50 | H206: 148 | I206: 148-150 | J206: Target Achieved | K206: 20.50 | L206: 16.08% | M206: Successful | N206: 2016-07-13
A207: 55 | B207: 2016-05-03 | D207: Mindtree | E207: Accu | F207: 675.00 | H207: 815 | I207: 790-800 | J207: Target Achieved | K207: 140.00 | L207: 20.74% | M207: Successful | N207: 2018-02-23
A208: 56 | B208: 2016-06-01 | D208: Atulauto | E208: Accu | F208: 495-505 | I208: 565-570 | J208: Open
A209: 57 | B209: 2016-06-06 | D209: TRITURBINE | E209: Accu | F209: 110.00 | H209: 126.5 | I209: 125.00 | J209: Profit of Rs.16.50/- | K209: 16.50 | L209: =K209/F209 -> 15.00% | M209: Successful | N209: 2016-07-01
A210: 58 | B210: 2016-06-17 | D210: Pennar Industries Ltd | E210: Accu | F210: 44.00 | H210: 69.5 | I210: 69.50 | J210: Profit of Rs.25.50/- | K210: 25.50 | L210: =K210/F210 -> 57.95% | M210: Successful | N210: 2017-08-30
A211: 59 | B211: 2016-06-28 | D211: EVEREADY INDS. IND. LTD. | E211: Accu | F211: 262.50 | H211: 340 | I211: 333.00 | J211: Profit of Rs.77.50/- | K211: 77.50 | L211: =K211/F211 -> 29.52% | M211: Successful | N211: 2017-10-09
A212: 60 | B212: 2016-06-28 | D212: FIEM INDUSTRIES LIMITED | E212: Accu | F212: 840.00 | H212: 1230 | I212: 1230.00 | J212: Target Achieved | K212: 390.00 | L212: =K212/F212 -> 46.43% | M212: Successful | N212: 2016-10-06
A213: 61 | B213: 2016-07-05 | D213: Bajaj Corp Ltd | E213: Accu | F213: 395 | H213: 468.50 | I213: 510.00 | J213: Part profit of Rs.73.50/- | K213: 73.50 | L213: =K213/F213 -> 19% | M213: Successful | N213: 2017-08-30
A214: 62 | B214: 2016-08-02 | D214: GPPL $ | E214: Buy | F214: 167-172 | I214: 198-200 | J214: Open
A215: 63 | B215: 2016-08-04 | D215: WONDERLA HOLIDAYS LTD | E215: Accu | F215: 395-405 | I215: 475.00 | J215: Open
A216: 64 | B216: 2016-08-11 | D216: CAMLINFINE | E216: Accu | F216: 86.50 | H216: 130 | I216: 130.00 | J216: Profit of Rs.43.50/- | K216: =H216-F216 -> 43.50 | L216: =K216/F216 -> 50.29% | M216: Successful | N216: 2017-12-22
A217: 65 | B217: 2016-08-18 | D217: GRANULES | E217: Accu | F217: 133.5 | H217: 126.50 | I217: 178.00 | J217: Exit | K217: -7.00 | L217: -5.24% | M217: Unsuccessful | N217: 2016-09-02
A218: 66 | B218: 2016-08-31 | D218: VA TECH WABAG | E218: Accu | F218: 560.00 | H218: 725 | I218: 725.00 | J218: Target Achieved | K218: 165.00 | L218: 29.46% | M218: Successful | N218: 2016-03-27
A219: 67 | B219: 2016-09-01 | D219: SKIPPER LIMITED | E219: Accu | F219: 160.50 | H219: 210 | I219: 210.00 | J219: Target Achieved | K219: 49.50 | L219: 30.84% | M219: Successful | N219: 2017-05-16
A220: 68 | B220: 2016-10-03 | D220: IFB Industries | E220: Accu | F220: 430.00 | H220: 596 | I220: 575.00 | J220: Profit of Rs.166/- | K220: 166.00 | L220: 38.60% | M220: Successful | N220: 2017-02-03
A221: 69 | B221: 2016-10-14 | D221: ASIANTILES | E221: Accu | F221: 280.00 | H221: 345 | I221: 345.00 | J221: Target Achieved | K221: 65.00 | L221: 23.21% | M221: Successful | N221: 2017-03-20
A222: 70 | B222: 2016-10-14 | D222: DEEPIND | E222: Accu | F222: 245.00 | H222: 325.5 | I222: 330.00 | J222: Profit of Rs.80.5/- | K222: 80.50 | L222: 32.86% | M222: Successful | N222: 2017-02-03
A223: 71 | B223: 2016-10-17 | D223: DCBBANK | E223: Accu | F223: 125.00 | H223: 160 | I223: 160.00 | J223: Target Achieved | K223: 35.00 | L223: 28.00% | M223: Successful | N223: 2017-03-09
A224: 72 | B224: 2016-10-17 | D224: ORIENTREF | E224: Accu | F224: 114.00 | H224: 145 | I224: 145.00 | J224: Target Achieved | K224: 31.00 | L224: =K224/F224 -> 27.19% | M224: Successful | N224: 2017-05-04
A225: 73 | B225: 2016-10-17 | D225: GANECOS | E225: Accu | F225: 212.00 | H225: 280 | I225: 276.00 | J225: Profit of Rs.68/- | K225: 68.00 | L225: =K225/F225 -> 32.08% | M225: Successful | N225: 2017-05-03
A226: 74 | B226: 2016-11-04 | D226: NBCC | E226: Accu | F226: 155.00 | H226: 210 | I226: 210.00 | J226: Profit of Rs.55/- | K226: 55.00 | L226: =K226/F226 -> 35.48% | M226: Successful | N226: 2017-07-28
A227: 75 | B227: 2016-12-06 | D227: PRECAM | E227: Accu | F227: 150.5 | H227: 72.50 | I227: 174.00 | J227: Loss of Rs.78/- | K227: -78.00 | L227: =K227/F227 -> -51.83% | M227: Unsuccessful | N227: 2018-08-21
A228: 76 | B228: 2016-12-08 | D228: INFRATEL | E228: Accu | F228: 380.00 | H228: 478 | I228: 468.00 | J228: Target Achieved | K228: 98.00 | L228: =K228/F228 -> 25.79% | M228: Successful | N228: 2017-10-17
A229: 77 | B229: 2016-12-30 | D229: GODREJPROP | E229: Accu | F229: 305.00 | H229: 375 | I229: 375.00 | J229: Target Achieved | K229: 70.00 | L229: 22.95% | M229: Successful | N229: 2017-02-02
A230: 78 | B230: 2017-01-04 | D230: DEEPAKNTR | E230: Accu | F230: 99.50 | H230: 158 | I230: 158.00 | J230: Target Achieved | K230: 58.50 | L230: 58.79% | M230: Successful | N230: 2017-06-12
A231: 79 | B231: 2017-02-20 | D231: SUBROS | E231: Accu | F231: 202.50 | H231: 234 | I231: 234.00 | J231: Target Achieved | K231: 31.50 | L231: 15.56% | M231: Successful | N231: 2017-04-11
A232: 80 | B232: 2017-02-20 | D232: RECLTD | E232: Accu | F232: 140.50 | H232: 220 | I232: 220.00 | J232: Target Achieved | K232: 79.50 | L232: 56.58% | M232: Successful | N232: 2017-05-09
A233: 81 | B233: 2017-03-24 | D233: VRLLOG | E233: Accu | F233: 300.50 | H233: 417.5 | I233: 420.00 | J233: Profit of Rs.117/- | K233: 117.00 | L233: 38.94% | M233: Successful | N233: 2017-12-01
A234: 82 | B234: 2017-03-24 | D234: FIEMIND | E234: Accu | F234: 850.00 | H234: 1042.5 | I234: 1023.00 | J234: Profit of Rs 192.50/- | K234: 192.50 | L234: 22.65% | M234: Successful | N234: 2017-04-05
A235: 83 | B235: 2017-04-05 | D235: RATNAMANI | E235: Accu | F235: 785.00 | H235: 930 | I235: 920.00 | J235: Profit of Rs.145/- | K235: 145.00 | L235: 18.47% | M235: Successful | N235: 2017-08-29
A236: 84 | B236: 2017-04-06 | D236: ZEEMEDIA | E236: Accu | F236: 39-41 | I236: 60.00 | J236: Open
A237: 85 | B237: 2017-04-12 | D237: DABUR | E237: Accu | F237: 289.50 | H237: 354 | I237: 360.00 | J237: Profit of Rs.64.5/- | K237: 64.50 | L237: =K237/F237 -> 22.28% | M237: Successful | N237: 2017-11-01
A238: 86 | B238: 2017-04-20 | D238: KPRMILL | E238: Accu | F238: 700.00 | H238: 840 | I238: 840.00 | J238: Profit of Rs.140/- | K238: 140.00 | L238: =K238/F238 -> 20.00% | M238: Successful | N238: 2017-06-07
A239: 87 | B239: 2017-05-22 | D239: GREAVESCOT | E239: Accu | F239: 153-158 | I239: 190.00 | J239: Open
A240: 88 | B240: 2017-06-01 | D240: ESSELPACK | E240: Accu | F240: 260 | H240: 311.00 | I240: 340.00 | J240: Part profit of Rs.51/- | K240: =H240-F240 -> 51.00 | L240: =K240/F240 -> 20% | M240: Successful | N240: 2017-11-17
A241: 89 | B241: 2017-06-15 | D241: KEI | E241: Accu | F241: 214.50 | H241: 262 | I241: 262.00 | J241: Profit of Rs.47.5/- | K241: =H241-F241 -> 47.50 | L241: 22.14% | M241: Successful | N241: 2017-08-30
A242: 90 | B242: 2017-07-17 | D242: MAYURUNIQ | E242: Accu | F242: 370.00 | H242: 447.5 | I242: 450.00 | J242: Target Achieved | K242: 77.50 | L242: 20.95% | M242: Successful | N242: 2017-10-27
A243: 91 | B243: 2017-07-27 | D243: RAMCOCEM | E243: Accu | F243: 657.50 | H243: 825 | I243: 820.00 | J243: Target Achieved | K243: 167.50 | L243: 25.48% | M243: Successful | N243: 2017-12-21
A244: 92 | B244: 2017-08-17 | D244: FINPIPE | E244: Accu | F244: 605.00 | H244: 750 | I244: 750.00 | J244: Profit of Rs.145/- | K244: 145.00 | L244: 23.97% | M244: Successful | N244: 2017-10-19
A245: 93 | B245: 2017-09-01 | D245: SHK | E245: Accu | F245: 255 | H245: 307.50 | I245: 320.00 | J245: Part profit of Rs.52.5/- | K245: 52.50 | L245: 21% | M245: Successful | N245: 2017-12-29
A246: 94 | B246: 2017-09-19 | D246: SKIPPER | E246: Accu | F246: 215.00 | H246: 258 | I246: 258.00 | J246: Target Achieved | K246: 43.00 | L246: 20.00% | M246: Successful | N246: 2017-11-01
A247: 95 | B247: 2017-09-20 | D247: CAMLINFINE | E247: Accu | F247: 75.00 | H247: 90 | I247: 90.00 | J247: Profit of Rs.15.00/- | K247: 15.00 | L247: 20.00% | M247: Successful | N247: 2017-10-11
A248: 96 | B248: 2017-10-03 | D248: GNA | E248: Accu | F248: 315.00 | H248: 392 | I248: 384.00 | J248: Profit of Rs.77/- | K248: 77.00 | L248: 24.44% | M248: Successful | N248: 2017-10-09
A249: 97 | B249: 2017-10-05 | D249: NOCIL | E249: Accu | F249: 145.00 | H249: 179 | I249: 180.00 | J249: Profit of Rs.34/- | K249: 34.00 | L249: 23.45% | M249: Successful | N249: 2017-10-17
A250: 98 | B250: 2017-10-06 | D250: CENTURYPLY | E250: Accu | F250: 256.00 | H250: 323 | I250: 320.00 | J250: Target Achieved | K250: 67.00 | L250: 26.17% | M250: Successful | N250: 2017-11-28
A251: 99 | B251: 2017-10-09 | D251: RECLTD | E251: Accu | F251: 152.5 | H251: 183.50 | I251: 210.00 | J251: Part Profit of Rs.31/- | K251: 31.00 | L251: 20% | M251: Successful | N251: 2017-11-03
A252: 100 | B252: 2017-10-09 | D252: EIHOTEL | E252: Accu | F252: 137.50 | H252: 184 | I252: 183.00 | J252: Profit of Rs.46.5/- | K252: 46.50 | L252: 33.82% | M252: Successful | N252: 2018-01-08
A253: 101 | B253: 2017-10-10 | D253: BOROSIL | E253: Accu | F253: 895.00 | H253: 1122.5 | I253: 1078.00 | J253: Profit of Rs.227.5/- | K253: 227.50 | L253: 25.42% | M253: Successful | N253: 2018-01-17
A254: 102 | B254: 2017-10-10 | D254: NRBBEARING | E254: Accu | F254: 125.50 | H254: 158 | I254: 155.00 | J254: Profit of Rs.32.5/- | K254: 32.50 | L254: 25.90% | M254: Successful | N254: 2017-11-28
A255: 103 | B255: 2017-10-12 | D255: CYIENT | E255: Accu | F255: 525.00 | H255: 629 | I255: 629.00 | J255: Target Achieved | K255: 104.00 | L255: 19.81% | M255: Successful | N255: 2018-01-19
A256: 104 | B256: 2017-11-07 | D256: HATSUN | E256: Accu | F256: 740.00 | H256: 892.5 | I256: 900.00 | J256: Profit of Rs.152.5/- | K256: 152.50 | L256: 20.61% | M256: Successful | N256: 2017-11-13
A257: 105 | B257: 2017-12-04 | D257: SANGHIIND | E257: Accu | F257: 118.50 | H257: 143.5 | I257: 145.00 | J257: Profit of Rs.25/- | K257: 25.00 | L257: 21.10% | M257: Successful | N257: 2017-12-28
A258: 106 | B258: 2017-12-05 | D258: ALLCARGO | E258: Accu | F258: 177.5 | H258: 215.00 | I258: 230.00 | J258: Part Profit of Rs.37.5/- | K258: 37.50 | L258: 21% | M258: Successful | N258: 2017-12-27
A259: 107 | B259: 2017-12-21 | D259: KAJARIACER | E259: Accu | F259: 710-720 | I259: 872.00 | J259: Open
A260: 108 | B260: 2017-12-29 | D260: GNA | E260: Accu | F260: 435.00 | H260: 542.5 | I260: 539.00 | J260: Target Achieved | K260: =H260-F260 -> 107.50 | L260: =K260/F260 -> 24.71% | M260: Successful | N260: 2018-04-16
A261: 109 | B261: 2017-12-29 | D261: ZENSARTECH | E261: Accu | F261: 885.00 | H261: 1090 | I261: 1084.00 | J261: Target Achieved | K261: 205.00 | L261: =K261/F261 -> 23.16% | M261: Successful | N261: 2018-04-23
A262: 110 | B262: 2018-02-07 | D262: GREAVESCOT | E262: Accu | F262: 130-132 | I262: 190.00 | J262: Open
A263: 111 | B263: 2018-02-27 | D263: MOLDTKPAC | E263: Accu | F263: 320-330 | I263: 398.00 | J263: Open
A264: 112 | B264: 2018-03-05 | D264: LICHSGFIN | E264: Accu | F264: 505-515 | I264: 672.00 | J264: Open
A265: 113 | B265: 2018-04-02 | D265: EVERESTIND | E265: Accu | F265: 492.5 | H265: 589.00 | I265: 613.00 | J265: Part Profit of Rs.37.5/- | K265: =H265-F265 -> 96.50 | L265: =K265/F265 -> 20% | M265: Successful | N265: 2018-08-21
A266: 114 | B266: 2018-04-04 | D266: GPPL | E266: Accu | F266: 140-143 | I266: 180.00 | J266: Open
A267: 115 | B267: 2018-04-19 | D267: MANPASAND | E267: Accu | F267: 430 | H267: 220.00 | I267: 537.00 | J267: Loss of Rs.210/- | K267: =H267-F267 -> -210.00 | L267: =K267/F267 -> -48.84% | M267: Unsuccessful | N267: 2018-06-01
A268: 116 | B268: 2018-04-30 | D268: HEIDELBERG | E268: Accu | F268: 154-158 | I268: 196.00 | J268: Open
A269: 117 | B269: 2018-05-17 | D269: PHILIPCARB | E269: Accu | F269: 230-240 | I269: 348.00 | J269: Open
A270: 118 | B270: 2018-06-07 | D270: KEC | E270: Accu | F270: 340-345 | I270: 439.00 | J270: Open
A271: 119 | B271: 2018-07-04 | D271: ASHOKLEY | E271: Accu | F271: 125-130 | I271: 170.00 | J271: Open
A272: 120 | B272: 2018-07-13 | D272: FCONSUMER | E272: Accu | F272: 46-47 | I272: 59.00 | J272: Open
A273: 121 | B273: 2018-07-25 | D273: ZEEMEDIA | E273: Accu | F273: 27-28 | I273: 44.00 | J273: Open
A274: 122 | B274: 2018-08-06 | D274: GABRIEL | E274: Accu | F274: 148-152 | I274: 182.00 | J274: Open
A275: 123 | B275: 2018-08-23 | D275: INDIANHUME | E275: Accu | F275: 280-290 | I275: 364.00 | J275: Open
A276: 124 | B276: 2018-08-29 | D276: GRINDWELL | E276: Accu | F276: 520-530 | I276: 635.00 | J276: Open
A277: 125 | B277: 2018-10-22 | D277: FINPIPE | E277: Accu | F277: 475.00 | H277: 574 | I277: 570.00 | J277: Target Achieved | K277: =H277-F277 -> 99.00 | L277: =K277/F277 -> 20.84% | M277: Successful | N277: 2018-10-30
A278: 126 | B278: 2018-10-23 | D278: JKPAPER | E278: Accu | F278: 158-162 | I278: 191.00 | J278: Open
A279: 127 | B279: 2018-10-24 | D279: GULFOILLUB | E279: Accu | F279: 700-715 | I279: 872.00 | J279: Open
A280: 128 | B280: 2018-10-25 | D280: GODREJCP | E280: Accu | F280: 700-715 | I280: 890.00 | J280: Open
A281: 129 | B281: 2018-10-25 | D281: DBCORP | E281: Accu | F281: 161-167 | I281: 209.00 | J281: Open
A282: 130 | B282: 2018-10-26 | D282: RITES | E282: Accu | F282: 240.00 | H282: 297 | I282: 297.00 | J282: Target Achieved | K282: =H282-F282 -> 57.00 | L282: =K282/F282 -> 23.75% | M282: Successful | N282: 2018-11-13
A283: 131 | B283: 2018-12-05 | D283: CCL | E283: Accu | F283: 260-270 | I283: 321.00 | J283: Open
A284: 132 | B284: 2018-12-05 | D284: VARROC | E284: Accu | F284: 710-720 | I284: 840.00 | J284: Open
A285: 133 | B285: 2018-12-05 | D285: BRIGADE | E285: Accu | F285: 197-208 | I285: 252.00 | J285: Open
F292: Reinitiated $
... 10 more rows

Sheet Sheet2 (hidden)
A1: SYMBOL | B1: SERIES | C1: OPEN | D1: HIGH | E1: LOW | F1: CLOSE | G1: LAST | H1: PREVCLOSE | I1: TOTTRDQTY | J1: TOTTRDVAL | K1: TIMESTAMP | L1: TOTALTRADES | M1: ISIN | N1: ISIN
A2: 20MICRONS | B2: EQ | C2: 42.6 | D2: 43.4 | E2: 42 | F2: 42.8 | G2: 42.55 | H2: 42.65 | I2: 17623 | J2: 752180.85 | K2: 2018-12-07 | L2: 256 | M2: INE144J01027
A3: 21STCENMGM | B3: EQ | C3: 23.7 | D3: 24.3 | E3: 23.4 | F3: 24.25 | G3: 24.25 | H3: 23.85 | I3: 1098 | J3: 26254.25 | K3: 2018-12-07 | L3: 14 | M3: INE253B01015
A4: 3IINFOTECH | B4: EQ | C4: 3.7 | D4: 3.7 | E4: 3.6 | F4: 3.65 | G4: 3.7 | H4: 3.65 | I4: 835882 | J4: 3067011.45 | K4: 2018-12-07 | L4: 455 | M4: INE748C01020
A5: 3MINDIA | B5: EQ | C5: 21650 | D5: 22000 | E5: 21389.95 | F5: 21816.6 | G5: 21749 | H5: 21598.6 | I5: 511 | J5: 11085743.25 | K5: 2018-12-07 | L5: 335 | M5: INE470A01017
A6: 5PAISA | B6: EQ | C6: 190.25 | D6: 194.85 | E6: 190 | F6: 190.1 | G6: 190 | H6: 190.95 | I6: 965 | J6: 184548.85 | K6: 2018-12-07 | L6: 94 | M6: INE618L01018
A7: 63MOONS | B7: EQ | C7: 94.05 | D7: 95.35 | E7: 87.55 | F7: 88.6 | G7: 87.8 | H7: 94 | I7: 332156 | J7: 30200106.6 | K7: 2018-12-07 | L7: 4758 | M7: INE111B01023
A8: 8KMILES | B8: EQ | C8: 173.85 | D8: 173.85 | E8: 173.85 | F8: 173.85 | G8: 173.85 | H8: 182.95 | I8: 7156 | J8: 1244070.6 | K8: 2018-12-07 | L8: 279 | M8: INE650K01021
A9: A2ZINFRA | B9: EQ | C9: 12.2 | D9: 12.6 | E9: 12 | F9: 12.35 | G9: 12.3 | H9: 12.3 | I9: 141030 | J9: 1730544.4 | K9: 2018-12-07 | L9: 450 | M9: INE619I01012
A10: AARTIDRUGS | B10: EQ | C10: 558.9 | D10: 569.95 | E10: 558.5 | F10: 566.1 | G10: 569.95 | H10: 559.7 | I10: 5208 | J10: 2928779.7 | K10: 2018-12-07 | L10: 356 | M10: INE767A01016
A11: AARTIIND | B11: EQ | C11: 1460.1 | D11: 1460.1 | E11: 1432 | F11: 1448.35 | G11: 1432 | H11: 1451.35 | I11: 42122 | J11: 60926715.95 | K11: 2018-12-07 | L11: 2476 | M11: INE769A01020
A12: AARVEEDEN | B12: EQ | C12: 24.8 | D12: 24.8 | E12: 24.1 | F12: 24.65 | G12: 24.65 | H12: 24.4 | I12: 9318 | J12: 229484.65 | K12: 2018-12-07 | L12: 17 | M12: INE273D01019
A13: AAVAS | B13: EQ | C13: 771.05 | D13: 784 | E13: 765 | F13: 778.55 | G13: 775.5 | H13: 775.1 | I13: 8816 | J13: 6849608.8 | K13: 2018-12-07 | L13: 1276 | M13: INE216P01012
A14: ABAN | B14: EQ | C14: 73.8 | D14: 73.8 | E14: 70.1 | F14: 71.25 | G14: 71.1 | H14: 72.35 | I14: 369384 | J14: 26301070.25 | K14: 2018-12-07 | L14: 4560 | M14: INE421A01028
A15: ABB | B15: EQ | C15: 1386.95 | D15: 1409 | E15: 1375.15 | F15: 1395.9 | G15: 1403 | H15: 1378.35 | I15: 55427 | J15: 77140381.55 | K15: 2018-12-07 | L15: 5549 | M15: INE117A01022
A16: ABBOTINDIA | B16: EQ | C16: 7594.9 | D16: 7594.9 | E16: 7417 | F16: 7495.2 | G16: 7488 | H16: 7504.05 | I16: 1192 | J16: 8934319.1 | K16: 2018-12-07 | L16: 627 | M16: INE358A01014
A17: ABCAPITAL | B17: EQ | C17: 98 | D17: 98.9 | E17: 96.75 | F17: 97.2 | G17: 96.85 | H17: 97.6 | I17: 1085705 | J17: 105931256 | K17: 2018-12-07 | L17: 22452 | M17: INE674K01013
A18: ABFRL | B18: EQ | C18: 181.75 | D18: 183.7 | E18: 180.25 | F18: 181.6 | G18: 181.35 | H18: 182 | I18: 280964 | J18: 51064903.4 | K18: 2018-12-07 | L18: 3522 | M18: INE647O01011
A19: ACC | B19: EQ | C19: 1426 | D19: 1447.65 | E19: 1426 | F19: 1443.05 | G19: 1438.25 | H19: 1423.8 | I19: 306417 | J19: 440629819.4 | K19: 2018-12-07 | L19: 11608 | M19: INE012A01025
A20: ACCELYA | B20: EQ | C20: 959.95 | D20: 980 | E20: 949.55 | F20: 979.9 | G20: 980 | H20: 963.95 | I20: 28618 | J20: 28001885.8 | K20: 2018-12-07 | L20: 696 | M20: INE793A01012
A21: ACE | B21: EQ | C21: 90 | D21: 91.6 | E21: 88.1 | F21: 89 | G21: 89.1 | H21: 89.85 | I21: 43765 | J21: 3911876.1 | K21: 2018-12-07 | L21: 1573 | M21: INE731H01025
A22: ADANIENT | B22: EQ | C22: 151.8 | D22: 154.35 | E22: 150 | F22: 152.9 | G22: 150.9 | H22: 150.55 | I22: 7411261 | J22: 1129526619 | K22: 2018-12-07 | L22: 23374 | M22: INE423A01024
A23: ADANIGAS | B23: EQ | C23: 105 | D23: 108.5 | E23: 99.25 | F23: 100.15 | G23: 99.7 | H23: 104.3 | I23: 1674014 | J23: 171348326.8 | K23: 2018-12-07 | L23: 18612 | M23: INE399L01023
A24: ADANIGREEN | B24: EQ | C24: 45.6 | D24: 46.4 | E24: 43.5 | F24: 44.45 | G24: 44.2 | H24: 45.2 | I24: 469921 | J24: 21064038.95 | K24: 2018-12-07 | L24: 2405 | M24: INE364U01010
A25: ADANIPORTS | B25: EQ | C25: 364.8 | D25: 374.6 | E25: 363.75 | F25: 373.45 | G25: 374 | H25: 363.95 | I25: 3286454 | J25: 1215039640 | K25: 2018-12-07 | L25: 38847 | M25: INE742F01042
A26: ADANIPOWER | B26: EQ | C26: 52.05 | D26: 53 | E26: 51.45 | F26: 52.55 | G26: 52.75 | H26: 52.1 | I26: 9694543 | J26: 506314277.9 | K26: 2018-12-07 | L26: 17194 | M26: INE814H01011
A27: ADANITRANS | B27: EQ | C27: 216.5 | D27: 220.15 | E27: 216.05 | F27: 217.8 | G27: 218.4 | H27: 216.35 | I27: 156303 | J27: 34093675.15 | K27: 2018-12-07 | L27: 4847 | M27: INE931S01010
A28: ADFFOODS | B28: EQ | C28: 258.25 | D28: 266.85 | E28: 252.05 | F28: 255.6 | G28: 252.05 | H28: 257.45 | I28: 53476 | J28: 13768867.4 | K28: 2018-12-07 | L28: 1299 | M28: INE982B01019
A29: ADHUNIK | B29: EQ | C29: 2.6 | D29: 2.65 | E29: 2.6 | F29: 2.6 | G29: 2.6 | H29: 2.65 | I29: 4278 | J29: 11167.05 | K29: 2018-12-07 | L29: 25 | M29: INE400H01019
A30: ADHUNIKIND | B30: EQ | C30: 49.1 | D30: 53.85 | E30: 46.35 | F30: 48.75 | G30: 48.9 | H30: 50.2 | I30: 24758 | J30: 1203790.95 | K30: 2018-12-07 | L30: 135 | M30: INE452L01012
A31: ADLABS | B31: EQ | C31: 9.95 | D31: 10.1 | E31: 9.7 | F31: 10.1 | G31: 10.1 | H31: 9.65 | I31: 301796 | J31: 3021317.2 | K31: 2018-12-07 | L31: 707 | M31: INE172N01012
A32: ADORWELD | B32: EQ | C32: 366.75 | D32: 373 | E32: 355.5 | F32: 357.95 | G32: 357.95 | H32: 363.9 | I32: 10230 | J32: 3717072.5 | K32: 2018-12-07 | L32: 404 | M32: INE045A01017
A33: ADROITINFO | B33: EQ | C33: 18.8 | D33: 20 | E33: 18.8 | F33: 19.8 | G33: 19.8 | H33: 19.55 | I33: 653 | J33: 12562.2 | K33: 2018-12-07 | L33: 9 | M33: INE737B01033
A34: ADSL | B34: EQ | C34: 14.6 | D34: 14.6 | E34: 13.4 | F34: 13.8 | G34: 13.85 | H34: 14.6 | I34: 99328 | J34: 1365832.9 | K34: 2018-12-07 | L34: 546 | M34: INE102I01027
A35: ADVANIHOTR | B35: EQ | C35: 60.3 | D35: 61.1 | E35: 58.15 | F35: 59.5 | G35: 58.3 | H35: 61.6 | I35: 8187 | J35: 493847.45 | K35: 2018-12-07 | L35: 76 | M35: INE199C01026
A36: ADVENZYMES | B36: EQ | C36: 174 | D36: 177.9 | E36: 172 | F36: 172.8 | G36: 172.25 | H36: 173.15 | I36: 39006 | J36: 6785549.1 | K36: 2018-12-07 | L36: 1071 | M36: INE837H01020
A37: AEGISCHEM | B37: EQ | C37: 211.4 | D37: 214 | E37: 209.55 | F37: 210.7 | G37: 209.8 | H37: 211.2 | I37: 57172 | J37: 12074025.2 | K37: 2018-12-07 | L37: 2418 | M37: INE208C01025
A38: AGARIND | B38: EQ | C38: 171.65 | D38: 173.4 | E38: 168.4 | F38: 169.95 | G38: 170 | H38: 171 | I38: 995 | J38: 169969.8 | K38: 2018-12-07 | L38: 36 | M38: INE204E01012
A39: AGCNET | B39: EQ | C39: 67.4 | D39: 67.4 | E39: 62.15 | F39: 64.1 | G39: 64.05 | H39: 65.95 | I39: 2236 | J39: 143981.9 | K39: 2018-12-07 | L39: 174 | M39: INE676A01019
A40: AGLSL | B40: EQ | C40: 74.35 | D40: 74.35 | E40: 65.2 | F40: 68.9 | G40: 70 | H40: 69.3 | I40: 20876 | J40: 1438068.05 | K40: 2018-12-07 | L40: 93 | M40: INE517U01013
A41: AGRITECH | B41: BE | C41: 64.75 | D41: 64.75 | E41: 61.55 | F41: 62 | G41: 62 | H41: 64.75 | I41: 6780 | J41: 421337.45 | K41: 2018-12-07 | L41: 118 | M41: INE449G01018
A42: AHLEAST | B42: EQ | C42: 249.05 | D42: 249.55 | E42: 240 | F42: 240 | G42: 240.05 | H42: 247 | I42: 780 | J42: 189427.7 | K42: 2018-12-07 | L42: 226 | M42: INE926K01017
A43: AHLUCONT | B43: EQ | C43: 287 | D43: 298.7 | E43: 275.15 | F43: 280.5 | G43: 278.1 | H43: 284.7 | I43: 5446 | J43: 1534477.9 | K43: 2018-12-07 | L43: 310 | M43: INE758C01029
A44: AHLWEST | B44: EQ | C44: 292 | D44: 294.95 | E44: 285.05 | F44: 293.8 | G44: 292.05 | H44: 292 | I44: 108 | J44: 31287.75 | K44: 2018-12-07 | L44: 26 | M44: INE915K01010
A45: AIAENG | B45: EQ | C45: 1657.7 | D45: 1703.7 | E45: 1657.7 | F45: 1676.65 | G45: 1680 | H45: 1679.1 | I45: 7372 | J45: 12381462.8 | K45: 2018-12-07 | L45: 2167 | M45: INE212H01026
A46: AIFL | B46: EQ | C46: 23.55 | D46: 23.55 | E46: 23.55 | F46: 23.55 | G46: 23.55 | H46: 24.75 | I46: 10118 | J46: 238278.9 | K46: 2018-12-07 | L46: 83 | M46: INE428O01016
A47: AIONJSW | B47: EQ | C47: 35.55 | D47: 36.1 | E47: 35.5 | F47: 36 | G47: 36 | H47: 35.55 | I47: 29763 | J47: 1066119.9 | K47: 2018-12-07 | L47: 178 | M47: INE743C01021
A48: AJANTPHARM | B48: EQ | C48: 1099.9 | D48: 1116 | E48: 1045 | F48: 1049.7 | G48: 1053 | H48: 1090.65 | I48: 391625 | J48: 421281674.8 | K48: 2018-12-07 | L48: 20427 | M48: INE031B01049
A49: AJMERA | B49: EQ | C49: 139.45 | D49: 139.9 | E49: 135 | F49: 135.95 | G49: 136 | H49: 139 | I49: 22939 | J49: 3154448.25 | K49: 2018-12-07 | L49: 807 | M49: INE298G01027
A50: AKSHARCHEM | B50: EQ | C50: 434.35 | D50: 443 | E50: 434.35 | F50: 438.85 | G50: 443 | H50: 421.7 | I50: 6689 | J50: 2936172.95 | K50: 2018-12-07 | L50: 2276 | M50: INE542B01011
A51: AKSHOPTFBR | B51: EQ | C51: 24 | D51: 24.45 | E51: 23.75 | F51: 23.9 | G51: 23.9 | H51: 24 | I51: 410872 | J51: 9866219.5 | K51: 2018-12-07 | L51: 2126 | M51: INE523B01011
A52: AKZOINDIA | B52: EQ | C52: 1564 | D52: 1580 | E52: 1541.4 | F52: 1551.5 | G52: 1550 | H52: 1540.75 | I52: 155949 | J52: 241796610.3 | K52: 2018-12-07 | L52: 1511 | M52: INE133A01011
A53: ALANKIT | B53: EQ | C53: 18.5 | D53: 18.9 | E53: 18.5 | F53: 18.6 | G53: 18.55 | H53: 18.95 | I53: 232590 | J53: 4354265.9 | K53: 2018-12-07 | L53: 787 | M53: INE914E01040
A54: ALBERTDAVD | B54: EQ | C54: 373 | D54: 389.95 | E54: 373 | F54: 385.6 | G54: 380.1 | H54: 383.15 | I54: 4308 | J54: 1650567.05 | K54: 2018-12-07 | L54: 252 | M54: INE155C01010
A55: ALBK | B55: EQ | C55: 45.1 | D55: 45.4 | E55: 42.35 | F55: 43.1 | G55: 43.25 | H55: 44.85 | I55: 6692958 | J55: 290665862.5 | K55: 2018-12-07 | L55: 14339 | M55: INE428A01015
A56: ALCHEM | B56: BE | C56: 1.8 | D56: 1.85 | E56: 1.75 | F56: 1.75 | G56: 1.75 | H56: 1.8 | I56: 11821 | J56: 21424.15 | K56: 2018-12-07 | L56: 39 | M56: INE964B01033
A57: ALEMBICLTD | B57: EQ | C57: 44 | D57: 44.25 | E57: 43.05 | F57: 43.7 | G57: 43.85 | H57: 42.9 | I57: 291010 | J57: 12681377.6 | K57: 2018-12-07 | L57: 1661 | M57: INE426A01027
A58: ALICON | B58: EQ | C58: 625.7 | D58: 630 | E58: 614 | F58: 620.85 | G58: 622 | H58: 615 | I58: 823 | J58: 509913.9 | K58: 2018-12-07 | L58: 145 | M58: INE062D01024
A59: ALKALI | B59: EQ | C59: 56.05 | D59: 58.9 | E59: 55.1 | F59: 56.5 | G59: 57.25 | H59: 57.15 | I59: 2579 | J59: 146664.05 | K59: 2018-12-07 | L59: 89 | M59: INE773I01017
A60: ALKEM | B60: EQ | C60: 1893.1 | D60: 1908.85 | E60: 1890 | F60: 1894 | G60: 1896 | H60: 1908.85 | I60: 12078 | J60: 22918568.15 | K60: 2018-12-07 | L60: 2280 | M60: INE540L01014
A61: ALKYLAMINE | B61: EQ | C61: 737 | D61: 748.5 | E61: 720.05 | F61: 733 | G61: 734.9 | H61: 732.25 | I61: 2972 | J61: 2178018.9 | K61: 2018-12-07 | L61: 291 | M61: INE150B01021
A62: ALLCARGO | B62: EQ | C62: 104.5 | D62: 105.75 | E62: 103.8 | F62: 104.65 | G62: 104.8 | H62: 104.8 | I62: 77713 | J62: 8131173.15 | K62: 2018-12-07 | L62: 1320 | M62: INE418H01029
A63: ALLSEC | B63: EQ | C63: 209.9 | D63: 213.9 | E63: 200 | F63: 204.7 | G63: 205.5 | H63: 201.35 | I63: 7188 | J63: 1468383.7 | K63: 2018-12-07 | L63: 477 | M63: INE835G01018
A64: ALMONDZ | B64: EQ | C64: 22.5 | D64: 22.5 | E64: 22.5 | F64: 22.5 | G64: 22.5 | H64: 22.95 | I64: 300 | J64: 6750 | K64: 2018-12-07 | L64: 6 | M64: INE326B01027
A65: ALOKTEXT | B65: EQ | C65: 3.9 | D65: 3.9 | E65: 3.75 | F65: 3.8 | G65: 3.85 | H65: 3.9 | I65: 2362534 | J65: 9076787.9 | K65: 2018-12-07 | L65: 1395 | M65: INE270A01011
A66: ALPA | B66: EQ | C66: 24.5 | D66: 24.8 | E66: 24.15 | F66: 24.15 | G66: 24.15 | H66: 24.05 | I66: 563 | J66: 13696.25 | K66: 2018-12-07 | L66: 27 | M66: INE385I01010
A67: ALPHAGEO | B67: EQ | C67: 483.7 | D67: 483.7 | E67: 465.05 | F67: 471.25 | G67: 470.35 | H67: 477.1 | I67: 2136 | J67: 1012218.05 | K67: 2018-12-07 | L67: 201 | M67: INE137C01018
A68: ALPSINDUS | B68: BE | C68: 3.55 | D68: 3.65 | E68: 3.5 | F68: 3.65 | G68: 3.65 | H68: 3.5 | I68: 1655 | J68: 6018.75 | K68: 2018-12-07 | L68: 6 | M68: INE093B01015
A69: AMARAJABAT | B69: EQ | C69: 704 | D69: 710.5 | E69: 695 | F69: 703.25 | G69: 700.8 | H69: 703.05 | I69: 254883 | J69: 179100069.6 | K69: 2018-12-07 | L69: 7685 | M69: INE885A01032
A70: AMBER | B70: EQ | C70: 878 | D70: 880 | E70: 868 | F70: 870.55 | G70: 868 | H70: 868.1 | I70: 1476 | J70: 1291119.35 | K70: 2018-12-07 | L70: 178 | M70: INE371P01015
A71: AMBIKCO | B71: EQ | C71: 1184.9 | D71: 1193.9 | E71: 1160 | F71: 1190 | G71: 1193.9 | H71: 1173.35 | I71: 821 | J71: 964851.55 | K71: 2018-12-07 | L71: 155 | M71: INE540G01014
A72: AMBUJACEM | B72: EQ | C72: 209.8 | D72: 213.5 | E72: 207.6 | F72: 212.45 | G72: 211.55 | H72: 208.15 | I72: 1040049 | J72: 218689521.7 | K72: 2018-12-07 | L72: 14089 | M72: INE079A01024
A73: AMDIND | B73: EQ | C73: 19.4 | D73: 20.05 | E73: 18.55 | F73: 19.5 | G73: 19.9 | H73: 19.7 | I73: 6761 | J73: 129741.8 | K73: 2018-12-07 | L73: 88 | M73: INE005I01014
A74: AMJLAND | B74: EQ | C74: 21 | D74: 21.15 | E74: 20.55 | F74: 20.75 | G74: 20.8 | H74: 21.3 | I74: 2133 | J74: 44390.6 | K74: 2018-12-07 | L74: 40 | M74: INE606A01024
A75: AMRUTANJAN | B75: EQ | C75: 248 | D75: 248.95 | E75: 244.6 | F75: 246.2 | G75: 246.8 | H75: 246.95 | I75: 6327 | J75: 1556298.8 | K75: 2018-12-07 | L75: 326 | M75: INE098F01031
A76: ANANTRAJ | B76: EQ | C76: 34.6 | D76: 34.6 | E76: 33.6 | F76: 33.85 | G76: 33.8 | H76: 34.2 | I76: 202594 | J76: 6877654.45 | K76: 2018-12-07 | L76: 1179 | M76: INE242C01024
A77: ANDHRABANK | B77: EQ | C77: 27.25 | D77: 27.55 | E77: 26.8 | F77: 27 | G77: 27 | H77: 27.25 | I77: 473183 | J77: 12791702.35 | K77: 2018-12-07 | L77: 1536 | M77: INE434A01013
A78: ANDHRACEMT | B78: EQ | C78: 5.95 | D78: 5.95 | E78: 5.8 | F78: 5.85 | G78: 5.85 | H78: 5.75 | I78: 69428 | J78: 408779.45 | K78: 2018-12-07 | L78: 153 | M78: INE666E01012
A79: ANDHRSUGAR | B79: EQ | C79: 327.4 | D79: 329 | E79: 319 | F79: 321.85 | G79: 319.35 | H79: 327.4 | I79: 14379 | J79: 4651292.35 | K79: 2018-12-07 | L79: 700 | M79: INE715B01013
A80: ANGIND | B80: BE | C80: 1.5 | D80: 1.5 | E80: 1.4 | F80: 1.4 | G80: 1.4 | H80: 1.45 | I80: 8560 | J80: 11984.1 | K80: 2018-12-07 | L80: 36 | M80: INE017D01010
A81: ANIKINDS | B81: EQ | C81: 25.2 | D81: 26 | E81: 24.2 | F81: 24.7 | G81: 24.75 | H81: 24.75 | I81: 1884 | J81: 47046.35 | K81: 2018-12-07 | L81: 39 | M81: INE087B01017
A82: ANKITMETAL | B82: BE | C82: 0.5 | D82: 0.55 | E82: 0.45 | F82: 0.5 | G82: 0.5 | H82: 0.45 | I82: 6252 | J82: 3168.5 | K82: 2018-12-07 | L82: 16 | M82: INE106I01010
A83: ANSALAPI | B83: EQ | C83: 10.2 | D83: 10.75 | E83: 10.2 | F83: 10.45 | G83: 10.5 | H83: 10.25 | I83: 17945 | J83: 187809.35 | K83: 2018-12-07 | L83: 77 | M83: INE436A01026
A84: ANSALHSG | B84: EQ | C84: 9.65 | D84: 9.85 | E84: 9.45 | F84: 9.6 | G84: 9.65 | H84: 9.6 | I84: 14118 | J84: 134648.4 | K84: 2018-12-07 | L84: 53 | M84: INE880B01015
A85: ANTGRAPHIC | B85: BE | C85: 0.45 | D85: 0.5 | E85: 0.45 | F85: 0.45 | G85: 0.5 | H85: 0.5 | I85: 181699 | J85: 82380.9 | K85: 2018-12-07 | L85: 30 | M85: INE414B01021
A86: APARINDS | B86: EQ | C86: 616.95 | D86: 624.65 | E86: 602.5 | F86: 619.65 | G86: 620 | H86: 615.5 | I86: 5111 | J86: 3139375.6 | K86: 2018-12-07 | L86: 482 | M86: INE372A01015
A87: APCL | B87: EQ | C87: 124.1 | D87: 134.9 | E87: 124.1 | F87: 125.25 | G87: 128 | H87: 124.1 | I87: 1159 | J87: 145821.95 | K87: 2018-12-07 | L87: 32 | M87: INE071F01012
A88: APCOTEXIND | B88: EQ | C88: 538.25 | D88: 540.45 | E88: 526.3 | F88: 531.4 | G88: 528.15 | H88: 533.8 | I88: 694 | J88: 369453.85 | K88: 2018-12-07 | L88: 115 | M88: INE116A01024
A89: APEX | B89: EQ | C89: 367 | D89: 367 | E89: 353.7 | F89: 359 | G89: 359.9 | H89: 353.25 | I89: 59564 | J89: 21340855.9 | K89: 2018-12-07 | L89: 1745 | M89: INE346W01013
A90: APLAPOLLO | B90: EQ | C90: 1340 | D90: 1340 | E90: 1304.95 | F90: 1319.7 | G90: 1320 | H90: 1317.65 | I90: 112116 | J90: 147762677.3 | K90: 2018-12-07 | L90: 1525 | M90: INE702C01019
A91: APLLTD | B91: EQ | C91: 623 | D91: 623 | E91: 614.05 | F91: 616 | G91: 615 | H91: 620.1 | I91: 14105 | J91: 8688722.05 | K91: 2018-12-07 | L91: 1288 | M91: INE901L01018
A92: APOLLO | B92: EQ | C92: 123.65 | D92: 127 | E92: 119.95 | F92: 120.45 | G92: 121.8 | H92: 123.6 | I92: 15018 | J92: 1827974 | K92: 2018-12-07 | L92: 538 | M92: INE713T01010
A93: APOLLOHOSP | B93: EQ | C93: 1193.2 | D93: 1215.1 | E93: 1167.3 | F93: 1209 | G93: 1213 | H93: 1188.9 | I93: 665538 | J93: 793127565.2 | K93: 2018-12-07 | L93: 36176 | M93: INE437A01024
A94: APOLLOTYRE | B94: EQ | C94: 226.9 | D94: 228.15 | E94: 222.55 | F94: 226.4 | G94: 226.3 | H94: 225.15 | I94: 2388836 | J94: 536646463.9 | K94: 2018-12-07 | L94: 25240 | M94: INE438A01022
A95: APOLSINHOT | B95: EQ | C95: 810 | D95: 839.95 | E95: 785.05 | F95: 798.3 | G95: 819.6 | H95: 822.2 | I95: 1972 | J95: 1595735.05 | K95: 2018-12-07 | L95: 136 | M95: INE451F01024
A96: APTECHT | B96: EQ | C96: 168.9 | D96: 171.4 | E96: 165.85 | F96: 167.2 | G96: 166.25 | H96: 165.45 | I96: 119141 | J96: 20060833.05 | K96: 2018-12-07 | L96: 3673 | M96: INE266F01018
A97: ARCHIDPLY | B97: EQ | C97: 37.95 | D97: 38.4 | E97: 36.6 | F97: 37.5 | G97: 37.35 | H97: 36.7 | I97: 12273 | J97: 462200 | K97: 2018-12-07 | L97: 278 | M97: INE877I01016
A98: ARCHIES | B98: EQ | C98: 28.45 | D98: 28.85 | E98: 27.5 | F98: 28.05 | G98: 28.1 | H98: 28.45 | I98: 50767 | J98: 1423529.35 | K98: 2018-12-07 | L98: 420 | M98: INE731A01020
A99: ARCOTECH | B99: EQ | C99: 7.2 | D99: 7.4 | E99: 6.8 | F99: 6.85 | G99: 7 | H99: 7.15 | I99: 72470 | J99: 498388.15 | K99: 2018-12-07 | L99: 277 | M99: INE574I01035
A100: ARENTERP | B100: BE | C100: 14.6 | D100: 14.6 | E100: 14.6 | F100: 14.6 | G100: 14.6 | H100: 13.95 | I100: 1650 | J100: 24090 | K100: 2018-12-07 | L100: 7 | M100: INE610C01014
A101: ARIES | B101: EQ | C101: 93.05 | D101: 94.55 | E101: 92.65 | F101: 93.65 | G101: 93.35 | H101: 93.2 | I101: 10796 | J101: 1010032.9 | K101: 2018-12-07 | L101: 265 | M101: INE298I01015
A102: ARIHANT | B102: EQ | C102: 31.7 | D102: 32.65 | E102: 28.8 | F102: 29.1 | G102: 28.8 | H102: 29.65 | I102: 1503 | J102: 44311.8 | K102: 2018-12-07 | L102: 34 | M102: INE413D01011
A103: ARIHANTSUP | B103: EQ | C103: 52.8 | D103: 54.75 | E103: 52.75 | F103: 54.2 | G103: 54.1 | H103: 52.8 | I103: 47020 | J103: 2521185 | K103: 2018-12-07 | L103: 1359 | M103: INE643K01018
A104: ARMANFIN | B104: EQ | C104: 370 | D104: 400 | E104: 360.05 | F104: 388.65 | G104: 380 | H104: 367.75 | I104: 1584 | J104: 605366.6 | K104: 2018-12-07 | L104: 38 | M104: INE109C01017
A105: AROGRANITE | B105: EQ | C105: 51.45 | D105: 52 | E105: 49.5 | F105: 50.6 | G105: 51 | H105: 50.95 | I105: 6970 | J105: 352456.6 | K105: 2018-12-07 | L105: 209 | M105: INE210C01013
A106: ARROWGREEN | B106: EQ | C106: 87.85 | D106: 88.85 | E106: 83.95 | F106: 86.3 | G106: 86 | H106: 87.2 | I106: 10219 | J106: 878356.55 | K106: 2018-12-07 | L106: 237 | M106: INE570D01018
A107: ARROWTEX | B107: EQ | C107: 24 | D107: 24.95 | E107: 24 | F107: 24.5 | G107: 24.5 | H107: 24.15 | I107: 801 | J107: 19710.55 | K107: 2018-12-07 | L107: 10 | M107: INE933J01015
A108: ARSHIYA | B108: EQ | C108: 34.05 | D108: 35.25 | E108: 33.3 | F108: 34.45 | G108: 34.3 | H108: 35.3 | I108: 6631 | J108: 228939.8 | K108: 2018-12-07 | L108: 94 | M108: INE968D01022
A109: ARSSINFRA | B109: BE | C109: 27 | D109: 28.3 | E109: 27 | F109: 27.45 | G109: 27 | H109: 27.1 | I109: 6028 | J109: 167254.8 | K109: 2018-12-07 | L109: 65 | M109: INE267I01010
A110: ARVIND | B110: EQ | C110: 101.35 | D110: 102.55 | E110: 98.8 | F110: 100.3 | G110: 100 | H110: 100.25 | I110: 7558009 | J110: 760270942 | K110: 2018-12-07 | L110: 33007 | M110: INE034A01011
A111: ARVSMART | B111: EQ | C111: 108 | D111: 108.95 | E111: 104.25 | F111: 104.85 | G111: 104.3 | H111: 106.65 | I111: 12854 | J111: 1356826 | K111: 2018-12-07 | L111: 269 | M111: INE034S01021
A112: ASAHIINDIA | B112: EQ | C112: 253.65 | D112: 254.65 | E112: 246 | F112: 247.9 | G112: 246.6 | H112: 253.45 | I112: 14460 | J112: 3594483.05 | K112: 2018-12-07 | L112: 966 | M112: INE439A01020
A113: ASAHISONG | B113: EQ | C113: 215 | D113: 223 | E113: 210 | F113: 211.5 | G113: 210.35 | H113: 215.25 | I113: 4505 | J113: 960340.15 | K113: 2018-12-07 | L113: 226 | M113: INE228I01012
A114: ASAL | B114: EQ | C114: 55 | D114: 56 | E114: 54.25 | F114: 55.05 | G114: 56 | H114: 55.65 | I114: 5574 | J114: 306893.05 | K114: 2018-12-07 | L114: 50 | M114: INE900C01027
A115: ASHAPURMIN | B115: EQ | C115: 28.8 | D115: 28.8 | E115: 27.1 | F115: 27.25 | G115: 27.15 | H115: 28 | I115: 48047 | J115: 1330956.55 | K115: 2018-12-07 | L115: 345 | M115: INE348A01023
A116: ASHIANA | B116: EQ | C116: 119.8 | D116: 121 | E116: 119.05 | F116: 120.1 | G116: 120 | H116: 120.15 | I116: 18504 | J116: 2225015.25 | K116: 2018-12-07 | L116: 352 | M116: INE365D01021
A117: ASHIMASYN | B117: EQ | C117: 12.75 | D117: 13 | E117: 12.5 | F117: 12.6 | G117: 12.5 | H117: 12.9 | I117: 31660 | J117: 402750.65 | K117: 2018-12-07 | L117: 89 | M117: INE440A01010
A118: ASHOKA | B118: EQ | C118: 118.6 | D118: 124 | E118: 118.25 | F118: 119.55 | G118: 119.5 | H118: 120.55 | I118: 59904 | J118: 7234182.1 | K118: 2018-12-07 | L118: 1752 | M118: INE442H01029
A119: ASHOKLEY | B119: EQ | C119: 102.4 | D119: 103.7 | E119: 101.25 | F119: 102.9 | G119: 102.8 | H119: 102.1 | I119: 16073694 | J119: 1648828733 | K119: 2018-12-07 | L119: 59808 | M119: INE208A01029
A120: ASIANHOTNR | B120: EQ | C120: 145.05 | D120: 149 | E120: 145.05 | F120: 148.3 | G120: 149 | H120: 148.05 | I120: 134 | J120: 19597.55 | K120: 2018-12-07 | L120: 12 | M120: INE363A01022
A121: ASIANPAINT | B121: EQ | C121: 1306.5 | D121: 1324 | E121: 1298.4 | F121: 1318.65 | G121: 1317 | H121: 1295.1 | I121: 1037026 | J121: 1365571085 | K121: 2018-12-07 | L121: 55736 | M121: INE021A01026
A122: ASIANTILES | B122: EQ | C122: 190.2 | D122: 195.65 | E122: 185.5 | F122: 193.4 | G122: 192 | H122: 189.65 | I122: 65535 | J122: 12514527.1 | K122: 2018-12-07 | L122: 2804 | M122: INE022I01019
A123: ASPINWALL | B123: EQ | C123: 172 | D123: 177.9 | E123: 165.25 | F123: 165.9 | G123: 165.7 | H123: 171.1 | I123: 1275 | J123: 216955.75 | K123: 2018-12-07 | L123: 49 | M123: INE991I01015
A124: ASSAMCO | B124: BE | C124: 2.55 | D124: 2.6 | E124: 2.5 | F124: 2.6 | G124: 2.6 | H124: 2.6 | I124: 843891 | J124: 2132539.05 | K124: 2018-12-07 | L124: 421 | M124: INE442A01024
A125: ASTEC | B125: EQ | C125: 525.3 | D125: 530 | E125: 522.45 | F125: 523.5 | G125: 525 | H125: 526.95 | I125: 4600 | J125: 2425537.6 | K125: 2018-12-07 | L125: 231 | M125: INE563J01010
A126: ASTERDM | B126: EQ | C126: 150 | D126: 152.45 | E126: 146.5 | F126: 151.8 | G126: 152.05 | H126: 147.95 | I126: 61107 | J126: 9144450.85 | K126: 2018-12-07 | L126: 1144 | M126: INE914M01019
A127: ASTRAL | B127: EQ | C127: 1050.65 | D127: 1057 | E127: 1043.3 | F127: 1056.35 | G127: 1048 | H127: 1048.55 | I127: 22621 | J127: 23744718.75 | K127: 2018-12-07 | L127: 2740 | M127: INE006I01046
A128: ASTRAMICRO | B128: EQ | C128: 77.85 | D128: 79.25 | E128: 77.25 | F128: 77.6 | G128: 77.3 | H128: 78 | I128: 177202 | J128: 13820004.3 | K128: 2018-12-07 | L128: 921 | M128: INE386C01029
A129: ASTRAZEN | B129: EQ | C129: 1316.4 | D129: 1369.95 | E129: 1306.05 | F129: 1357.35 | G129: 1359 | H129: 1328.8 | I129: 10047 | J129: 13413173.85 | K129: 2018-12-07 | L129: 1161 | M129: INE203A01020
A130: ASTRON | B130: EQ | C130: 113 | D130: 113.55 | E130: 110.5 | F130: 111.3 | G130: 111.25 | H130: 111.75 | I130: 57845 | J130: 6473113.85 | K130: 2018-12-07 | L130: 926 | M130: INE646X01014
A131: ATFL | B131: EQ | C131: 584.2 | D131: 588.8 | E131: 560.05 | F131: 568.8 | G131: 560.05 | H131: 575.65 | I131: 4360 | J131: 2507806.7 | K131: 2018-12-07 | L131: 509 | M131: INE209A01019
A132: ATLANTA | B132: EQ | C132: 22.3 | D132: 22.8 | E132: 21.8 | F132: 22.2 | G132: 22.75 | H132: 22.1 | I132: 57358 | J132: 1272064.2 | K132: 2018-12-07 | L132: 965 | M132: INE285H01022
A133: ATUL | B133: EQ | C133: 3365.25 | D133: 3403.55 | E133: 3340.05 | F133: 3378.75 | G133: 3392.2 | H133: 3368.95 | I133: 12102 | J133: 40699698.9 | K133: 2018-12-07 | L133: 2743 | M133: INE100A01010
A134: ATULAUTO | B134: EQ | C134: 321.05 | D134: 325 | E134: 319.65 | F134: 320.75 | G134: 320 | H134: 320.35 | I134: 10503 | J134: 3373380.85 | K134: 2018-12-07 | L134: 348 | M134: INE951D01028
A135: AUBANK | B135: EQ | C135: 613 | D135: 628 | E135: 609.1 | F135: 611.35 | G135: 610 | H135: 615.55 | I135: 355827 | J135: 220350284.8 | K135: 2018-12-07 | L135: 17474 | M135: INE949L01017
A136: AURIONPRO | B136: EQ | C136: 140.9 | D136: 140.95 | E136: 127.5 | F136: 130.1 | G136: 129.8 | H136: 137.65 | I136: 32209 | J136: 4211911.2 | K136: 2018-12-07 | L136: 672 | M136: INE132H01018
A137: AUROPHARMA | B137: EQ | C137: 752.35 | D137: 768.8 | E137: 733 | F137: 751.35 | G137: 752.95 | H137: 752.35 | I137: 5700335 | J137: 4298518704 | K137: 2018-12-07 | L137: 120017 | M137: INE406A01037
A138: AUSOMENT | B138: EQ | C138: 47.85 | D138: 48 | E138: 44.9 | F138: 45 | G138: 45 | H138: 46.35 | I138: 1553 | J138: 71260.55 | K138: 2018-12-07 | L138: 55 | M138: INE218C01016
A139: AUTOAXLES | B139: EQ | C139: 1338.05 | D139: 1342.7 | E139: 1309 | F139: 1319.4 | G139: 1312 | H139: 1344.85 | I139: 10409 | J139: 13820127.5 | K139: 2018-12-07 | L139: 1019 | M139: INE449A01011
A140: AUTOIND | B140: EQ | C140: 52.6 | D140: 52.6 | E140: 51.55 | F140: 51.7 | G140: 51.6 | H140: 53.3 | I140: 13884 | J140: 721839 | K140: 2018-12-07 | L140: 185 | M140: INE718H01014
A141: AUTOLITIND | B141: EQ | C141: 40.85 | D141: 42.3 | E141: 40.1 | F141: 40.45 | G141: 40.1 | H141: 40.85 | I141: 9313 | J141: 378169.5 | K141: 2018-12-07 | L141: 139 | M141: INE448A01013
A142: AVADHSUGAR | B142: EQ | C142: 380.6 | D142: 384.8 | E142: 365 | F142: 369.05 | G142: 367.05 | H142: 376.95 | I142: 9803 | J142: 3634673.4 | K142: 2018-12-07 | L142: 578 | M142: INE349W01017
A143: AVANTIFEED | B143: EQ | C143: 362 | D143: 365 | E143: 353 | F143: 356.35 | G143: 354.85 | H143: 352.85 | I143: 271960 | J143: 97470988.35 | K143: 2018-12-07 | L143: 10795 | M143: INE871C01038
A144: AVTNPL | B144: EQ | C144: 26.95 | D144: 26.95 | E144: 26.25 | F144: 26.35 | G144: 26.55 | H144: 26.95 | I144: 69909 | J144: 1850869.15 | K144: 2018-12-07 | L144: 281 | M144: INE488D01021
A145: AXISBANK | B145: EQ | C145: 602.4 | D145: 609.5 | E145: 592.35 | F145: 603.95 | G145: 604.5 | H145: 600.05 | I145: 12262327 | J145: 7381747101 | K145: 2018-12-07 | L145: 153706 | M145: INE238A01034
A146: AXISCADES | B146: EQ | C146: 89 | D146: 89 | E146: 85.7 | F146: 86.4 | G146: 86.1 | H146: 87 | I146: 40544 | J146: 3514318.5 | K146: 2018-12-07 | L146: 785 | M146: INE555B01013
A147: AXISGOLD | B147: EQ | C147: 2765 | D147: 2768 | E147: 2735.05 | F147: 2753.3 | G147: 2760 | H147: 2760 | I147: 70 | J147: 193152 | K147: 2018-12-07 | L147: 29 | M147: INF846K01347
A148: AXISNIFTY | B148: EQ | C148: 1086.17 | D148: 1086.17 | E148: 1079.56 | F148: 1079.56 | G148: 1079.56 | H148: 1076.15 | I148: 36 | J148: 38930.26 | K148: 2018-12-07 | L148: 2 | M148: INF846K01ZL0
A149: AYMSYNTEX | B149: EQ | C149: 42.35 | D149: 42.35 | E149: 39.9 | F149: 41.1 | G149: 40.7 | H149: 41.55 | I149: 11315 | J149: 457637.65 | K149: 2018-12-07 | L149: 97 | M149: INE193B01039
A150: BAFNAPHARM | B150: EQ | C150: 12.2 | D150: 12.8 | E150: 11.95 | F150: 12.7 | G150: 12.8 | H150: 12.4 | I150: 7444 | J150: 93951.9 | K150: 2018-12-07 | L150: 73 | M150: INE878I01014
A151: BAGFILMS | B151: EQ | C151: 4.9 | D151: 4.9 | E151: 4.7 | F151: 4.8 | G151: 4.85 | H151: 4.75 | I151: 52388 | J151: 251956.5 | K151: 2018-12-07 | L151: 113 | M151: INE116D01028
A152: BAJAJ-AUTO | B152: EQ | C152: 2722 | D152: 2793 | E152: 2716.3 | F152: 2786.2 | G152: 2781.5 | H152: 2718.1 | I152: 417465 | J152: 1150508816 | K152: 2018-12-07 | L152: 38650 | M152: INE917I01010
A153: BAJAJCORP | B153: EQ | C153: 345.5 | D153: 350.25 | E153: 343.5 | F153: 348.7 | G153: 349 | H153: 343.4 | I153: 33218 | J153: 11547941.85 | K153: 2018-12-07 | L153: 1321 | M153: INE933K01021
A154: BAJAJELEC | B154: EQ | C154: 471.8 | D154: 482 | E154: 470.25 | F154: 472.35 | G154: 472.9 | H154: 468.9 | I154: 177874 | J154: 84624091.45 | K154: 2018-12-07 | L154: 10108 | M154: INE193E01025
A155: BAJAJFINSV | B155: EQ | C155: 5708.4 | D155: 5875.55 | E155: 5668.5 | F155: 5849.9 | G155: 5847 | H155: 5667.5 | I155: 220039 | J155: 1269620503 | K155: 2018-12-07 | L155: 28798 | M155: INE918I01018
A156: BAJAJHIND | B156: EQ | C156: 9.5 | D156: 9.55 | E156: 9.25 | F156: 9.35 | G156: 9.35 | H156: 9.5 | I156: 1421207 | J156: 13309450.7 | K156: 2018-12-07 | L156: 2123 | M156: INE306A01021
A157: BAJAJHLDNG | B157: EQ | C157: 2975.05 | D157: 2999.65 | E157: 2926.05 | F157: 2985 | G157: 2989 | H157: 2970.05 | I157: 2721 | J157: 8050047.8 | K157: 2018-12-07 | L157: 754 | M157: INE118A01012
A158: BAJFINANCE | B158: EQ | C158: 2443 | D158: 2497.75 | E158: 2414.65 | F158: 2486.35 | G158: 2486.35 | H158: 2432.4 | I158: 1478720 | J158: 3631175517 | K158: 2018-12-07 | L158: 64924 | M158: INE296A01024
A159: BALAJITELE | B159: EQ | C159: 91.8 | D159: 93.6 | E159: 91.25 | F159: 91.9 | G159: 92 | H159: 92.2 | I159: 17157 | J159: 1583760.9 | K159: 2018-12-07 | L159: 559 | M159: INE794B01026
A160: BALAMINES | B160: EQ | C160: 446 | D160: 447.75 | E160: 440 | F160: 442.65 | G160: 440 | H160: 443.25 | I160: 7598 | J160: 3370785.1 | K160: 2018-12-07 | L160: 697 | M160: INE050E01027
A161: BALKRISHNA | B161: EQ | C161: 50.5 | D161: 51.05 | E161: 49.1 | F161: 49.8 | G161: 49.6 | H161: 50.45 | I161: 8033 | J161: 402226.25 | K161: 2018-12-07 | L161: 146 | M161: INE875R01011
A162: BALKRISIND | B162: EQ | C162: 897.45 | D162: 906.85 | E162: 880.1 | F162: 890 | G162: 889.95 | H162: 894.6 | I162: 751168 | J162: 668542040.9 | K162: 2018-12-07 | L162: 25810 | M162: INE787D01026
A163: BALLARPUR | B163: EQ | C163: 5.35 | D163: 5.45 | E163: 5.25 | F163: 5.4 | G163: 5.4 | H163: 5.4 | I163: 365850 | J163: 1966347.5 | K163: 2018-12-07 | L163: 490 | M163: INE294A01037
A164: BALMLAWRIE | B164: EQ | C164: 180.05 | D164: 182.9 | E164: 180.05 | F164: 181.25 | G164: 180.9 | H164: 180.65 | I164: 28624 | J164: 5193331 | K164: 2018-12-07 | L164: 788 | M164: INE164A01016
A165: BALPHARMA | B165: EQ | C165: 78.1 | D165: 79.7 | E165: 78.1 | F165: 78.4 | G165: 78.9 | H165: 78.1 | I165: 3822 | J165: 300342.2 | K165: 2018-12-07 | L165: 110 | M165: INE083D01012
A166: BALRAMCHIN | B166: EQ | C166: 102.3 | D166: 102.55 | E166: 99.2 | F166: 100.1 | G166: 99.9 | H166: 101.95 | I166: 1927733 | J166: 193915835.6 | K166: 2018-12-07 | L166: 14627 | M166: INE119A01028
A167: BANARBEADS | B167: EQ | C167: 46 | D167: 47 | E167: 46 | F167: 47 | G167: 47 | H167: 46.2 | I167: 65 | J167: 3001 | K167: 2018-12-07 | L167: 4 | M167: INE655B01011
A168: BANARISUG | B168: EQ | C168: 1519.5 | D168: 1529 | E168: 1490 | F168: 1505.5 | G168: 1490 | H168: 1523.45 | I168: 213 | J168: 320349.25 | K168: 2018-12-07 | L168: 52 | M168: INE459A01010
A169: BANCOINDIA | B169: EQ | C169: 165.8 | D169: 168 | E169: 165 | F169: 167.05 | G169: 168 | H169: 165.8 | I169: 23672 | J169: 3927786.65 | K169: 2018-12-07 | L169: 450 | M169: INE213C01025
A170: BANDHANBNK | B170: EQ | C170: 475.4 | D170: 476.95 | E170: 469.15 | F170: 472 | G170: 471.6 | H170: 470.15 | I170: 516623 | J170: 243687972.5 | K170: 2018-12-07 | L170: 18414 | M170: INE545U01014
A171: BANG | B171: EQ | C171: 52.05 | D171: 53.55 | E171: 50.45 | F171: 53.15 | G171: 51.55 | H171: 52.2 | I171: 47821 | J171: 2528220.55 | K171: 2018-12-07 | L171: 522 | M171: INE863I01016
A172: BANKBARODA | B172: EQ | C172: 105.8 | D172: 107 | E172: 102.95 | F172: 106.4 | G172: 106.25 | H172: 105.25 | I172: 16565178 | J172: 1746875296 | K172: 2018-12-07 | L172: 52241 | M172: INE028A01039
A173: BANKBEES | B173: EQ | C173: 2676.42 | D173: 2721 | E173: 2666.59 | F173: 2710.53 | G173: 2721 | H173: 2660.83 | I173: 17995 | J173: 48618663.44 | K173: 2018-12-07 | L173: 392 | M173: INF732E01078
A174: BANKINDIA | B174: EQ | C174: 81.5 | D174: 81.85 | E174: 78.3 | F174: 79.55 | G174: 79.2 | H174: 80.95 | I174: 9034326 | J174: 722953121 | K174: 2018-12-07 | L174: 29851 | M174: INE084A01016
A175: BANSWRAS | B175: EQ | C175: 86 | D175: 86.4 | E175: 82 | F175: 83.05 | G175: 83 | H175: 82 | I175: 2010 | J175: 167377.1 | K175: 2018-12-07 | L175: 31 | M175: INE629D01012
A176: BARTRONICS | B176: EQ | C176: 7.3 | D176: 7.35 | E176: 7.2 | F176: 7.2 | G176: 7.2 | H176: 7.25 | I176: 24143 | J176: 174847 | K176: 2018-12-07 | L176: 42 | M176: INE855F01034
A177: BASF | B177: EQ | C177: 1564.2 | D177: 1564.2 | E177: 1520 | F177: 1531.55 | G177: 1527.55 | H177: 1564.2 | I177: 5183 | J177: 7968308.8 | K177: 2018-12-07 | L177: 761 | M177: INE373A01013
A178: BASML | B178: EQ | C178: 203.95 | D178: 207 | E178: 203.95 | F178: 206.95 | G178: 206.95 | H178: 204.95 | I178: 153 | J178: 31575.05 | K178: 2018-12-07 | L178: 12 | M178: INE186H01014
A179: BATAINDIA | B179: EQ | C179: 1042.3 | D179: 1074 | E179: 1040.05 | F179: 1059.9 | G179: 1056 | H179: 1039.75 | I179: 1279061 | J179: 1359693396 | K179: 2018-12-07 | L179: 35722 | M179: INE176A01028
A180: BAYERCROP | B180: EQ | C180: 4400 | D180: 4400 | E180: 4269.25 | F180: 4299.25 | G180: 4299.95 | H180: 4293.8 | I180: 4128 | J180: 17740184.45 | K180: 2018-12-07 | L180: 1560 | M180: INE462A01022
A181: BBL | B181: EQ | C181: 1103.85 | D181: 1105 | E181: 1084.25 | F181: 1091.45 | G181: 1090 | H181: 1099.95 | I181: 1860 | J181: 2031525.5 | K181: 2018-12-07 | L181: 238 | M181: INE464A01028
A182: BBTC | B182: EQ | C182: 1310 | D182: 1335.85 | E182: 1301 | F182: 1308.9 | G182: 1302.2 | H182: 1308.3 | I182: 46005 | J182: 60649176.9 | K182: 2018-12-07 | L182: 3089 | M182: INE050A01025
A183: BCG | B183: EQ | C183: 2.75 | D183: 2.95 | E183: 2.75 | F183: 2.8 | G183: 2.75 | H183: 2.75 | I183: 484172 | J183: 1375847.1 | K183: 2018-12-07 | L183: 225 | M183: INE425B01027
A184: BDL | B184: EQ | C184: 278.05 | D184: 281.85 | E184: 270 | F184: 270.8 | G184: 270 | H184: 275.1 | I184: 11232 | J184: 3074855.15 | K184: 2018-12-07 | L184: 1551 | M184: INE171Z01018
A185: BEARDSELL | B185: EQ | C185: 24.55 | D185: 24.95 | E185: 24 | F185: 24.4 | G185: 24.95 | H185: 24.9 | I185: 697 | J185: 16979.65 | K185: 2018-12-07 | L185: 28 | M185: INE520H01022
A186: BEDMUTHA | B186: BE | C186: 20.95 | D186: 21.25 | E186: 20.95 | F186: 20.95 | G186: 20.95 | H186: 21.95 | I186: 1226 | J186: 25714.7 | K186: 2018-12-07 | L186: 7 | M186: INE844K01012
A187: BEL | B187: EQ | C187: 82.3 | D187: 82.55 | E187: 80 | F187: 80.1 | G187: 80.1 | H187: 81.8 | I187: 7272768 | J187: 588693302.4 | K187: 2018-12-07 | L187: 23941 | M187: INE263A01024
A188: BEML | B188: EQ | C188: 698 | D188: 717 | E188: 688.3 | F188: 709.05 | G188: 709.25 | H188: 701.35 | I188: 1251880 | J188: 881268690.1 | K188: 2018-12-07 | L188: 27711 | M188: INE258A01016
A189: BEPL | B189: EQ | C189: 67.9 | D189: 68.9 | E189: 62 | F189: 64 | G189: 63.8 | H189: 67.55 | I189: 722044 | J189: 46477040.4 | K189: 2018-12-07 | L189: 5560 | M189: INE922A01025
A190: BERGEPAINT | B190: EQ | C190: 312 | D190: 313.75 | E190: 307.65 | F190: 310.9 | G190: 312 | H190: 307.65 | I190: 405226 | J190: 125823542.5 | K190: 2018-12-07 | L190: 12930 | M190: INE463A01038
A191: BFINVEST | B191: EQ | C191: 238.9 | D191: 240 | E191: 229 | F191: 230.65 | G191: 231 | H191: 235.1 | I191: 53335 | J191: 12462859.75 | K191: 2018-12-07 | L191: 1650 | M191: INE878K01010
A192: BFUTILITIE | B192: EQ | C192: 205 | D192: 207.75 | E192: 199.05 | F192: 201.45 | G192: 199.95 | H192: 203.75 | I192: 149292 | J192: 30305633.2 | K192: 2018-12-07 | L192: 3883 | M192: INE243D01012
A193: BGLOBAL | B193: BE | C193: 2.65 | D193: 2.65 | E193: 2.55 | F193: 2.55 | G193: 2.55 | H193: 2.55 | I193: 13652 | J193: 36176.8 | K193: 2018-12-07 | L193: 15 | M193: INE224M01013
A194: BGRENERGY | B194: EQ | C194: 58.2 | D194: 59 | E194: 56.55 | F194: 57 | G194: 57 | H194: 58.45 | I194: 65163 | J194: 3748835.9 | K194: 2018-12-07 | L194: 998 | M194: INE661I01014
A195: BHAGERIA | B195: EQ | C195: 279.05 | D195: 279.95 | E195: 275 | F195: 275.85 | G195: 278 | H195: 278.05 | I195: 5133 | J195: 1419839.95 | K195: 2018-12-07 | L195: 227 | M195: INE354C01027
A196: BHAGYANGR | B196: EQ | C196: 28 | D196: 30.6 | E196: 26.2 | F196: 29 | G196: 29.9 | H196: 28.65 | I196: 11473 | J196: 322933.8 | K196: 2018-12-07 | L196: 109 | M196: INE458B01036
A197: BHAGYAPROP | B197: EQ | C197: 26.1 | D197: 31.75 | E197: 26.05 | F197: 29.65 | G197: 29.5 | H197: 26.8 | I197: 21243 | J197: 626992.65 | K197: 2018-12-07 | L197: 78 | M197: INE363W01018
A198: BHANDARI | B198: EQ | C198: 1.9 | D198: 1.9 | E198: 1.8 | F198: 1.85 | G198: 1.8 | H198: 1.85 | I198: 52151 | J198: 96498.1 | K198: 2018-12-07 | L198: 71 | M198: INE474E01029
A199: BHARATFIN | B199: EQ | C199: 997.5 | D199: 997.5 | E199: 969.5 | F199: 991.3 | G199: 995 | H199: 990.55 | I199: 514035 | J199: 504130405.2 | K199: 2018-12-07 | L199: 14453 | M199: INE180K01011
A200: BHARATFORG | B200: EQ | C200: 534 | D200: 534 | E200: 501 | F200: 505.5 | G200: 506.45 | H200: 526.55 | I200: 4241301 | J200: 2171763244 | K200: 2018-12-07 | L200: 81745 | M200: INE465A01025
... 1429 more rows
